Workbook

Sheet Nábytek a příslušenství
A1: Příloha č. 1 Výzvy: Technická specifikace - Nábytek
A2: NÁZEV VEŘEJNÉ ZAKÁZKY: | C2: „Transformace CSS Stod III. etapa – nábytek a příslušenství“
A3: Veřejná zakázka malého rozsahu na dodávky (dále také jen „VZ“) zadávaná mimo působnost zákona č. 134/2016 Sb., o zadávání veřejných zakázek (dále také jen „ZZVZ“).
A5: DODAVATEL: | C5: DOPLNÍ DODAVATEL
A6: IČO/DIČ: | C6: DOPLNÍ DODAVATEL
A7: SÍDLO: | C7: DOPLNÍ DODAVATEL
A8: OSOBA OPRÁVNĚNÁ JEDNAT ZA DODAVATELE: | C8: DOPLNÍ DODAVATEL
A11: Stod - objekt A + C
A12: Pořadové číslo položky | B12: Položka - Specifikace položky (minimální požadované parametry zboží) | E12: Požadavky splněny ANO/NE | F12: Nabízené parametry zboží
A13: 1. | B13: Čalouněné křeslo ušák; Popis: Čalouněné křeslo ušák je tvořen z vlnonce, 2 cm kokosové vrstvy a 5 cm široké PUR pěny a čalouněná potahovou látkou v barvě šedé. Hmotnost křesla 23 kg. Doplňové rozměry křesla: hloubka 720 mm, výška sedu 470 mm, hloubka sedu | C13: ks | D13: 12 | F13: Dodavatel doplní popis a pametry nabízeného zboží
A14: 2. | B14: Předsíňová stěna s věšáky; Popis: Předsíňová stěna s kovovými háčky se dvěmi úchytkami a policí, kotvená do stěny včetně montážního materiálu. Korpus a police z MDF desky, barva světle hnědá, tl. 20 mm. Hrany opatřeny ABS hranou tl. 1,5 mm. Háček (5 ks) se dvěmi úchytkami kotvená na desku věšáku včetně kotvení. Materiál nerezová ocel.; Rozměry: věšák: 660 x 240 x 1520 mm (d x š x v), háček: 70 x 30 x 47 mm (d x š x v) | C14: ks | D14: 2 | F14: Dodavatel doplní popis a pametry nabízeného zboží
A15: 3. | B15: Nástěné zrcadlo do předsíně (rozměr 1000 x 900 mm); Popis: Nástěné pravoúhlé zrcadlo k montáži na stěnu včetně kotvení. Materiál sklo s bezpečnostní fólií se zabroušenými hranami.; Rozměry: 1000 x 900 mm (š x v) | C15: ks | D15: 2 | F15: Dodavatel doplní popis a pametry nabízeného zboží
A16: 4. | B16: Botník s variabilními policemi a lavicí; Popis: Botník s variabilními policemi a lavicí. Botník je členěn na 6 polic pro uložení bot. Materiál laminovaná MDF deska, barva světle hnědá. Dno i půda z desky tl. 25 mm, z přední strany ABS hrana tl. 2 mm. Ostatní pohlednové prvky opatřeny ABS hranou tl. 1 mm. Boky korpusu z desky tl. 25 mm. Záda z desky tl. 10 mm. Police z desky tl. 20 mm s variabilním polohovatelností. Police a desky opatřeny hranou ABS tl. 2 mm. Dodávka včetvě rektifikačních nožiček. Sedák čalouněný potahovou látkou v barvě šedé. ; Rozměry: 1000 x 400 x 480 mm (d x š x v) | C16: ks | D16: 2 | F16: Dodavatel doplní popis a pametry nabízeného zboží
A17: 5. | B17: Vestavěná skříň policová plná s dveřmi rozdělenými na dvě části (výška 2000 mm); Popis: Skříň dvoudvéřová. Vybavená 5 ks variabilních polic. Materiál laminovaná MDF deska, barva světle hnědá. Dno i půda z desky tl. 25 mm, z přední strany ABS hrana tl. 2 mm. Ostatní pohlednové prvky opatřeny ABS hranou tl. 1 mm. Boky korpusu z desky tl. 18 mm. Záda z desky tl. 8 mm. Police z desky tl. 25 mm, nosnost 80 kg s variabilním polohovatelností. Police a desky opatřeny hranou ABS tl. 2 mm. Dodávka včetvě rektifikačních nožiček.; Rozměry: 1400 x 400 x 2000 mm (d x š x v) | C17: ks | D17: 2 | F17: Dodavatel doplní popis a pametry nabízeného zboží
A18: 6. | B18: Skříňka do koupelny (výška 700 mm); Popis: Skřínka se čtyřmi zásuvkami do koupleny a nožičkami. Materiál laminátová MDF deska, barva bílá. Dno i půda z desky tl. 25 mm, z přední strany ABS hrana tl. 2 mm. Ostatní pohlednové prvky opatřeny ABS hranou tl. 1 mm. Boky korpusu z desky tl. 18 mm. Záda z desky tl. 8 mm. Police z desky tl. 25 mm, nosnost 50 kg. Police a desky opatřeny hranou ABS tl. 2 mm. Dodávka včetvě kovových nožiček a úchytek k zásuvkám.; Rozměry: 400 x 400 x 700 mm (d x š x v) | C18: ks | D18: 2 | F18: Dodavatel doplní popis a pametry nabízeného zboží
A19: 7. | B19: Sklopné zrcadlo pro bezbariérové WC; Popis: Sklopné nerezové zrcadlo na toalety pro tělesně postižené včetně kotvení. Kotveno pomocí montážní lišty. Naklánění zrcadla je ovládané pomocí páky na stěně pod umyvadlem. Materiál sklo s bezpečnostní fólií se zabroušenými hranami a rám a páka z nerezy.; Rozměry: 600 x 400 mm (š x v) | C19: ks | D19: 2 | F19: Dodavatel doplní popis a pametry nabízeného zboží
A20: 8. | B20: Police do skladu (výška 2000 mm); Popis: Police do skladu s pěti policemi včetně montážního materiálu. Police jsou výškově přestavitelné v rastru 138 mm. Šedý policový regál je rychle smontovatelný bez spojovacího materiálu. Police se jednoduchým způsobem nasadí na sloupky. Možnost spojování do polí a řad vedle sebe i za sebou pro zvýšení celkové tuhosti. Konstrukce je povrchově upravena práškovým lakem šedé barvy. Nohy jsou vybaveny plastovými patkami pro ochranu podlahové krytiny. ; Rozměry: 2000 x 600 x 2000 mm (d x š x v) | C20: ks | D20: 4 | F20: Dodavatel doplní popis a pametry nabízeného zboží
A21: 9. | B21: Police do skladu tvaru "L" (výška 2000 mm); Popis: Police do skladu tvaru "L" s pěti police včetně montážního materiálu. Police jsou výškově přestavitelné v rastru 138 mm. Šedý policový regál je rychle smontovatelný bez spojovacího materiálu. Police se jednoduchým způsobem nasadí na sloupky. Možnost spojování do polí a řad vedle sebe i za sebou pro zvýšení celkové tuhosti. Konstrukce je povrchově upravena práškovým lakem šedé barvy. Nohy jsou vybaveny plastovými patkami pro ochranu podlahové krytiny.; Rozměry: 1810/1610 x 600 x 2000 mm (d x š x v) | C21: ks | D21: 2 | F21: Dodavatel doplní popis a pametry nabízeného zboží
A22: 10. | B22: Kovová garnyž na záclony; Popis: Kovová garnyž na záclony včetně montážního materiálu. Tyč garnyže o púrůměru 16 mm. Skládá se z galvanicky pokovené tyče, dvou koncovek, dvou konzol na zeď a žabky s kroužky.; Rozměry: nastavitelná délka 1450 – 1950 mm | C22: ks | D22: 24 | F22: Dodavatel doplní popis a pametry nabízeného zboží
A23: 11. | B23: Šatní skříň s policemi a tyčí uzamykatelná (výška 2000 mm); Popis: Skříň dvoudvéřová, dvoudílná - dělená na dvě části. 1/2 vybavená šatní tyčí a policí a 1/2 vybavená 5 ks variabilních polic. Materiál laminovaná MDF deska, barva světle hnědá. Dno i půda z desky tl. 25 mm, z přední strany ABS hrana tl. 2 mm. Ostatní pohledné prvky opatřeny ABS hranou tl. 1 mm. Boky korpusu z desky tl. 18 mm. Záda desky tl. 8 mm. Police z desky tl. 25 mm. Police a desky opatřeny hranou ABS tl. 2 mm.; Rozměry: 1700 x 600 x 2000 mm (d x š x v) | C23: ks | D23: 2 | F23: Dodavatel doplní popis a pametry nabízeného zboží
A24: 12. | B24: Nástěnná police s konzolemi; Popis: Nástěnná police s konzolemi kotvené do zdi včetně kotvení. Materiál laminátová MDF deska, barva světle hnědá. Police z desky tl. 25 mm, opatřena ABS hranou tl. 2 mm. Nosnost 80 kg. Konzole dřevěné v barvě světle hnědé.; Rozměry: 1000 x 300 x 20 mm (d x š x v) | C24: ks | D24: 2 | F24: Dodavatel doplní popis a pametry nabízeného zboží
B25: Cena celkem bez DPH - Stod - objekt A + C
A26: Stod - objekt B
A27: 13. | B27: Sedací vak; Popis: Sedací dvouvrstvý vak, výplň z kuliček z polystyrenu, obsah náplně 365 l. Materiál potahu jednobarevný polyester a polyester s PVC zátěrem z rubové strany . Hmotnost 5,5 kg.Nosnost 120 kg.; Rozměry: 1050 x 950 x 750 mm (d x š x v) ; Všechen nábytek musí být proveden tak, aby splňoval požadavky pro užívání lidí s autismem. Tento nábytek musí splňovat požadavky na dostatečnou odolnost, jednoduchou udržovatelnost, vysokou odolnost vůči poškození. | C27: ks | D27: 6 | F27: Dodavatel doplní popis a pametry nabízeného zboží
A28: 14. | B28: Předsíňová stěna s věšáky; Popis: Předsíňová stěna s kovovými háčky se dvěmi úchytkami a policí, kotvená do stěny včetně montážního materiálu. Korpus a police z MDF desky, barva světle hnědá, tl. 20 mm. Hrany opatřeny ABS hranou tl. 1,5 mm. Háček (5 ks) se dvěmi úchytkami kotvená na desku věšáku včetně kotvení. Materiál nerezová ocel.; Rozměry: věšák: 660 x 240 x 1520 mm (d x š x v), háček: 70 x 30 x 47 mm (d x š x v) ; Všechen nábytek musí být proveden tak, aby splňoval požadavky pro užívání lidí s autismem. Tento nábytek musí splňovat požadavky na dostatečnou odolnost, jednoduchou udržovatelnost, vysokou odolnost vůči poškození, musí být dostatečně tuhý, stabilní a odolný proti nárazu, tak aby nedošlo k poškození nábytku ani k úrazu | C28: ks | D28: 1 | F28: Dodavatel doplní popis a pametry nabízeného zboží
A29: 15. | B29: Botník s variabilními policemi a lavicí; Popis: Botník s variabilními policemi a lavicí. Botník je členěn na 6 polic pro uložení bot. Materiál laminovaná MDF deska, barva světle hnědá. Dno i půda z desky tl. 25 mm, z přední strany ABS hrana tl. 2 mm. Ostatní pohlednové prvky opatřeny ABS hranou tl. 1 mm. Boky korpusu z desky tl. 25 mm. Záda z desky tl. 10 mm. Police z desky tl. 20 mm s variabilním polohovatelností. Police a desky opatřeny hranou ABS tl. 2 mm. Dodávka včetvě rektifikačních nožiček. Sedák čalouněný potahovou látkou v barvě šedé. ; Rozměry: 1000 x 400 x 480 mm (d x š x v) ; Všechen nábytek musí být proveden tak, aby splňoval požadavky pro užívání lidí s autismem. Tento nábytek musí splňovat požadavky na dostatečnou odolnost, jednoduchou udržovatelnost, vysokou odolnost vůči poškození, musí být dostatečně tuhý, stabilní a odolný proti nárazu, tak aby nedošlo k poškození nábytku ani k úrazu | C29: ks | D29: 1 | F29: Dodavatel doplní popis a pametry nabízeného zboží
A30: 16. | B30: Vestavěná skříň policová plná s dveřmi rozdělenými na dvě části (výška 2000 mm); Popis: Skříň dvoudvéřová. Vybavená 5 ks variabilních polic. Materiál laminovaná MDF deska, barva světle hnědá. Dno i půda z desky tl. 25 mm, z přední strany ABS hrana tl. 2 mm. Ostatní pohlednové prvky opatřeny ABS hranou tl. 1 mm. Boky korpusu z desky tl. 18 mm. Záda z desky tl. 8 mm. Police z desky tl. 25 mm, nosnost 80 kg s variabilním polohovatelností. Police a desky opatřeny hranou ABS tl. 2 mm. Dodávka včetvě rektifikačních nožiček.; Rozměry: 1400 x 400 x 2000 mm (d x š x v) ; Všechen nábytek musí být proveden tak, aby splňoval požadavky pro užívání lidí s autismem. Tento nábytek musí splňovat požadavky na dostatečnou odolnost, jednoduchou udržovatelnost, vysokou odolnost vůči poškození, musí byýt dostatečně tuhý, stabilní a odolný proti nárazu, tak aby nedošlo k poškození nábytku ani k úrazu | C30: ks | D30: 1 | F30: Dodavatel doplní popis a pametry nabízeného zboží
A31: 17. | B31: Skříňka do koupelny (výška 700 mm); Popis: Skřínka se čtyřmi zásuvkami do koupleny a nožičkami. Materiál laminátová MDF deska, barva bílá. Dno i půda z desky tl. 25 mm, z přední strany ABS hrana tl. 2 mm. Ostatní pohlednové prvky opatřeny ABS hranou tl. 1 mm. Boky korpusu z desky tl. 18 mm. Záda z desky tl. 8 mm. Police z desky tl. 25 mm, nosnost 50 kg. Police a desky opatřeny hranou ABS tl. 2 mm. Dodávka včetvě kovových nožiček a úchytek k zásuvkám.; Rozměry: 400 x 400 x 700 mm (d x š x v) ; Všechen nábytek musí být proveden tak, aby splňoval požadavky pro užívání lidí s autismem. Tento nábytek musí splňovat požadavky na dostatečnou odolnost, jednoduchou udržovatelnost, vysokou odolnost vůči poškození, musí být dostatečně tuhý, stabilní a odolný proti nárazu, tak aby nedošlo k poškození nábytku ani k úrazu | C31: ks | D31: 6 | F31: Dodavatel doplní popis a pametry nabízeného zboží
A32: 18. | B32: Zabudované zrcadlo; Popis: Nerozbitné nástěné pravoúhlé zrcadlo na toalety k přilepení na stěnu. Materiál sklo s bezpečnostní fólií se zabroušenými hranami. Lepidlo určené pro lepení zrcadel.; Rozměry: 600 x 400 mm (š x v) | C32: ks | D32: 6 | F32: Dodavatel doplní popis a pametry nabízeného zboží
A33: 19. | B33: Celomasivní postel s matrací; Popis: Celomasivní postel z bukového dřeva i s matrací. Materiál bukové dřevo ošetřeno nezávadným lakem ve dvou vrstvách. Součástí postele je rošt, čelo hlavy, nohy a nosná konstrukce. Výška čela u hlavy 870 mm a výška čela u nohou 460 mm, nohy rozměru 55 x 55 mm, nosná konstrukce z masinu tl. 29 mm. Ortopedická matrace s kanálky pro zajištění dostatečného větrání s potahem se zipem. Výška matrace 200 mm. Matrace má vysokou tvarovou stálost a zónované jádro. Nosnot matrace 130 kg. ; Rozměry: rozměr postele: 2200 x 1000 mm (d x š), rozměr matrace: 2100 x 900 mm (d x š) ; Všechen nábytek musí být proveden tak, aby splňoval požadavky pro užívání lidí s autismem. Tento nábytek musí splňovat požadavky na dostatečnou odolnost, jednoduchou udržovatelnost, vysokou odolnost vůči poškození, musí být dostatečně tuhý, stabilní a odolný proti nárazu, tak aby nedošlo k poškození nábytku ani k úrazu | C33: ks | D33: 6 | F33: Dodavatel doplní popis a pametry nabízeného zboží
A34: 20. | B34: Šatní skříň plná s dveřmi rozdělenými na dvě části (výška 2000 mm); Popis: Skříň dvoudvéřová s nosnou ocelovou konstrukcí opláštěnou dubovými spárovkami. Vybavená 5 ks polic. Materiál dubová spárovka, ošetřeno nezávadným lakem ve dvou vrstvách. Dno, půda a boky z desky tl. 26 mm, záda z desky tl. 20 mm. Police z desky tl. 20 mm, nosnost 150 kg s pevnou výškou polic. Hrany polic a desek zaobleny r=3 mm. Nosná konstrukce z ocelového uzavřeného čtvercového průřezu o rozměru 10 x 10 mm, tl. stěny 1,0 mm. Ocelová konstrukce opatřena nátěrem v barvě světle hnědé. Kování musí být navrženo pro větší nosnost (cca 100 kg). Dodávka včetvě rektifikačních nožiček. ; Rozměry: 1700 x 600 x 2000 mm (d x š x v) ; Všechen nábytek musí být proveden tak, aby splňoval požadavky pro užívání lidí s autismem. Tento nábytek musí splňovat požadavky na dostatečnou odolnost, jednoduchou udržovatelnost, vysokou odolnost vůči poškození, musí být dostatečně tuhý, stabilní a odolný proti nárazu, tak aby nedošlo k poškození nábytku ani k úrazu | C34: ks | D34: 4 | F34: Dodavatel doplní popis a pametry nabízeného zboží
A35: 21. | B35: Šatní skříň plná s dveřmi rozdělenými na dvě části (výška 2000 mm); Popis: Skříň dvoudvéřová s nosnou ocelovou konstrukcí opláštěnou dubovými spárovkami. Vybavená 5 ks polic. Materiál dubová spárovka, ošetřeno nezávadným lakem ve dvou vrstvách. Dno, půda a boky z desky tl. 26 mm, záda z desky tl. 20 mm. Police z desky tl. 20 mm, nosnost 150 kg s pevnou výškou polic. Hrany polic a desek zaobleny r=3 mm. Nosná konstrukce z ocelového uzavřeného čtvercového průřezu o rozměru 10 x 10 mm, tl. stěny 1,0 mm. Ocelová konstrukce opatřena nátěrem v barvě světle hnědé. Kování musí být navrženo pro větší nosnost (cca 100 kg). Dodávka včetvě rektifikačních nožiček. ; Rozměry: 1200 x 600 x 2000 mm (d x š x v) ; Všechen nábytek musí být proveden tak, aby splňoval požadavky pro užívání lidí s autismem. Tento nábytek musí splňovat požadavky na dostatečnou odolnost, jednoduchou udržovatelnost, vysokou odolnost vůči poškození, musí být dostatečně tuhý, stabilní a odolný proti nárazu, tak aby nedošlo k poškození nábytku ani k úrazu | C35: ks | D35: 2 | F35: Dodavatel doplní popis a pametry nabízeného zboží
A36: 22. | B36: Nástěnná police s konzolemi; Popis: Nástěnná police s konzolemi kotvené do zdi včetně kotvení. Materiál laminátová MDF deska, barva světle hnědá. Police z desky tl. 25 mm, opatřena ABS hranou tl. 2 mm. Nosnost 80 kg. Konzole dřevěné v barvě světle hnědé.; Rozměry: 1000 x 300 x 20 mm (d x š x v) ; | C36: ks | D36: 1 | F36: Dodavatel doplní popis a pametry nabízeného zboží
B37: Cena celkem bez DPH - Stod - domácnost B
A38: Stod - domácnost D
A39: 23. | B39: Předsíňová stěna s věšáky; Popis: Předsíňová stěna s kovovými háčky se dvěmi úchytkami a policí, kotvená do stěny včetně montážního materiálu. Korpus a police z MDF desky, barva světle hnědá, tl. 20 mm. Hrany opatřeny ABS hranou tl. 1,5 mm. Háček (5 ks) se dvěmi úchytkami kotvená na desku věšáku včetně kotvení. Materiál nerezová ocel.; Materiál:; Rozměry: věšák: 660 x 240 x 1520 mm (d x š x v), háček: 70 x 30 x 47 mm (d x š x v) | C39: ks | D39: 1 | F39: Dodavatel doplní popis a pametry nabízeného zboží
A40: 24. | B40: Police do skladu (výška 2000 mm); Popis: Police do skladu s pěti policemi včetně montážního materiálu. Police jsou výškově přestavitelné v rastru 138 mm. Šedý policový regál je rychle smontovatelný bez spojovacího materiálu. Police se jednoduchým způsobem nasadí na sloupky. Možnost spojování do polí a řad vedle sebe i za sebou pro zvýšení celkové tuhosti. Konstrukce je povrchově upravena práškovým lakem šedé barvy. Nohy jsou vybaveny plastovými patkami pro ochranu podlahové krytiny. ; Materiál:; Rozměry: 1400 x 300 x 2000 mm (d x š x v) ; | C40: ks | D40: 1 | F40: Dodavatel doplní popis a pametry nabízeného zboží
A41: 25. | B41: Police do skladu (výška 1300); Popis: Police do skladu se čtyřmi policemi včetně montážního materiálu. Police jsou výškově přestavitelné v rastru 138 mm. Šedý policový regál je rychle smontovatelný bez spojovacího materiálu. Police se jednoduchým způsobem nasadí na sloupky. Možnost spojování do polí a řad vedle sebe i za sebou pro zvýšení celkové tuhosti. Konstrukce je povrchově upravena práškovým lakem šedé barvy. Nohy jsou vybaveny plastovými patkami pro ochranu podlahové krytiny. ; Materiál:; Rozměry: 1300 x 300 x 1300 mm (d x š x v) ; | C41: ks | D41: 2 | F41: Dodavatel doplní popis a pametry nabízeného zboží
A42: 26. | B42: Police do archivu (výška 2000 mm); Popis: Police do skladu s pěti policemi včetně montážního materiálu. Police jsou výškově přestavitelné v rastru 138 mm. Šedý policový regál je rychle smontovatelný bez spojovacího materiálu. Police se jednoduchým způsobem nasadí na sloupky. Možnost spojování do polí a řad vedle sebe i za sebou pro zvýšení celkové tuhosti. Konstrukce je povrchově upravena práškovým lakem šedé barvy. Nohy jsou vybaveny plastovými patkami pro ochranu podlahové krytiny. ; Materiál:; Rozměry: 1300 x 600 x 2000 mm (d x š x v) ; | C42: ks | D42: 1 | F42: Dodavatel doplní popis a pametry nabízeného zboží
A43: 27. | B43: Police do archivu (výška 1700 mm); Popis: Police do skladu se čtyřmi policemi včetně montážního materiálu. Police jsou výškově přestavitelné v rastru 138 mm. Šedý policový regál je rychle smontovatelný bez spojovacího materiálu. Police se jednoduchým způsobem nasadí na sloupky. Možnost spojování do polí a řad vedle sebe i za sebou pro zvýšení celkové tuhosti. Konstrukce je povrchově upravena práškovým lakem šedé barvy. Nohy jsou vybaveny plastovými patkami pro ochranu podlahové krytiny. ; Materiál:; Rozměry: 1300 x 600 x 1700 mm (d x š x v) ; | C43: ks | D43: 2 | F43: Dodavatel doplní popis a pametry nabízeného zboží
A44: 28. | B44: Police do archivu (výška 900 mm); Popis: Police do skladu se dvemi policemi včetně montážního materiálu. Police jsou výškově přestavitelné v rastru 138 mm. Šedý policový regál je rychle smontovatelný bez spojovacího materiálu. Police se jednoduchým způsobem nasadí na sloupky. Možnost spojování do polí a řad vedle sebe i za sebou pro zvýšení celkové tuhosti. Konstrukce je povrchově upravena práškovým lakem šedé barvy. Nohy jsou vybaveny plastovými patkami pro ochranu podlahové krytiny. ; Materiál:; Rozměry: 1300 x 600 x 900 mm (d x š x v) ; | C44: ks | D44: 2 | F44: Dodavatel doplní popis a pametry nabízeného zboží
A45: 29. | B45: Konferenční stolek; Popis: Konferenční stolek bez zásuvek. Materiál laminátová MDF deska tl. 22 mm, barva světle hnědá, opatřená ABS hranou tl. 2 mm.; Rozměry: 700 x 700 x 500 mm (d x š x v) | C45: ks | D45: 1 | F45: Dodavatel doplní popis a pametry nabízeného zboží
A46: 30. | B46: Křeslo s polstrováním; Popis: Křeslo s polstrováním, čalouněné potahovou látkou v barvě šedé. Nosná konstrukce křesla je ze dřeva v kombinaci s potahovou látkou.; Rozměry: 600 x 590 x 770 mm (d x š x v) | C46: ks | D46: 2 | F46: Dodavatel doplní popis a pametry nabízeného zboží
B47: Cena celkem bez DPH - Stod - objekt D
A48: Kvíčovice - objekt A + B
A49: 31. | B49: Čalouněné křeslo ušák; Popis: Čalouněné křeslo ušák je tvořen z vlnonce, 2 cm kokosové vrstvy a 5 cm široké PUR pěny a čalouněná potahovou látkou v barvě šedé. Hmotnost křesla 23 kg. Doplňové rozměry křesla: hloubka 720 mm, výška sedu 470 mm, hloubka sedu 520 mm, šířka sedu 520 mm a výška opěrka 670 mm.; Rozměry: 560 x 720 x 1080 mm (d x š x v) | C49: ks | D49: 12 | F49: Dodavatel doplní popis a pametry nabízeného zboží
A50: 32. | B50: Předsíňová stěna s věšáky; Popis: Předsíňová stěna s kovovými háčky se dvěmi úchytkami a policí, kotvená do stěny včetně montážního materiálu. Korpus a police z MDF desky, barva světle hnědá, tl. 20 mm. Hrany optařeny ABS hranou tl. 1,5 mm. Háček (5 ks) se dvěmi úchytkami kotvená na desku věšáku včetně kotvení. Materiál nerezová ocel.; Rozměry: věšák: 660 x 240 x 1520 mm (d x š x v), háček: 70 x 30 x 47 mm (d x š x v) | C50: ks | D50: 2 | F50: Dodavatel doplní popis a pametry nabízeného zboží
A51: 33. | B51: Nástěné zrcadlo do předsíně (rozměr 1000 x 900 mm); Popis: Nástěné pravoúhlé zrcadlo k montáži na stěnu včetně kotvení. Materiál sklo s bezpečnostní fólií se zabroušenými hranami.; Rozměry: 1000 x 900 mm (š x v) | C51: ks | D51: 2 | F51: Dodavatel doplní popis a pametry nabízeného zboží
A52: 34. | B52: Vestavěná skříň policová plná s dveřmi rozdělenými na dvě části (výška 2000 mm); Popis: Skříň dvoudvéřová. Vybavená 5 ks variabilních polic. Materiál laminovaná MDF deska, barva světle hnědá. Dno i půda z desky tl. 25 mm, z přední strany ABS hrana tl. 2 mm. Ostatní pohlednové prvky opatřeny ABS hranou tl. 1 mm. Boky korpusu z desky tl. 18 mm. Záda z desky tl. 8 mm. Police z desky tl. 25 mm, nosnost 80 kg s variabilním polohovatelností. Police a desky opatřeny hranou ABS tl. 2 mm. Dodávka včetvě rektifikačních nožiček.; Rozměry: 1400 x 400 x 2000 mm (d x š x v) | C52: ks | D52: 2 | F52: Dodavatel doplní popis a pametry nabízeného zboží
A53: 35. | B53: Psací stůl pro personál; Popis: Pracovní stůl obdélníkový bez zásuvek. Materiál laminátová MDF deska, barva světle hnědá. Deska tl. 18 mm. Deska opatřená ABS hranou tl. 2 mm. Nohy stolu hliníkové, povrchová úprava práškovým vypalovacím lakem v odstínu štříbrno šedá.; Rozměry: 1200 x 700 x 740 mm (d x š x v) | C53: ks | D53: 2 | F53: Dodavatel doplní popis a pametry nabízeného zboží
A54: 36. | B54: Zásuvkový díl uzamykatelný; Popis: Kancelářský kontejner volně stojící se čtyřmi zásuvkami uzamykatelný na plastových kolečkách. V čele horní zásuvky umístěný zámek, jednotlivé zásuvky opatřené kovovými úchytkami. Materiál laminátová MDF deska, barva světle hnědá. Deska tl. 18 mm. Deska opatřená ABS hranou tl. 2 mm. Kovové pojezdy zásuvek.; Rozměry: 600 x 420 x 550 mm (d x š x v) | C54: ks | D54: 2 | F54: Dodavatel doplní popis a pametry nabízeného zboží
A55: 37. | B55: Kancelářská židle otočná s kolečky; Popis: Ergonomická kancelářská židle otočná s výsokým opěrákem s kolečky. Výškově nastavitelný sedák, bederní opěrka a područky, samostatná síťovina na opěráku barva černá. Materál lakovaná ocel, plast. Hmotnost 17 kg, nosnost 120 kg.; Rozměry: 660/500 x 500 x 1000/1090 mm (d x š x v) | C55: ks | D55: 2 | F55: Dodavatel doplní popis a pametry nabízeného zboží
A56: 38. | B56: TV stolek s policemi; Popis: Televizní stolek s šesti policemi pod deskou. Materiál laminátová MDF deska, barva světle hnědá. Horní deska a nohy a police z desky tl. 20 mm. Horní deska opatřená ABS hranou tl. 2 mm, ostatní pohledové prvky opatřené ABS hranou tl. 1,5 mm. Záda z desky tl. 8 mm; Rozměry: 3700 x 400 x 400 mm (d x š x v) | C56: ks | D56: 2 | F56: Dodavatel doplní popis a pametry nabízeného zboží
A57: 39. | B57: Konferenční stolek; Popis: Obdelníkový konferenční stolek se čtyřmi nohami jednou otevřenou zásuvkou. Materiál laminátová MDF deska. Deska tl. 20 mm, opatřená ABS hranou tl. 2 mm, barva světle hnědá. Nohy stolku čtvercové ze dřeva, barva světle hnědá.; Rozměry: 1000 x 800 x 430 mm (d x š x v) | C57: ks | D57: 2 | F57: Dodavatel doplní popis a pametry nabízeného zboží
A58: 40. | B58: Skříňka do koupelny (výška 700 mm); Popis: Skřínka se čtyřmi zásuvkami do koupleny a nožičkami. Materiál laminátová MDF deska, barva bílá. Dno i půda z desky tl. 25 mm, z přední strany ABS hrana tl. 2 mm. Ostatní pohlednové prvky opatřeny ABS hranou tl. 1 mm. Boky korpusu z desky tl. 18 mm. Záda z desky tl. 8 mm. Police z desky tl. 25 mm, nosnost 50 kg. Police a desky opatřeny hranou ABS tl. 2 mm. Dodávka včetvě kovových nožiček a úchytek k zásuvkám.; Rozměry: 400 x 400 x 700 mm (d x š x v) | C58: ks | D58: 2 | F58: Dodavatel doplní popis a pametry nabízeného zboží
A59: 41. | B59: Sklopné zrcadlo pro bezbariérové WC; Popis: Sklopné nerezové zrcadlo na toalety pro tělesně postižené včetně kotvení. Kotveno pomocí montážní lišty. Naklánění zrcadla je ovládané pomocí páky na stěně pod umyvadlem. Materiál sklo s bezpečnostní fólií se zabroušenými hranami a rám a páka z nerezy.; Rozměry: 600 x 400 mm (š x v) | C59: ks | D59: 2 | F59: Dodavatel doplní popis a pametry nabízeného zboží
A60: 42. | B60: Police do skladu (výška 2000 mm); Popis: Police do skladu s pěti policemi včetně montážního materiálu. Police jsou výškově přestavitelné v rastru 138 mm. Šedý policový regál je rychle smontovatelný bez spojovacího materiálu. Police se jednoduchým způsobem nasadí na sloupky. Možnost spojování do polí a řad vedle sebe i za sebou pro zvýšení celkové tuhosti. Konstrukce je povrchově upravena práškovým lakem šedé barvy. Nohy jsou vybaveny plastovými patkami pro ochranu podlahové krytiny. ; Rozměry: 2000 x 600 x 2000 mm (d x š x v) | C60: ks | D60: 4 | F60: Dodavatel doplní popis a pametry nabízeného zboží
A61: 43. | B61: Police do skladu tvaru "L" (výška 2000 mm); Popis: Police do skladu tvaru "L" s pěti police včetně montážního materiálu. Police jsou výškově přestavitelné v rastru 138 mm. Šedý policový regál je rychle smontovatelný bez spojovacího materiálu. Police se jednoduchým způsobem nasadí na sloupky. Možnost spojování do polí a řad vedle sebe i za sebou pro zvýšení celkové tuhosti. Konstrukce je povrchově upravena práškovým lakem šedé barvy. Nohy jsou vybaveny plastovými patkami pro ochranu podlahové krytiny.; Rozměry: 1810/1610 x 600 x 2000 mm (d x š x v) | C61: ks | D61: 2 | F61: Dodavatel doplní popis a pametry nabízeného zboží
A62: 44. | B62: Kovová garnyž na záclony; Popis: Kovová garnyž na záclony včetně montážního materiálu. Tyč garnyže o púrůměru 16 mm. Skládá se z galvanicky pokovené tyče, dvou koncovek, dvou konzol na zeď a žabky s kroužky.; Rozměry: nastavitelná délka 1450 – 1950 mm | C62: ks | D62: 24 | F62: Dodavatel doplní popis a pametry nabízeného zboží
A63: 45. | B63: Nástěnná police s konzolemi; Popis: Nástěnná police s konzolemi kotvené do zdi včetně kotvení. Materiál laminátová MDF deska, barva světle hnědá. Police z desky tl. 25 mm, opatřena ABS hranou tl. 2 mm. Nosnost 80 kg. Konzole dřevěné v barvě světle hnědé.; Rozměry: 1000 x 300 x 20 mm (d x š x v) ; | C63: ks | D63: 2 | F63: Dodavatel doplní popis a pametry nabízeného zboží
B64: Cena celkem bez DPH - Kvíčovice - objekt A + B
A65: Dnešice
A66: 46. | B66: Čalouněné křeslo ušák; Popis: Čalouněné křeslo ušák je tvořen z vlnonce, 2 cm kokosové vrstvy a 5 cm široké PUR pěny a čalouněná potahovou látkou v barvě šedé. Hmotnost křesla 23 kg. Doplňové rozměry křesla: hloubka 720 mm, výška sedu 470 mm, hloubka sedu 520 mm, šířka sedu 520 mm a výška opěrka 670 mm.; Materiál:; Rozměry: 560 x 720 x 1080 mm (d x š x v) | C66: ks | D66: 6 | F66: Dodavatel doplní popis a pametry nabízeného zboží
A67: 47. | B67: Předsíňová stěna s věšáky; Popis: Předsíňová stěna s kovovými háčky se dvěmi úchytkami a policí, kotvená do stěny včetně montážního materiálu. Korpus a police z MDF desky, barva světle hnědá, tl. 20 mm. Hrany optařeny ABS hranou tl. 1,5 mm. Háček (5 ks) se dvěmi úchytkami kotvená na desku věšáku včetně kotvení. Materiál nerezová ocel.; Materiál:; Rozměry: věšák: 660 x 240 x 1520 mm (d x š x v), háček: 70 x 30 x 47 mm (d x š x v) | C67: ks | D67: 1 | F67: Dodavatel doplní popis a pametry nabízeného zboží
A68: 48. | B68: Psací stůl pro personál; Popis: Pracovní stůl obdélníkový bez zásuvek. Materiál laminátová MDF deska, barva světle hnědá. Deska tl. 18 mm. Deska opatřená ABS hranou tl. 2 mm. Nohy stolu hliníkové, povrchová úprava práškovým vypalovacím lakem v odstínu štříbrno šedá.; Rozměry: 1200 x 700 x 740 mm (d x š x v) | C68: ks | D68: 1 | F68: Dodavatel doplní popis a pametry nabízeného zboží
A69: 49. | B69: Zásuvkový díl uzamykatelný; Popis: Kancelářský kontejner volně stojící se čtyřmi zásuvkami uzamykatelný na plastových kolečkách. V čele horní zásuvky umístěný zámek, jednotlivé zásuvky opatřené kovovými úchytkami. Materiál laminátová MDF deska, barva světle hnědá. Deska tl. 18 mm. Deska opatřená ABS hranou tl. 2 mm. Kovové pojezdy zásuvek.; Rozměry: 600 x 420 x 550 mm (d x š x v) | C69: ks | D69: 1 | F69: Dodavatel doplní popis a pametry nabízeného zboží
A70: 50. | B70: Kancelářská židle otočná s kolečky; Popis: Ergonomická kancelářská židle otočná s výsokým opěrákem s kolečky. Výškově nastavitelný sedák, bederní opěrka a područky, samostatná síťovina na opěráku barva černá. Materál lakovaná ocel, plast. Hmotnost 17 kg, nosnost 120 kg.; Rozměry: 660/500 x 500 x 1000/1090 mm (d x š x v) | C70: ks | D70: 1 | F70: Dodavatel doplní popis a pametry nabízeného zboží
A71: 51. | B71: Nástěné zrcadlo do předsíně (rozměr 1000 x 900 mm); Popis: Nástěné pravoúhlé zrcadlo k montáži na stěnu včetně kotvení. Materiál sklo s bezpečnostní fólií se zabroušenými hranami.; Materiál:; Rozměry: 1000 x 900 mm (š x v) | C71: ks | D71: 1 | F71: Dodavatel doplní popis a pametry nabízeného zboží
A72: 52. | B72: Vestavěná skříň policová plná s dveřmi rozdělenými na dvě části (výška 2000 mm); Popis: Skříň dvoudvéřová. Vybavená 5 ks variabilních polic. Materiál laminovaná MDF deska, barva světle hnědá. Dno i půda z desky tl. 25 mm, z přední strany ABS hrana tl. 2 mm. Ostatní pohlednové prvky opatřeny ABS hranou tl. 1 mm. Boky korpusu z desky tl. 18 mm. Záda z desky tl. 8 mm. Police z desky tl. 25 mm, nosnost 80 kg s variabilním polohovatelností. Police a desky opatřeny hranou ABS tl. 2 mm. Dodávka včetvě rektifikačních nožiček.; Materiál:; Rozměry: 1400 x 400 x 2000 mm (d x š x v) | C72: ks | D72: 1 | F72: Dodavatel doplní popis a pametry nabízeného zboží
A73: 53. | B73: Skříňka do koupelny (výška 700 mm); Popis: Skřínka se čtyřmi zásuvkami do koupleny a nožičkami. Materiál laminátová MDF deska, barva bílá. Dno i půda z desky tl. 25 mm, z přední strany ABS hrana tl. 2 mm. Ostatní pohlednové prvky opatřeny ABS hranou tl. 1 mm. Boky korpusu z desky tl. 18 mm. Záda z desky tl. 8 mm. Police z desky tl. 25 mm, nosnost 50 kg. Police a desky opatřeny hranou ABS tl. 2 mm. Dodávka včetvě kovových nožiček a úchytek k zásuvkám.; Materiál:; Rozměry: 400 x 400 x 700 mm (d x š x v) | C73: ks | D73: 1 | F73: Dodavatel doplní popis a pametry nabízeného zboží
A74: 54. | B74: Sklopné zrcadlo pro bezbariérové WC; Popis: Sklopné nerezové zrcadlo na toalety pro tělesně postižené včetně kotvení. Kotveno pomocí montážní lišty. Naklánění zrcadla je ovládané pomocí páky na stěně pod umyvadlem. Materiál sklo s bezpečnostní fólií se zabroušenými hranami a rám a páka z nerezy.; Materiál:; Rozměry: 600 x 400 mm (š x v) | C74: ks | D74: 1 | F74: Dodavatel doplní popis a pametry nabízeného zboží
A75: 55. | B75: Police do skladu (výška 2000 mm); Popis: Police do skladu s pěti policemi včetně montážního materiálu. Police jsou výškově přestavitelné v rastru 138 mm. Šedý policový regál je rychle smontovatelný bez spojovacího materiálu. Police se jednoduchým způsobem nasadí na sloupky. Možnost spojování do polí a řad vedle sebe i za sebou pro zvýšení celkové tuhosti. Konstrukce je povrchově upravena práškovým lakem šedé barvy. Nohy jsou vybaveny plastovými patkami pro ochranu podlahové krytiny. ; Materiál:; Rozměry: 2000 x 600 x 2000 mm (d x š x v) ; | C75: ks | D75: 2 | F75: Dodavatel doplní popis a pametry nabízeného zboží
A76: 56. | B76: Police do skladu tvaru "L" (výška 2000 mm); Popis: Police do skladu tvaru "L" s pěti police včetně montážního materiálu. Police jsou výškově přestavitelné v rastru 138 mm. Šedý policový regál je rychle smontovatelný bez spojovacího materiálu. Police se jednoduchým způsobem nasadí na sloupky. Možnost spojování do polí a řad vedle sebe i za sebou pro zvýšení celkové tuhosti. Konstrukce je povrchově upravena práškovým lakem šedé barvy. Nohy jsou vybaveny plastovými patkami pro ochranu podlahové krytiny.; Materiál:; Rozměry: 1810/1610 x 600 x 2000 mm (d x š x v) | C76: ks | D76: 1 | F76: Dodavatel doplní popis a pametry nabízeného zboží
A77: 57. | B77: Kovová garnyž na záclony; Popis: Kovová garnyž na záclony včetně montážního materiálu. Tyč garnyže o púrůměru 16 mm. Skládá se z galvanicky pokovené tyče, dvou koncovek, dvou konzol na zeď a žabky s kroužky.; Rozměry: nastavitelná délka 1450 – 1950 mm | C77: ks | D77: 12 | F77: Dodavatel doplní popis a pametry nabízeného zboží
A78: 58. | B78: Nástěnná police s konzolemi; Popis: Nástěnná police s konzolemi kotvené do zdi včetně kotvení. Materiál laminátová MDF deska, barva světle hnědá. Police z desky tl. 25 mm, opatřena ABS hranou tl. 2 mm. Nosnost 80 kg. Konzole dřevěné v barvě světle hnědé.; Materiál:; Rozměry: 1000 x 300 x 20 mm (d x š x v) ; | C78: ks | D78: 1 | F78: Dodavatel doplní popis a pametry nabízeného zboží
B79: Cena celkem bez DPH - Dnešice
A80: Staňkov
A81: 59. | B81: Čalouněné křeslo ušák; Popis: Čalouněné křeslo ušák je tvořen z vlnonce, 2 cm kokosové vrstvy a 5 cm široké PUR pěny a čalouněná potahovou látkou v barvě šedé. Hmotnost křesla 23 kg. Doplňové rozměry křesla: hloubka 720 mm, výška sedu 470 mm, hloubka sedu 520 mm, šířka sedu 520 mm a výška opěrka 670 mm.; Rozměry: 560 x 720 x 1080 mm (d x š x v) | C81: ks | D81: 5 | F81: Dodavatel doplní popis a pametry nabízeného zboží
A82: 60. | B82: Konferenční stolek; Popis: Obdelníkový konferenční stolek se čtyřmi nohami jednou otevřenou zásuvkou. Materiál laminátová MDF deska. Deska tl. 20 mm, opatřená ABS hranou tl. 2 mm, barva světle hnědá. Nohy stolku čtvercové ze dřeva, barva hnědá.; Rozměry: 1000 x 800 x 430 mm (d x š x v) | C82: ks | D82: 2 | F82: Dodavatel doplní popis a pametry nabízeného zboží
A83: 61. | B83: Psací stůl pro personál; Popis: Pracovní stůl obdélníkový bez zásuvek. Materiál laminátová MDF deska, barva světle hnědá. Deska tl. 18 mm. Deska opatřená ABS hranou tl. 2 mm. Nohy stolu hliníkové, povrchová úprava práškovým vypalovacím lakem v odstínu štříbrno šedá.; Rozměry: 1200 x 700 x 740 mm (d x š x v) | C83: ks | D83: 1 | F83: Dodavatel doplní popis a pametry nabízeného zboží
A84: 62. | B84: Zásuvkový díl uzamykatelný; Popis: Kancelářský kontejner volně stojící se čtyřmi zásuvkami uzamykatelný na plastových kolečkách. V čele horní zásuvky umístěný zámek, jednotlivé zásuvky opatřené kovovými úchytkami. Materiál laminátová MDF deska, barva světle hnědá. Deska tl. 18 mm. Deska opatřená ABS hranou tl. 2 mm. Kovové pojezdy zásuvek.; Rozměry: 600 x 420 x 550 mm (d x š x v) | C84: ks | D84: 1 | F84: Dodavatel doplní popis a pametry nabízeného zboží
A85: 63. | B85: Kancelářská židle otočná s kolečky; Popis: Ergonomická kancelářská židle otočná s výsokým opěrákem s kolečky. Výškově nastavitelný sedák, bederní opěrka a područky, samostatná síťovina na opěráku barva černá. Materál lakovaná ocel, plast. Hmotnost 17 kg, nosnost 120 kg.; Rozměry: 660/500 x 500 x 1000/1090 mm (d x š x v) | C85: ks | D85: 1 | F85: Dodavatel doplní popis a pametry nabízeného zboží
A86: 64. | B86: TV stolek s policemi; Popis: Televizní stolek s šesti policemi pod deskou. Materiál laminátová MDF deska, barva hnědá. Horní deska a nohy a police z desky tl. 20 mm. Horní deska opatřená ABS hranou tl. 2 mm, ostatní pohledové prvky opatřené ABS hranou tl. 1,5 mm. Záda z desky tl. 8 mm; Rozměry: 2200 x 400 x 400 mm (d x š x v) | C86: ks | D86: 2 | F86: Dodavatel doplní popis a pametry nabízeného zboží
A87: 65. | B87: Předsíňová stěna s věšáky; Popis: Předsíňová stěna s kovovými háčky se dvěmi úchytkami a policí, kotvená do stěny včetně montážního materiálu. Korpus a police z MDF desky, barva světle hnědá, tl. 20 mm. Hrany opatřeny ABS hranou tl. 1,5 mm. Háček (5 ks) se dvěmi úchytkami kotvená na desku věšáku včetně kotvení. Materiál nerezová ocel.; Rozměry: věšák: 660 x 240 x 1520 mm (d x š x v), háček: 70 x 30 x 47 mm (d x š x v) | C87: ks | D87: 2 | F87: Dodavatel doplní popis a pametry nabízeného zboží
A88: 66. | B88: Nástěné zrcadlo do předsíně (rozměr 1000 x 900 mm); Popis: Nástěné pravoúhlé zrcadlo k montáži na stěnu včetně kotvení. Materiál sklo s bezpečnostní fólií se zabroušenými hranami.; Rozměry: 1000 x 900 mm (š x v) | C88: ks | D88: 2 | F88: Dodavatel doplní popis a pametry nabízeného zboží
A89: 67. | B89: Botník s variabilními policemi a lavicí; Popis: Botník s variabilními policemi a lavicí. Botník je členěn na 6 polic pro uložení bot. Materiál laminovaná MDF deska, barva světle hnědá. Dno i půda z desky tl. 25 mm, z přední strany ABS hrana tl. 2 mm. Ostatní pohlednové prvky opatřeny ABS hranou tl. 1 mm. Boky korpusu z desky tl. 25 mm. Záda z desky tl. 10 mm. Police z desky tl. 20 mm s variabilním polohovatelností. Police a desky opatřeny hranou ABS tl. 2 mm. Dodávka včetvě rektifikačních nožiček. Sedák čalouněný potahvou látkou v barvě šedé. ; Rozměry: 1000 x 400 x 480 mm (d x š x v) | C89: ks | D89: 3 | F89: Dodavatel doplní popis a pametry nabízeného zboží
A90: 68. | B90: Vestavěná skříň policová plná s dveřmi rozdělenými na dvě části (výška 2000 mm); Popis: Skříň dvoudvéřová. Vybavená 5 ks variabilních polic. Materiál laminovaná MDF deska, barva světle hnědá. Dno i půda z desky tl. 25 mm, z přední strany ABS hrana tl. 2 mm. Ostatní pohlednové prvky opatřeny ABS hranou tl. 1 mm. Boky korpusu z desky tl. 18 mm. Záda z desky tl. 8 mm. Police z desky tl. 25 mm, nosnost 80 kg s variabilním polohovatelností. Police a desky opatřeny hranou ABS tl. 2 mm. Dodávka včetvě rektifikačních nožiček.; Rozměry: 6200 x 360 x 2515 mm (d x š x v) | C90: ks | D90: 1 | F90: Dodavatel doplní popis a pametry nabízeného zboží
A91: 69. | B91: Zrcadlo do koupelny (rozměr 600 x 900 mm); Popis: Nástěné pravoúhlé zrcadlo k montáži na stěnu včetně kotvení. Materiál sklo s bezpečnostní fólií se zabroušenými hranami.; Rozměry: Zrcadlo do koupelny (rozměr 600 x 900 mm) | C91: ks | D91: 3 | F91: Dodavatel doplní popis a pametry nabízeného zboží
A92: 70. | B92: Kovová garnyž na záclony; Popis: Roztažitelná kovová garnýž na záclony včetně montážního materiálu. Tyč garnýže o průměru min. 16 mm. Skládá se z galvanicky pokovené tyče, dvou koncovek, dvou konzol na zeď a žabky s kroužky.; Rozměry: nastavitelná délka 1550 – 2500 mm | C92: ks | D92: 17 | F92: Dodavatel doplní popis a pametry nabízeného zboží
A93: 71. | B93: Nástěnná police s konzolemi; Popis: Nástěnná police s konzolemi kotvené do zdi včetně kotvení. Materiál laminátová MDF deska, barva světle hnědá. Police z desky tl. 25 mm, opatřena ABS hranou tl. 2 mm. Nosnost 80 kg. Konzole dřevěné v barvě světle hnědé.; Rozměry: 1000 x 300 x 20 mm (d x š x v) | C93: ks | D93: 1 | F93: Dodavatel doplní popis a pametry nabízeného zboží
B94: Cena celkem bez DPH - Staňkov
A96: CENA CELKEM ZA VŠECHNY LOKALITY BEZ DPH | F96: =SUM(F25,F37,F47,F64,F79,F94) -> 0
A98: Součástí dodávky předmětu plnění jsou následující činnosti: • Dodání předmětu plnění (potřebného zařízení a komponentů) • Doprava a vyložení na místo plnění určené zadavatelem • Odborná instalace, montáž, sestavení. • Předání veškeré potřebné dokumentace k předmětu plnění v českém jazyce (veškeré technické dokumenty, záruční listy, certifikáty, montážní postupy, manuály, návody k obsluze a doporučení pro provoz zboží) • Zaškolení přebírající osoby v obsluze a údržbě předmětu plnění v potřebném rozsahu • Provedení praktického předvedení předmětu plnění a ukázka jeho funkčnosti v rámci předávacího a přejímacího řízení • Případná likvidace vzniklého odpadu Požadavky na záruční servis: • Záruka minimálně 24 měsíců. • Údaj o délce záruční doby doplní dodavatel do Krycího listu nabídky a do příslušných bodů Kupní smlouvy. Údaj o délce záruční doby musí být uveden v celých měsících. • Záruční doba začíná běžet ode dne protokolárního předání a převzetí zboží. Doba záruky se automaticky prodlužuje o počet dnů uplynulých od ohlášení závad do jejich odstranění. • Předání a převzetí případného vadného zboží bude probíhat v sídle zadavatele. • Záruční servis bude dodavatelem zajištěn v odborných servisech, „vadnou část“ zboží dodavatel protokolárně převezme do opravy po písemném odsouhlasení navrženého postupu osoby oprávněné ve věcech technických. • Garance servisního zásahu v době záručního servisu (tj. nástup na odstranění vad) v místě plnění nejpozději do 1 pracovního dne od okamžiku ohlášení závady (e-mailem, písemně). • Jednotlivé vady v záruční době musí být odstraněny nejpozději do 15 kalendářních dnů ode dne zahájení odstraňování vad, nedohodnou-li se osoby oprávněné ve věcech technických za smluvní strany písemně jinak. • Za záruční opravy není účtován materiál, práce servisního technika, cestovní či jiné náhrady. Tabulka bude doplněna technickými listy nabízeného zboží (v českém jazyce) a obrazovou dokumentací (fotodokumentací) nabízeného zboží.
A99: Svým podpisem stvrzuji, že výše uvedené údaje o nabízeném zboží jsou správné a závazné.
A100: V DOPLNÍ DODAVATEL dne DOPLNÍ DODAVATEL 2020 PODPIS DODAVATELE __________________________________ podpis oprávněné osoby jméno, příjmení, funkce, označení dodavatele DOPLNÍ DODAVATEL

Sheet STOD_A+C (hidden)
A1: 1AD.1.1 | B1: Architektonicko-stavební řešení | C1: ; Popis: | D1: ; Materiál: | E1: ; Rozměry:
A2: 10_VB | B2: Výrobky
A3: KP | B3: Klempířské prvky | C3: Sloupec1 | D3: Sloupec2 | E3: Sloupec3 | F3: Sloupec4 | G3: Sloupec5 | H3: Sloupec6 | I3: Sloupec7 | J3: Sloupec8
A4: 1A.P1-1.01 | B4: Okenní parapet | C4: Oplechování parapetu oken včetně doplňkového a montážního materiálu. | D4: Ocelový pozinkovaný plech, tl. 0,6 mm, exteriérový nátěr v odstínu RAL 7016 | E4: r.š. 330 mm | F4: ; Další specifikace viz Kniha klempířských prvků | G4: =CONCATENATE(B4,$C$1,C4,$D$1,D4,$E$1,E4,F4) -> Okenní parapet; Popis:Oplechování parapetu oken včetně doplňkového a montážního materiálu.; Materiál:Ocelový pozinkovaný plech, tl. 0,6 mm, exteriérový nátěr v odstínu RAL 7016; Rozměry:r.š. 330 mm ; Další specifikace viz Kniha klempířských prvků | H4: m | I4: 14.7 | J4: 474
A5: 1A.P1-1.02 | B5: Oplechování atiky | C5: Oplechování atiky, včetně doplňkového a montážního materiálu. | D5: Ocelový pozinkovaný plech, tl. 0,6 mm, exteriérový nátěr v odstínu RAL 7016 | E5: r.š. 860 mm | F5: ; Další specifikace viz Kniha klempířských prvků | G5: Oplechování atiky; Popis:Oplechování atiky, včetně doplňkového a montážního materiálu.; Materiál:Ocelový pozinkovaný plech, tl. 0,6 mm, exteriérový nátěr v odstínu RAL 7016; Rozměry:r.š. 860 mm ; Další specifikace viz Kniha klempířských prvků | H5: m | I5: 13.7 | J5: 1480
A6: 1A.P1-1.03 | B6: Oplechování atiky | C6: Oplechování atiky, včetně doplňkového a montážního materiálu. | D6: Ocelový pozinkovaný plech, tl. 0,6 mm, exteriérový nátěr v odstínu RAL 7016 | E6: r.š. 720 mm | F6: ; Další specifikace viz Kniha klempířských prvků | G6: Oplechování atiky; Popis:Oplechování atiky, včetně doplňkového a montážního materiálu.; Materiál:Ocelový pozinkovaný plech, tl. 0,6 mm, exteriérový nátěr v odstínu RAL 7016; Rozměry:r.š. 720 mm ; Další specifikace viz Kniha klempířských prvků | H6: m | I6: 14.1 | J6: 1100
A7: 1A.P1-1.04 | B7: Boční oplechování | C7: Boční oplechování, včetně doplňkového a montážního materiálu. | D7: Ocelový pozinkovaný plech, tl. 0,6 mm, exteriérový nátěr v odstínu RAL 7016 | E7: r.š. 435 mm | F7: ; Další specifikace viz Kniha klempířských prvků | G7: Boční oplechování; Popis:Boční oplechování, včetně doplňkového a montážního materiálu.; Materiál:Ocelový pozinkovaný plech, tl. 0,6 mm, exteriérový nátěr v odstínu RAL 7016; Rozměry:r.š. 435 mm ; Další specifikace viz Kniha klempířských prvků | H7: m | I7: 5.5 | J7: 860
A8: 1A.P1-1.05 | B8: Dešťový žlab | C8: Dešťový žlab, včetně doplňkového a montážního materiálu. | D8: Ocelový pozinkovaný plech, tl. 0,6 mm, exteriérový nátěr v odstínu RAL 7016 | E8: průměr 300 mm | F8: ; Další specifikace viz Kniha klempířských prvků | G8: Dešťový žlab; Popis:Dešťový žlab, včetně doplňkového a montážního materiálu.; Materiál:Ocelový pozinkovaný plech, tl. 0,6 mm, exteriérový nátěr v odstínu RAL 7016; Rozměry:průměr 300 mm ; Další specifikace viz Kniha klempířských prvků | H8: m | I8: 32.1 | J8: 725
A9: 1A.P1-1.06 | B9: Dešťový svod | C9: Dešťový svod, včetně doplňkového a montážního materiálu. | D9: Ocelový pozinkovaný plech, tl. 0,6 mm, exteriérový nátěr v odstínu RAL 7016 | E9: průměr 120 mm | F9: ; Další specifikace viz Kniha klempířských prvků | G9: Dešťový svod; Popis:Dešťový svod, včetně doplňkového a montážního materiálu.; Materiál:Ocelový pozinkovaný plech, tl. 0,6 mm, exteriérový nátěr v odstínu RAL 7016; Rozměry:průměr 120 mm ; Další specifikace viz Kniha klempířských prvků | H9: m | I9: 14.1 | J9: 919
A10: KP | B10: Zámečnické prvky
A11: 1A.Z1-1.01 | B11: Drátěné poplastované pletivo | C11: Oplocení z dratěného poplastovaného pletiva se sloupkami a obrubníkem. Velikost ok pletiva 55 x 55 mm. Nosné sloupky z švorové trubky 48 mm o síle stěny 1,5 mm. Sloupky po 2,5 m, opěry plotu na začátku, na konci na každém rohu a po každých 25 m. Základová patka se provádí pod každým nosným sloupkem do nezámrzné hloubky, velikost pakty 300 x 300 mm. Obrubník je uložen do rýhy s maltovým ložem. Výška obrubníku je 200 mm, je částečně zapuštěn do terénu. | D11: Poplastované plepletivo a sloupky, barva jehlová zeleň RAL 6005, obrubník: beton | E11: výška 1,8 m | F11: ; Další specifikace viz Kniha zámečnických prvků | G11: =CONCATENATE(B11,$C$1,C11,$D$1,D11,$E$1,E11,F11) -> Drátěné poplastované pletivo; Popis:Oplocení z dratěného poplastovaného pletiva se sloupkami a obrubníkem. Velikost ok pletiva 55 x 55 mm. Nosné sloupky z švorové trubky 48 mm o síle stěny 1,5 mm. Sloupky po 2,5 m, opěry plotu na začátku, na konci na každém rohu a po každých 25 m. Základová patka se provádí pod každým nosným sloupkem do nezámrzné hloubky, velikost pakty 300 x 300 mm. Obrubník je uložen do rýhy s maltovým ložem. Výška obrubníku je 200 mm, je částečně zapuštěn do terénu.; Materiál:Poplastované plepletivo a sloupky, barva jehlová zeleň RAL 6005, obrubník: beton; Rozměry:výška 1,8 m ; Další specifikace viz Kniha zámečnických prvků | H11: m | I11: 170.7 | J11: 1197
A12: TP | B12: Truhlářské prvky
A13: 1A.T1-1.01 | B13: Oddělující lehká dřevěná příčka | C13: Oddělující lehká dřevěná příčka, rošt ze smrkových doblovaných hranolů 40 x 40 mm spojené konstrukčními vruty se zápustnou hlavou, opláštěné laminátovou MDF deskou, vzor světlého dřeva s méně výraznou kresbou. Hranoly kotveny do stěny a stropu. Součástí příčky jsou uzamykatelné dveře o rozměru 1600 x 1970 mm, obložková polodrážková zárubeň materiál MDF, vložkový zámek + klika. | D13: rošt: smrkové hranoly, opláštění a dveře: MDF deska, zámek a klika: broušený nerez | E13: 2500 x 60 x 2300 mm (d x hl x v) | F13: ; Další specifikace viz Kniha truhlářských prvků | G13: =CONCATENATE(B13,$C$1,C13,$D$1,D13,$E$1,E13,F13) -> Oddělující lehká dřevěná příčka; Popis:Oddělující lehká dřevěná příčka, rošt ze smrkových doblovaných hranolů 40 x 40 mm spojené konstrukčními vruty se zápustnou hlavou, opláštěné laminátovou MDF deskou, vzor světlého dřeva s méně výraznou kresbou. Hranoly kotveny do stěny a stropu. Součástí příčky jsou uzamykatelné dveře o rozměru 1600 x 1970 mm, obložková polodrážková zárubeň materiál MDF, vložkový zámek + klika.; Materiál:rošt: smrkové hranoly, opláštění a dveře: MDF deska, zámek a klika: broušený nerez; Rozměry:2500 x 60 x 2300 mm (d x hl x v) ; Další specifikace viz Kniha truhlářských prvků | H13: ks | I13: 1 | J13: 23000
A14: 1A.T1-1.02 | B14: Kuchyňská linka tvaru U | C14: Kuchyňská linka tvaru U, sokl 80 mm, korpus z lamino desky tl. 18 mm, hrana z ABS tl. 2 mm. Horní i spodní skříňky plné, pracovní deska z laminátové desky tl. 38 mm, nerezový dřez s odkapávačem. Kování linky je kovové. Součástí kuchyňské linky je dřez s odkapávačem, varná deska se čtyřmi plotýnkami, trouba, lednička, mrazák a myčka. Spotřebiče energetiské třídy min. A přesně specifikovány vnitřního vybavení. Horní i spodní část je opatřená krycím panelem š. 50 mm. | D14: Korpus z lamina, pracovní deska z laminátové desky | E14: viz. obrazová příloha | F14: ; SPOTŘEBIČE OCENIT V KAPITOLE_Prvky vnitřního vybevení - Elektro a příslušenství ; Další specifikace viz Kniha truhlářských prvků | G14: =CONCATENATE(B14,$C$1,C14,$D$1,D14,$E$1,E14,F14) -> Kuchyňská linka tvaru U; Popis:Kuchyňská linka tvaru U, sokl 80 mm, korpus z lamino desky tl. 18 mm, hrana z ABS tl. 2 mm. Horní i spodní skříňky plné, pracovní deska z laminátové desky tl. 38 mm, nerezový dřez s odkapávačem. Kování linky je kovové. Součástí kuchyňské linky je dřez s odkapávačem, varná deska se čtyřmi plotýnkami, trouba, lednička, mrazák a myčka. Spotřebiče energetiské třídy min. A přesně specifikovány vnitřního vybavení. Horní i spodní část je opatřená krycím panelem š. 50 mm.; Materiál:Korpus z lamina, pracovní deska z laminátové desky; Rozměry:viz. obrazová příloha ; SPOTŘEBIČE OCENIT V KAPITOLE_Prvky vnitřního vybevení - Elektro a příslušenství ; Další specifikace viz Kniha truhlářských prvků | H14: ks | I14: 1 | J14: =231600*0.9 -> 208440
A15: OP | B15: Ostatní prvky
A16: 1A.X1-1.01 | B16: Venkovní rolety | C16: Venkovní hliníková roleta pro regulaci přirozeného osvětlení a zachycení slunečních paprsků s bočními vodícími lištami. Horní ocelový válcovaný profil upravený pozinkování o rozměru 58 x 56 mm zakrytý krycím plechem. Lamely hliníkové o šířce 80 mm s navíjecími mechanismy, textilními žebříčky a vytahovacími páskami. Boční vodící lišty o rozměru 20 x 20 mm v barvě stříbrná elox. Ovládání elektrické. | D16: hliník, barva stříbrný elox | E16: 1250x1750 mm (šxv) | F16: ; Další specifikace viz Kniha ostatních prvků | G16: =CONCATENATE(B16,$C$1,C16,$D$1,D16,$E$1,E16,F16) -> Venkovní rolety; Popis:Venkovní hliníková roleta pro regulaci přirozeného osvětlení a zachycení slunečních paprsků s bočními vodícími lištami. Horní ocelový válcovaný profil upravený pozinkování o rozměru 58 x 56 mm zakrytý krycím plechem. Lamely hliníkové o šířce 80 mm s navíjecími mechanismy, textilními žebříčky a vytahovacími páskami. Boční vodící lišty o rozměru 20 x 20 mm v barvě stříbrná elox. Ovládání elektrické.; Materiál:hliník, barva stříbrný elox; Rozměry:1250x1750 mm (šxv) ; Další specifikace viz Kniha ostatních prvků | H16: ks | I16: 6 | J16: 6125
A17: 1A.X1-1.02 | B17: Stahovací schody zateplené s požární odolností | C17: Stahovací schody zateplené s protipožární vložkou (EW 15 DP3). Schody jsou opatřeny brzdícím mechanismem proti prudkému otevření. Víko je sendvočové složeno z dřevěného rámu vyplněný izolačním materiálem opláštěný pozinkovaným plechem. Pohledová čast je lakovaná v bílé barvě a kryta ochrannou fólií. | D17: víko: dřevěný rám vyplněný izolantem opláštěný pozinkovaným plechem, pohledová část lakovaná, barva bílá, schody: kovové | E17: 600 x 800 mm (š x d) | F17: ; Další specifikace viz Kniha ostatních prvků | G17: =CONCATENATE(B17,$C$1,C17,$D$1,D17,$E$1,E17,F17) -> Stahovací schody zateplené s požární odolností; Popis:Stahovací schody zateplené s protipožární vložkou (EW 15 DP3). Schody jsou opatřeny brzdícím mechanismem proti prudkému otevření. Víko je sendvočové složeno z dřevěného rámu vyplněný izolačním materiálem opláštěný pozinkovaným plechem. Pohledová čast je lakovaná v bílé barvě a kryta ochrannou fólií.; Materiál:víko: dřevěný rám vyplněný izolantem opláštěný pozinkovaným plechem, pohledová část lakovaná, barva bílá, schody: kovové; Rozměry:600 x 800 mm (š x d) ; Další specifikace viz Kniha ostatních prvků | H17: ks | I17: 1 | J17: =14720*1.2 -> 17664
A18: 1A.X1-1.03 | B18: Oplocení z betonových štípaných tvarovek | C18: Oplocení z betonových štípaných tvarovek se zvhledem přírodního lomového kamene s dutinami pro uložení výztuže. Základový pás se provádí v celé délce plotu do nezámrzné hloubky, pas je nutné podsypat štěrkovým ložem (frakce 8-16) o výšce 50 mm. Mezi základ a zdivo je vložena hydroizolace, která je vložena nad úroveň budoucího terénu. | E18: výška 1,8 mm | F18: ; Další specifikace viz Kniha ostatních prvků | G18: =CONCATENATE(B18,$C$1,C18,$D$1,D18,$E$1,E18,F18) -> Oplocení z betonových štípaných tvarovek; Popis:Oplocení z betonových štípaných tvarovek se zvhledem přírodního lomového kamene s dutinami pro uložení výztuže. Základový pás se provádí v celé délce plotu do nezámrzné hloubky, pas je nutné podsypat štěrkovým ložem (frakce 8-16) o výšce 50 mm. Mezi základ a zdivo je vložena hydroizolace, která je vložena nad úroveň budoucího terénu.; Materiál:; Rozměry:výška 1,8 mm ; Další specifikace viz Kniha ostatních prvků | H18: m | I18: 98.5 | J18: 5500
A19: VV_N | B19: Prvky vnitřního vybevení - Nábytek a příslušenství
A20: 1A.VV_N_001 | B20: Čalouněné křeslo ušák | C20: Čalouněné křeslo ušák je tvořen z vlnonce, 2 cm kokosové vrstvy a 5 cm široké PUR pěny a čalouněná potahovou látkou v barvě šedé. Hmotnost křesla 23 kg. Doplňové rozměry křesla: hloubka 720 mm, výška sedu 470 mm, hloubka sedu 520 mm, šířka sedu 520 mm a výška opěrka 670 mm. | E20: 560 x 720 x 1080 mm (d x š x v) | F20: ; Další specifikace viz Kniha vnitřního vybavení - Kniha - prvků - Nábytek a příslušenství | G20: =CONCATENATE(B20,$C$1,C20,$E$1,E20,F20) -> Čalouněné křeslo ušák; Popis:Čalouněné křeslo ušák je tvořen z vlnonce, 2 cm kokosové vrstvy a 5 cm široké PUR pěny a čalouněná potahovou látkou v barvě šedé. Hmotnost křesla 23 kg. Doplňové rozměry křesla: hloubka 720 mm, výška sedu 470 mm, hloubka sedu 520 mm, šířka sedu 520 mm a výška opěrka 670 mm.; Rozměry:560 x 720 x 1080 mm (d x š x v) ; Další specifikace viz Kniha vnitřního vybavení - Kniha - prvků - Nábytek a příslušenství | H20: ks | I20: 6 | J20: 8736
A21: 1A.VV_N_002 | B21: Předsíňová stěna s věšáky | C21: Předsíňová stěna s kovovými háčky se dvěmi úchytkami a policí, kotvená do stěny včetně montážního materiálu. Korpus a police z MDF desky, barva světle hnědá, tl. 20 mm. Hrany optařeny ABS hranou tl. 1,5 mm. Háček (5 ks) se dvěmi úchytkami kotvená na desku věšáku včetně kotvení. Materiál nerezová ocel. | E21: věšák: 660 x 240 x 1520 mm (d x š x v), háček: 70 x 30 x 47 mm (d x š x v) | F21: ; Další specifikace viz Kniha vnitřního vybavení - Kniha - prvků - Nábytek a příslušenství | G21: Předsíňová stěna s věšáky; Popis:Předsíňová stěna s kovovými háčky se dvěmi úchytkami a policí, kotvená do stěny včetně montážního materiálu. Korpus a police z MDF desky, barva světle hnědá, tl. 20 mm. Hrany optařeny ABS hranou tl. 1,5 mm. Háček (5 ks) se dvěmi úchytkami kotvená na desku věšáku včetně kotvení. Materiál nerezová ocel.; Rozměry:věšák: 660 x 240 x 1520 mm (d x š x v), háček: 70 x 30 x 47 mm (d x š x v) ; Další specifikace viz Kniha vnitřního vybavení - Kniha - prvků - Nábytek a příslušenství | H21: ks | I21: 1 | J21: =1427*1.2 -> 1712.4
A22: 1A.VV_N_003 | B22: Nástěné zrcadlo do předsíně (rozměr 1000 x 900 mm) | C22: Nástěné pravoúhlé zrcadlo k montáži na stěnu včetně kotvení. Materiál sklo s bezpečnostní fólií se zabroušenými hranami. | E22: 1000 x 900 mm (š x v) | F22: ; Další specifikace viz Kniha vnitřního vybavení - Kniha - prvků - Nábytek a příslušenství | G22: Nástěné zrcadlo do předsíně (rozměr 1000 x 900 mm); Popis:Nástěné pravoúhlé zrcadlo k montáži na stěnu včetně kotvení. Materiál sklo s bezpečnostní fólií se zabroušenými hranami.; Rozměry:1000 x 900 mm (š x v) ; Další specifikace viz Kniha vnitřního vybavení - Kniha - prvků - Nábytek a příslušenství | H22: ks | I22: 1 | J22: =1000*0.9*1.2 -> 1080
A23: 1A.VV_N_004 | B23: Botník s variabilními policemi a lavicí | C23: Botník s variabilními policemi a lavicí. Botník je členěn na 12 polic pro uložení bot. Materiál laminovaná MDF deska, barva světle hnědá. Dno i půda z desky tl. 25 mm, z přední strany ABS hrana tl. 2 mm. Ostatní pohlednové prvky opatřeny ABS hranou tl. 1 mm. Boky korpusu z desky tl. 25 mm. Záda z desky tl. 10 mm. Police z desky tl. 20 mm s variabilním polohovatelností. Police a desky opatřeny hranou ABS tl. 2 mm. Dodávka včetvě rektifikačních nožiček. Sedák čalouněný potahvou látkou v barvě šedé. | E23: 1000 x 400 x 480 mm (d x š x v) | F23: ; Další specifikace viz Kniha vnitřního vybavení - Kniha - prvků - Nábytek a příslušenství | G23: Botník s variabilními policemi a lavicí; Popis:Botník s variabilními policemi a lavicí. Botník je členěn na 12 polic pro uložení bot. Materiál laminovaná MDF deska, barva světle hnědá. Dno i půda z desky tl. 25 mm, z přední strany ABS hrana tl. 2 mm. Ostatní pohlednové prvky opatřeny ABS hranou tl. 1 mm. Boky korpusu z desky tl. 25 mm. Záda z desky tl. 10 mm. Police z desky tl. 20 mm s variabilním polohovatelností. Police a desky opatřeny hranou ABS tl. 2 mm. Dodávka včetvě rektifikačních nožiček. Sedák čalouněný potahvou látkou v barvě šedé.; Rozměry:1000 x 400 x 480 mm (d x š x v) ; Další specifikace viz Kniha vnitřního vybavení - Kniha - prvků - Nábytek a příslušenství | H23: ks | I23: 1 | J23: =3090*1.2 -> 3708
A24: 1A.VV_N_005 | B24: Vestavěná skříň policová plná s dveřmi rozdělenými na dvě části (výška 2000 mm) | C24: Skříň dvoudvéřová. Vybavená 5 ks variabilních polic. Materiál laminovaná MDF deska, barva světle hnědá. Dno i půda z desky tl. 25 mm, z přední strany ABS hrana tl. 2 mm. Ostatní pohlednové prvky opatřeny ABS hranou tl. 1 mm. Boky korpusu z desky tl. 18 mm. Záda z desky tl. 8 mm. Police z desky tl. 25 mm, nosnost 80 kg s variabilním polohovatelností. Police a desky opatřeny hranou ABS tl. 2 mm. Dodávka včetvě rektifikačních nožiček. | E24: 1400 x 400 x 2000 mm (d x š x v) | F24: ; Další specifikace viz Kniha vnitřního vybavení - Kniha - prvků - Nábytek a příslušenství | G24: Vestavěná skříň policová plná s dveřmi rozdělenými na dvě části (výška 2000 mm); Popis:Skříň dvoudvéřová. Vybavená 5 ks variabilních polic. Materiál laminovaná MDF deska, barva světle hnědá. Dno i půda z desky tl. 25 mm, z přední strany ABS hrana tl. 2 mm. Ostatní pohlednové prvky opatřeny ABS hranou tl. 1 mm. Boky korpusu z desky tl. 18 mm. Záda z desky tl. 8 mm. Police z desky tl. 25 mm, nosnost 80 kg s variabilním polohovatelností. Police a desky opatřeny hranou ABS tl. 2 mm. Dodávka včetvě rektifikačních nožiček.; Rozměry:1400 x 400 x 2000 mm (d x š x v) ; Další specifikace viz Kniha vnitřního vybavení - Kniha - prvků - Nábytek a příslušenství | H24: ks | I24: 1 | J24: 21000
A25: 1A.VV_N_006 | B25: Skříňka do koupelny (výška 700 mm) | C25: Skřínka se čtyřmi zásuvkami do koupleny a nožičkami. Materiál laminátová MDF deska, barva bílá. Dno i půda z desky tl. 25 mm, z přední strany ABS hrana tl. 2 mm. Ostatní pohlednové prvky opatřeny ABS hranou tl. 1 mm. Boky korpusu z desky tl. 18 mm. Záda z desky tl. 8 mm. Police z desky tl. 25 mm, nosnost 50 kg. Police a desky opatřeny hranou ABS tl. 2 mm. Dodávka včetvě kovových nožiček a úchytek k zásuvkám. | E25: 400 x 400 x 700 mm (d x š x v) | F25: ; Další specifikace viz Kniha vnitřního vybavení - Kniha - prvků - Nábytek a příslušenství | G25: Skříňka do koupelny (výška 700 mm); Popis:Skřínka se čtyřmi zásuvkami do koupleny a nožičkami. Materiál laminátová MDF deska, barva bílá. Dno i půda z desky tl. 25 mm, z přední strany ABS hrana tl. 2 mm. Ostatní pohlednové prvky opatřeny ABS hranou tl. 1 mm. Boky korpusu z desky tl. 18 mm. Záda z desky tl. 8 mm. Police z desky tl. 25 mm, nosnost 50 kg. Police a desky opatřeny hranou ABS tl. 2 mm. Dodávka včetvě kovových nožiček a úchytek k zásuvkám.; Rozměry:400 x 400 x 700 mm (d x š x v) ; Další specifikace viz Kniha vnitřního vybavení - Kniha - prvků - Nábytek a příslušenství | H25: ks | I25: 1 | J25: =3990*1.2 -> 4788
A26: 1A.VV_N_007 | B26: Sklopné zrcadlo pro bezbariérové WC | C26: Sklopné nerezové zrcadlo na toalety pro tělesně postižené včetně kotvení. Kotveno pomocí montážní lišty. Naklánění zrcadla je ovládané pomocí páky na stěně pod umyvadlem. Materiál sklo s bezpečnostní fólií se zabroušenými hranami a rám a páka z nerezy. | E26: 600 x 400 mm (š x v) | F26: ; Další specifikace viz Kniha vnitřního vybavení - Kniha - prvků - Nábytek a příslušenství | G26: Sklopné zrcadlo pro bezbariérové WC; Popis:Sklopné nerezové zrcadlo na toalety pro tělesně postižené včetně kotvení. Kotveno pomocí montážní lišty. Naklánění zrcadla je ovládané pomocí páky na stěně pod umyvadlem. Materiál sklo s bezpečnostní fólií se zabroušenými hranami a rám a páka z nerezy.; Rozměry:600 x 400 mm (š x v) ; Další specifikace viz Kniha vnitřního vybavení - Kniha - prvků - Nábytek a příslušenství | H26: ks | I26: 1 | J26: 3630
A27: 1A.VV_N_008 | B27: Sklopné sedátko do sprchy | C27: Sklopné sedátko do sprchy včetně montážního materiálu. Nosná konstrukce z nerezové oceli, sedátkou z odolného plastu jedohuše udržovatlené. Maximální nosnost 200 kg. | E27: 440 x 470 mm (d x š) | F27: ; Další specifikace viz Kniha vnitřního vybavení - Kniha - prvků - Nábytek a příslušenství | G27: Sklopné sedátko do sprchy; Popis:Sklopné sedátko do sprchy včetně montážního materiálu. Nosná konstrukce z nerezové oceli, sedátkou z odolného plastu jedohuše udržovatlené. Maximální nosnost 200 kg.; Rozměry:440 x 470 mm (d x š) ; Další specifikace viz Kniha vnitřního vybavení - Kniha - prvků - Nábytek a příslušenství | H27: ks | I27: 1 | J27: =3567*1.2 -> 4280.4
A28: 1A.VV_N_009 | B28: Police do skladu (výška 2000 mm) | C28: Police do skladu s pěti policemi včetně montážního materiálu. Police jsou výškově přestavitelné v rastru 138 mm. Šedý policový regál je rychle smontovatelný bez spojovacího materiálu. Police se jednoduchým způsobem nasadí na sloupky. Možnost spojování do polí a řad vedle sebe i za sebou pro zvýšení celkové tuhosti. Konstrukce je povrchově upravena práškovým lakem šedé barvy. Nohy jsou vybaveny plastovými patkami pro ochranu podlahové krytiny. | E28: 2000 x 600 x 2000 mm (d x š x v) | F28: ; Další specifikace viz Kniha vnitřního vybavení - Kniha - prvků - Nábytek a příslušenství | G28: Police do skladu (výška 2000 mm); Popis:Police do skladu s pěti policemi včetně montážního materiálu. Police jsou výškově přestavitelné v rastru 138 mm. Šedý policový regál je rychle smontovatelný bez spojovacího materiálu. Police se jednoduchým způsobem nasadí na sloupky. Možnost spojování do polí a řad vedle sebe i za sebou pro zvýšení celkové tuhosti. Konstrukce je povrchově upravena práškovým lakem šedé barvy. Nohy jsou vybaveny plastovými patkami pro ochranu podlahové krytiny.; Rozměry:2000 x 600 x 2000 mm (d x š x v) ; Další specifikace viz Kniha vnitřního vybavení - Kniha - prvků - Nábytek a příslušenství | H28: ks | I28: 2 | J28: 20000
A29: 1A.VV_N_010 | B29: Police do skladu tvaru "L" (výška 2000 mm) | C29: Police do skladu tvaru "L" s pěti police včetně montážního materiálu. Police jsou výškově přestavitelné v rastru 138 mm. Šedý policový regál je rychle smontovatelný bez spojovacího materiálu. Police se jednoduchým způsobem nasadí na sloupky. Možnost spojování do polí a řad vedle sebe i za sebou pro zvýšení celkové tuhosti. Konstrukce je povrchově upravena práškovým lakem šedé barvy. Nohy jsou vybaveny plastovými patkami pro ochranu podlahové krytiny. | E29: 1810/1610 x 600 x 2000 mm (d x š x v) | F29: ; Další specifikace viz Kniha vnitřního vybavení - Kniha - prvků - Nábytek a příslušenství | G29: Police do skladu tvaru "L" (výška 2000 mm); Popis:Police do skladu tvaru "L" s pěti police včetně montážního materiálu. Police jsou výškově přestavitelné v rastru 138 mm. Šedý policový regál je rychle smontovatelný bez spojovacího materiálu. Police se jednoduchým způsobem nasadí na sloupky. Možnost spojování do polí a řad vedle sebe i za sebou pro zvýšení celkové tuhosti. Konstrukce je povrchově upravena práškovým lakem šedé barvy. Nohy jsou vybaveny plastovými patkami pro ochranu podlahové krytiny.; Rozměry:1810/1610 x 600 x 2000 mm (d x š x v) ; Další specifikace viz Kniha vnitřního vybavení - Kniha - prvků - Nábytek a příslušenství | H29: ks | I29: 1 | J29: 18100
A30: 1A.VV_N_011 | B30: Kovová garnyž na záclony (délka 1450 mm) | C30: Kovová garnyž na záclony včetně montážního materiálu. Tyč garnyže o púrůměru 16 mm. Skládá se z galvanicky pokovený tyče, dvou koncovek, dvou konzol na zeď a žabky s kroužky. | E30: délka 1450 mm | F30: ; Další specifikace viz Kniha vnitřního vybavení - Kniha - prvků - Nábytek a příslušenství | G30: Kovová garnyž na záclony (délka 1450 mm); Popis:Kovová garnyž na záclony včetně montážního materiálu. Tyč garnyže o púrůměru 16 mm. Skládá se z galvanicky pokovený tyče, dvou koncovek, dvou konzol na zeď a žabky s kroužky.; Rozměry:délka 1450 mm ; Další specifikace viz Kniha vnitřního vybavení - Kniha - prvků - Nábytek a příslušenství | H30: ks | I30: 10 | J30: =946*1.2 -> 1135.2
A31: 1A.VV_N_012 | B31: Kovová garnyž na záclony (délka 1950 mm) | C31: Kovová garnyž na záclony včetně montážního materiálu. Tyč garnyže o púrůměru 16 mm. Skládá se z galvanicky pokovený tyče, dvou koncovek, dvou konzol na zeď a žabky s kroužky. | E31: délka 1950 mm | F31: ; Další specifikace viz Kniha vnitřního vybavení - Kniha - prvků - Nábytek a příslušenství | G31: Kovová garnyž na záclony (délka 1950 mm); Popis:Kovová garnyž na záclony včetně montážního materiálu. Tyč garnyže o púrůměru 16 mm. Skládá se z galvanicky pokovený tyče, dvou koncovek, dvou konzol na zeď a žabky s kroužky.; Rozměry:délka 1950 mm ; Další specifikace viz Kniha vnitřního vybavení - Kniha - prvků - Nábytek a příslušenství | H31: ks | I31: 2 | J31: =1272*1.2 -> 1526.4
A32: 1A.VV_N_013 | B32: Sada kuchyňského nádobí | C32: Sada kuchyňského nádobí obsahuje hrnec o průměru 16 cm s obsahem 2,1 l, hrnec o průměru 20 cm s obsahem 3,6 l, hrnec o průměru 24 cm s obsahem 5,7 l, keramická pánev, pekáč, tři nože, nůž na pečivo, čtyři vařečky, dvě naběračky, cedník, dvě škrabky, tři prkénka na maso, pečivo, zelenivu a ovoce, struhadlo, dvanáct hlubokých talířů, mělkých, dezertních a misek, tři mísy, dvanáct skleniček a hrnků, dvě sady příborů. | E32: - - - | F32: ; Další specifikace viz Kniha vnitřního vybavení - Kniha - prvků - Nábytek a příslušenství | G32: Sada kuchyňského nádobí; Popis:Sada kuchyňského nádobí obsahuje hrnec o průměru 16 cm s obsahem 2,1 l, hrnec o průměru 20 cm s obsahem 3,6 l, hrnec o průměru 24 cm s obsahem 5,7 l, keramická pánev, pekáč, tři nože, nůž na pečivo, čtyři vařečky, dvě naběračky, cedník, dvě škrabky, tři prkénka na maso, pečivo, zelenivu a ovoce, struhadlo, dvanáct hlubokých talířů, mělkých, dezertních a misek, tři mísy, dvanáct skleniček a hrnků, dvě sady příborů.; Rozměry: - - - ; Další specifikace viz Kniha vnitřního vybavení - Kniha - prvků - Nábytek a příslušenství | H32: ks | I32: 1 | J32: 13000
A33: 1A.VV_N_014 | B33: Termoport | C33: Termoport pro uskladnění pokrmů určených pro přepravu. Termoport je nevyhřívaný, čelní plnění s nasazovacími dvířky. Uzavírání pomocí záklopných uzávěrů zapuštěných do čelních stěnkorpusu, vnitřní prostor umožňuje uložení 12 párů vylisovaných drážek se svislou roztečí 39 mm k zasouvání gastro nádob, praktických držák popisovacích karet a ergonomická madla s neklouzavými plastovými úchyty. Materiál polypropylen, polyamid a chromniklová ocel. Hmotnost 14 kg. | E33: 630 x 425 x 660 mm | F33: ; Další specifikace viz Kniha vnitřního vybavení - Kniha - prvků - Nábytek a příslušenství | G33: Termoport; Popis:Termoport pro uskladnění pokrmů určených pro přepravu. Termoport je nevyhřívaný, čelní plnění s nasazovacími dvířky. Uzavírání pomocí záklopných uzávěrů zapuštěných do čelních stěnkorpusu, vnitřní prostor umožňuje uložení 12 párů vylisovaných drážek se svislou roztečí 39 mm k zasouvání gastro nádob, praktických držák popisovacích karet a ergonomická madla s neklouzavými plastovými úchyty. Materiál polypropylen, polyamid a chromniklová ocel. Hmotnost 14 kg.; Rozměry:630 x 425 x 660 mm ; Další specifikace viz Kniha vnitřního vybavení - Kniha - prvků - Nábytek a příslušenství | H33: ks | I33: 2 | J33: =16081 -> 16081
A34: 1A.VV_N_015 | B34: Psací stůl pro personál | C34: Pracovní stůl obdélníkový bez zásuvek. Materiál laminátová MDF deska, barva světle hnědá. Deska tl. 18 mm. Deska opatřená ABS hranou tl. 2 mm. Nohy stolu hliníkové, povrchová úprava práškovým vypalovacím lakem v odstínu štříbrno šedá. | E34: 1200 x 700 x 740 mm (d x š x v) | F34: ; Další specifikace viz Kniha vnitřního vybavení - Kniha - prvků - Nábytek a příslušenství | G34: Psací stůl pro personál; Popis:Pracovní stůl obdélníkový bez zásuvek. Materiál laminátová MDF deska, barva světle hnědá. Deska tl. 18 mm. Deska opatřená ABS hranou tl. 2 mm. Nohy stolu hliníkové, povrchová úprava práškovým vypalovacím lakem v odstínu štříbrno šedá.; Rozměry:1200 x 700 x 740 mm (d x š x v) ; Další specifikace viz Kniha vnitřního vybavení - Kniha - prvků - Nábytek a příslušenství | H34: ks | I34: 1 | J34: 5220
A35: 1A.VV_N_016 | B35: Zásuvkový díl uzamykatelný | C35: Kancelářský kontejner volně stojící se čtyřmi zásuvkami uzamykatelný na plastových kolečkách. V čele horní zásuvky umístěný zámek, jednotlivé zásuvky opatřené kovovými úchytkami. Materiál laminátová MDF deska, barva světle hnědá. Deska tl. 18 mm. Deska opatřená ABS hranou tl. 2 mm. Kovové pojezdy zásuvek. | E35: 600 x 420 x 550 mm (d x š x v) | F35: ; Další specifikace viz Kniha vnitřního vybavení - Kniha - prvků - Nábytek a příslušenství | G35: Zásuvkový díl uzamykatelný; Popis:Kancelářský kontejner volně stojící se čtyřmi zásuvkami uzamykatelný na plastových kolečkách. V čele horní zásuvky umístěný zámek, jednotlivé zásuvky opatřené kovovými úchytkami. Materiál laminátová MDF deska, barva světle hnědá. Deska tl. 18 mm. Deska opatřená ABS hranou tl. 2 mm. Kovové pojezdy zásuvek.; Rozměry:600 x 420 x 550 mm (d x š x v) ; Další specifikace viz Kniha vnitřního vybavení - Kniha - prvků - Nábytek a příslušenství | H35: ks | I35: 1 | J35: 5070
A36: 1A.VV_N_017 | B36: Nastavitelný držák na počítač pod stůl | C36: Nastavitelný držák na počítač pod stůl včetně montážního materiálu. Materiál ocel se stříbrným lakem. Nosnost do 4,5 kg. | E36: 135 - 250 x 300 - 458 mm (š x v) | F36: ; Další specifikace viz Kniha vnitřního vybavení - Kniha - prvků - Nábytek a příslušenství | G36: Nastavitelný držák na počítač pod stůl; Popis:Nastavitelný držák na počítač pod stůl včetně montážního materiálu. Materiál ocel se stříbrným lakem. Nosnost do 4,5 kg.; Rozměry:135 - 250 x 300 - 458 mm (š x v) ; Další specifikace viz Kniha vnitřního vybavení - Kniha - prvků - Nábytek a příslušenství | H36: ks | I36: 1 | J36: 1203
A37: 1A.VV_N_018 | B37: Kancelářská židle otočná s kolečky | C37: Ergonomická kancelářská židle otočná s výsokým opěrákem s kolečky. Výškově nastavitelný sedák, bederní opěrka a područky, samostatná síťovina na opěráku barva černá. Materál lakovaná ocel, plast. Hmotnost 17 kg, nosnost 120 kg. | E37: 660/500 x 500 x 1000/1090 mm (d x š x v) | F37: ; Další specifikace viz Kniha vnitřního vybavení - Kniha - prvků - Nábytek a příslušenství | G37: Kancelářská židle otočná s kolečky; Popis:Ergonomická kancelářská židle otočná s výsokým opěrákem s kolečky. Výškově nastavitelný sedák, bederní opěrka a područky, samostatná síťovina na opěráku barva černá. Materál lakovaná ocel, plast. Hmotnost 17 kg, nosnost 120 kg.; Rozměry:660/500 x 500 x 1000/1090 mm (d x š x v) ; Další specifikace viz Kniha vnitřního vybavení - Kniha - prvků - Nábytek a příslušenství | H37: ks | I37: 1 | J37: =3900 -> 3900
A38: 1A.VV_N_019 | B38: Šatní skříň s policemi a tyčí uzamykatelná (výška 2000 mm) | C38: Skříň dvoudvéřová, dvoudílná - dělená na dvě části. 1/2 vybavená šatní tyčí a policí a 1/2 vybavená 5 ks variabilních polic. Materiál laminovaná MDF deska, barva světle hnědá. Dno i půda z desky tl. 25 mm, z přední strany ABS hrana tl. 2 mm. Ostatní pohledné prvky opatřeny ABS hranou tl. 1 mm. Boky korpusu z desky tl. 18 mm. Záda desky tl. 8 mm. Police z desky tl. 25 mm. Police a desky opatřeny hranou ABS tl. 2 mm. | E38: 1700 x 600 x 2000 mm (d x š x v) | F38: ; Další specifikace viz Kniha vnitřního vybavení - Kniha - prvků - Nábytek a příslušenství | G38: Šatní skříň s policemi a tyčí uzamykatelná (výška 2000 mm); Popis:Skříň dvoudvéřová, dvoudílná - dělená na dvě části. 1/2 vybavená šatní tyčí a policí a 1/2 vybavená 5 ks variabilních polic. Materiál laminovaná MDF deska, barva světle hnědá. Dno i půda z desky tl. 25 mm, z přední strany ABS hrana tl. 2 mm. Ostatní pohledné prvky opatřeny ABS hranou tl. 1 mm. Boky korpusu z desky tl. 18 mm. Záda desky tl. 8 mm. Police z desky tl. 25 mm. Police a desky opatřeny hranou ABS tl. 2 mm.; Rozměry:1700 x 600 x 2000 mm (d x š x v) ; Další specifikace viz Kniha vnitřního vybavení - Kniha - prvků - Nábytek a příslušenství | H38: ks | I38: 1 | J38: 25500
A39: 1A.VV_N_020 | B39: Nástěnná police s konzolemi | C39: Nástěnná police s konzolemi kotvené do zdi včetně kotvení. Materiál laminátová MDF deska, barva světle hnědá. Police z desky tl. 25 mm, opatřena ABS hranou tl. 2 mm. Nosnost 80 kg. Konzole dřevěné v barvě světle hnědé. | E39: 1000 x 300 x 20 mm (d x š x v) | F39: ; Další specifikace viz Kniha vnitřního vybavení - Kniha - prvků - Nábytek a příslušenství | G39: Nástěnná police s konzolemi; Popis:Nástěnná police s konzolemi kotvené do zdi včetně kotvení. Materiál laminátová MDF deska, barva světle hnědá. Police z desky tl. 25 mm, opatřena ABS hranou tl. 2 mm. Nosnost 80 kg. Konzole dřevěné v barvě světle hnědé.; Rozměry:1000 x 300 x 20 mm (d x š x v) ; Další specifikace viz Kniha vnitřního vybavení - Kniha - prvků - Nábytek a příslušenství | H39: ks | I39: 1 | J39: =530*1.2 -> 636
A40: 1A.VV_N_021 | B40: Sklopná vana | C40: Nastavitelná vana s digitálním panelem, kontrolou teploty vody, desinfekčním programem a perličkovými tryskami. Technické parametry vnitřní délka 1850 mm, vnitřní šířka 550 mm, hloubka 420 mm, nosnost 160 kg, vzduchová masáž, 12 trysek, napájení 230 V. | E40: 2090 x 820 x 635 - 1035 mm (d x š x v) | F40: ; Další specifikace viz Kniha vnitřního vybavení - Kniha - prvků - Nábytek a příslušenství | G40: Sklopná vana; Popis:Nastavitelná vana s digitálním panelem, kontrolou teploty vody, desinfekčním programem a perličkovými tryskami. Technické parametry vnitřní délka 1850 mm, vnitřní šířka 550 mm, hloubka 420 mm, nosnost 160 kg, vzduchová masáž, 12 trysek, napájení 230 V.; Rozměry:2090 x 820 x 635 - 1035 mm (d x š x v) ; Další specifikace viz Kniha vnitřního vybavení - Kniha - prvků - Nábytek a příslušenství | H40: ks | I40: 1 | J40: 200000
A41: 1A.VV_N_022 | B41: Sklopná madla k WC | C41: Sklopná madla k WC včetně montážníh materiálu. Madla jsou z nerezi. Nosnost 120 kg. | E41: délka madla 813 mm | F41: ; Další specifikace viz Kniha vnitřního vybavení - Kniha - prvků - Nábytek a příslušenství | G41: Sklopná madla k WC; Popis:Sklopná madla k WC včetně montážníh materiálu. Madla jsou z nerezi. Nosnost 120 kg.; Rozměry:délka madla 813 mm ; Další specifikace viz Kniha vnitřního vybavení - Kniha - prvků - Nábytek a příslušenství | H41: ks | I41: 2 | J41: =2488 -> 2488
A42: 1A.VV_N_023 | B42: Trezor pro personál | C42: Trezor s elektronickým zámkem. Materiál ocel, korpus 1,5 mm, dveře 4 mm, povrchová úprava práškovaným lakem v barvě šedé. Možné upevnit na zeď. Provoz trezeru je za pomoci 4 běžných baterií (1,5 V). | E42: 350 x 250 x 250 mm (d x š x v) | F42: ; Další specifikace viz Kniha vnitřního vybavení - Kniha - prvků - Nábytek a příslušenství | G42: Trezor pro personál; Popis:Trezor s elektronickým zámkem. Materiál ocel, korpus 1,5 mm, dveře 4 mm, povrchová úprava práškovaným lakem v barvě šedé. Možné upevnit na zeď. Provoz trezeru je za pomoci 4 běžných baterií (1,5 V).; Rozměry:350 x 250 x 250 mm (d x š x v) ; Další specifikace viz Kniha vnitřního vybavení - Kniha - prvků - Nábytek a příslušenství | H42: ks | I42: 1 | J42: =1259 -> 1259
A43: VV_E | B43: Prvky vnitřního vybevení - Elektro a příslušenství
A44: 1A.VV_E_001 | B44: Myčka vestavěná | C44: Kapacita myčky 13 sad nádobí, 2 úložné koše, spotřeba vody 11 l, AQUA STOP proti přetečení, 2 ostřikovací ramena, 4 programy: Eco, Intenzivní, Normální, Oplachování, mycí teploty: 40-70°C, energetická třída A+, účinnost mytí A, účinnost sušení A, hlučnost 49 dB(A), spotřeba energie: 1,04 kWh. | E44: 595 x 570 x 820 mm | F44: ; Další specifikace viz Kniha vnitřního vybavení - Kniha - prvků - Elektro a příslušenství | G44: =CONCATENATE(B44,$C$1,C44,$E$1,E44,F44) -> Myčka vestavěná; Popis:Kapacita myčky 13 sad nádobí, 2 úložné koše, spotřeba vody 11 l, AQUA STOP proti přetečení, 2 ostřikovací ramena, 4 programy: Eco, Intenzivní, Normální, Oplachování, mycí teploty: 40-70°C, energetická třída A+, účinnost mytí A, účinnost sušení A, hlučnost 49 dB(A), spotřeba energie: 1,04 kWh.; Rozměry:595 x 570 x 820 mm ; Další specifikace viz Kniha vnitřního vybavení - Kniha - prvků - Elektro a příslušenství | H44: ks | I44: 1 | J44: 15000
A45: 1A.VV_E_002 | B45: Varná deska vestavěná | C45: Sklokeramická varná deska, 4 highlight varné zóny, dotykové ovládání, 9 stupňů výkonu, kontrolky provozu a zbytkového tepla, dětská pojistka, bez rámečku - rovné hrany. | E45: 590 x 520 x 46 mm | F45: ; Další specifikace viz Kniha vnitřního vybavení - Kniha - prvků - Elektro a příslušenství | G45: Varná deska vestavěná; Popis:Sklokeramická varná deska, 4 highlight varné zóny, dotykové ovládání, 9 stupňů výkonu, kontrolky provozu a zbytkového tepla, dětská pojistka, bez rámečku - rovné hrany.; Rozměry:590 x 520 x 46 mm ; Další specifikace viz Kniha vnitřního vybavení - Kniha - prvků - Elektro a příslušenství | H45: ks | I45: 1 | J45: 12000
A46: 1A.VV_E_003 | B46: Sušička na 8 kg prádla | C46: Sušička, min. 8kg prádla, kondenzační s tepelným čerpadlem, min. třída A, invertorový motor. | E46: 600 x 600 x 900 mm | F46: ; Další specifikace viz Kniha vnitřního vybavení - Kniha - prvků - Elektro a příslušenství | G46: Sušička na 8 kg prádla; Popis:Sušička, min. 8kg prádla, kondenzační s tepelným čerpadlem, min. třída A, invertorový motor.; Rozměry:600 x 600 x 900 mm ; Další specifikace viz Kniha vnitřního vybavení - Kniha - prvků - Elektro a příslušenství | H46: ks | I46: 1 | J46: 15000
A47: 1A.VV_E_004 | B47: Kuchyňský robot | C47: Robot s celokovovým tělem a kovovými převody, planetární systém hnětení, míchání a šlehání zaručuje bezezbytkové promíchání obsahu mísy, příslušenství: míchací metla, šlehací balónová metla, hnětací hák, mlýnek na maso se dvěma mlecími disky - hrubý 8mm a jemný 3mm, nástavec na plnění uzenářských produktů, kráječ a struhadlo se 3 vyměnitelnými nástavci pro hrubé, jemné a plátkové strouhání, kapacita pro přípravu až 1,5 kg těsta, šlehání až 8 vaječných bílků, nerezová mísa o objemu 4,5 l s dvěma madly, 8 rychlostí, regulace rychlosti otáček, bajonetový systém uchycení nástavců umožňuje rychlé sestavení i výměnu, odnímatelná mísa a příslušenství pro snadné mytí i v myčce, výkyvné rameno pro snadnou manipulaci a pohodlnější výměnu nástavců, aretační pojistka v horní poloze výkyvného ramene, protiskluzové nožky, zabraňující pohybu robotu při používání, tepelná pojistka proti přehřátí. | E47: 270 x 350 x 360 mm | F47: ; Další specifikace viz Kniha vnitřního vybavení - Kniha - prvků - Elektro a příslušenství | G47: Kuchyňský robot; Popis:Robot s celokovovým tělem a kovovými převody, planetární systém hnětení, míchání a šlehání zaručuje bezezbytkové promíchání obsahu mísy, příslušenství: míchací metla, šlehací balónová metla, hnětací hák, mlýnek na maso se dvěma mlecími disky - hrubý 8mm a jemný 3mm, nástavec na plnění uzenářských produktů, kráječ a struhadlo se 3 vyměnitelnými nástavci pro hrubé, jemné a plátkové strouhání, kapacita pro přípravu až 1,5 kg těsta, šlehání až 8 vaječných bílků, nerezová mísa o objemu 4,5 l s dvěma madly, 8 rychlostí, regulace rychlosti otáček, bajonetový systém uchycení nástavců umožňuje rychlé sestavení i výměnu, odnímatelná mísa a příslušenství pro snadné mytí i v myčce, výkyvné rameno pro snadnou manipulaci a pohodlnější výměnu nástavců, aretační pojistka v horní poloze výkyvného ramene, protiskluzové nožky, zabraňující pohybu robotu při používání, tepelná pojistka proti přehřátí.; Rozměry:270 x 350 x 360 mm ; Další specifikace viz Kniha vnitřního vybavení - Kniha - prvků - Elektro a příslušenství | H47: ks | I47: 1 | J47: 4990
A48: 1A.VV_E_005 | B48: Vestavěná trouba | C48: Multifunkční horkovzdušná elektrická trouba objem 60l. Samostatná trouba s pravým horkým vzduchem v energetické třídě A, funkce rozmrazování, displej s digitálním časovačem - nastavení minutky, denního času, konce pečení a doby pečení, možnost péci na 2 úrovních najednou, uvnitř trouby vysoce lesklý smalt pro snadné čištění, nerezové provedení. | E48: 594 x 540 x 589 mm | F48: ; Další specifikace viz Kniha vnitřního vybavení - Kniha - prvků - Elektro a příslušenství | G48: Vestavěná trouba; Popis:Multifunkční horkovzdušná elektrická trouba objem 60l. Samostatná trouba s pravým horkým vzduchem v energetické třídě A, funkce rozmrazování, displej s digitálním časovačem - nastavení minutky, denního času, konce pečení a doby pečení, možnost péci na 2 úrovních najednou, uvnitř trouby vysoce lesklý smalt pro snadné čištění, nerezové provedení.; Rozměry:594 x 540 x 589 mm ; Další specifikace viz Kniha vnitřního vybavení - Kniha - prvků - Elektro a příslušenství | H48: ks | I48: 1 | J48: 13000
A49: 1A.VV_E_006 | B49: Elektronicky polohovatelná postel | C49: Elektricky ovládané lůžko s dřevěným obložením, 4 dílnou ložnou plochou, postranicemi, zabraňující pádu z lůžka, výškové nastavení (od 38 do 86 cm). Nastavení výšky lůžka a náklonu jednotlivých dílů ložné plochy se provádí pomocí ovladače. Pasivní (pěnovou) antidekubitní matraci – působí preventivně proti vzniku dekubitů (proleženin). Je vyrobená z polyuretanové pěny se sníženou hořlavostí. Jádro je profilované s Flex-efektem pro dobré rozložení váhy pacienta. Má vyztužené okraje. Snímatelný potah vyrobený vysoko frekvenčním svařováním. Aktivní matraci – pro prevenci proleženin 2. stupně. Aktivní antidekubitní matrace se používaná v kombinaci s běžnou matrací. Interval výměny vzduchu 10 min. Nastavitelný tlak v matraci podle váhy pacienta, volba dynamického/statického režimu, signalizace nízkého tlaku. CPR ventil, zvukový alarm výpadku napájení. Hrazdu a rukojeť. Nosnost do 160 kg. | E49: 103 x 207 x 40-80 mm | F49: ; Další specifikace viz Kniha vnitřního vybavení - Kniha - prvků - Elektro a příslušenství | G49: Elektronicky polohovatelná postel; Popis:Elektricky ovládané lůžko s dřevěným obložením, 4 dílnou ložnou plochou, postranicemi, zabraňující pádu z lůžka, výškové nastavení (od 38 do 86 cm). Nastavení výšky lůžka a náklonu jednotlivých dílů ložné plochy se provádí pomocí ovladače. Pasivní (pěnovou) antidekubitní matraci – působí preventivně proti vzniku dekubitů (proleženin). Je vyrobená z polyuretanové pěny se sníženou hořlavostí. Jádro je profilované s Flex-efektem pro dobré rozložení váhy pacienta. Má vyztužené okraje. Snímatelný potah vyrobený vysoko frekvenčním svařováním. Aktivní matraci – pro prevenci proleženin 2. stupně. Aktivní antidekubitní matrace se používaná v kombinaci s běžnou matrací. Interval výměny vzduchu 10 min. Nastavitelný tlak v matraci podle váhy pacienta, volba dynamického/statického režimu, signalizace nízkého tlaku. CPR ventil, zvukový alarm výpadku napájení. Hrazdu a rukojeť. Nosnost do 160 kg.; Rozměry:103 x 207 x 40-80 mm ; Další specifikace viz Kniha vnitřního vybavení - Kniha - prvků - Elektro a příslušenství | H49: ks | I49: 2 | J49: 35000
A50: 1A.VV_E_007 | B50: Notebook | C50: Notebook, 15,4 “ LCD, 8 GB RAM, 500 GB HDD, procesor i3 a vyšší, Windows 10 Pro, MS Office 2016 Home and Bussines CZ. | E50: - - - | F50: ; Další specifikace viz Kniha vnitřního vybavení - Kniha - prvků - Elektro a příslušenství | G50: Notebook; Popis:Notebook, 15,4 “ LCD, 8 GB RAM, 500 GB HDD, procesor i3 a vyšší, Windows 10 Pro, MS Office 2016 Home and Bussines CZ.; Rozměry: - - - ; Další specifikace viz Kniha vnitřního vybavení - Kniha - prvků - Elektro a příslušenství | H50: ks | I50: 1 | J50: 33590
A51: 1A.VV_E_008 | B51: Tiskárna na A4 | C51: Malá tiskárna - Funkce: černobílý laserový tisk, kopírování, skenování, fax, Formát: A4, rozlišení tisku: 1200dpi, ovládání: dotykový barevný grafický displej, velikost paměti: 256 MB, rychlost tisku: 38 Str./min., doba tisku první strany: 5,7s, oboustranný tisk: automatický , vstupní zásobník: 250 listů, víceúčelový zásobník: 100 listů, výstupní zásobník: 150 listů, gramáž média: 60 – 175 g/m2, rozlišení kopírování: 600x600dpi, zoom kopírování: 25 – 400%, rozlišení skenování: 1200dpi, podavač skeneru: oboustranný 50 listů, oboustranné jednoprůchodové skenování fumkce skeneru: skenování do e-mailu, do síťové složky, do USB, připojení: USB 2.0, Ethernet 10/100/1000T, hostitelský USB port, jazyky tiskárny: PCL 5, HP PCL 6, emulace Postscript úrovně 3, přímý tisk PDF (v1.7), URF, PCLM, PWG. | E51: - - - | F51: ; Další specifikace viz Kniha vnitřního vybavení - Kniha - prvků - Elektro a příslušenství | G51: Tiskárna na A4; Popis:Malá tiskárna - Funkce: černobílý laserový tisk, kopírování, skenování, fax, Formát: A4, rozlišení tisku: 1200dpi, ovládání: dotykový barevný grafický displej, velikost paměti: 256 MB, rychlost tisku: 38 Str./min., doba tisku první strany: 5,7s, oboustranný tisk: automatický , vstupní zásobník: 250 listů, víceúčelový zásobník: 100 listů, výstupní zásobník: 150 listů, gramáž média: 60 – 175 g/m2, rozlišení kopírování: 600x600dpi, zoom kopírování: 25 – 400%, rozlišení skenování: 1200dpi, podavač skeneru: oboustranný 50 listů, oboustranné jednoprůchodové skenování fumkce skeneru: skenování do e-mailu, do síťové složky, do USB, připojení: USB 2.0, Ethernet 10/100/1000T, hostitelský USB port, jazyky tiskárny: PCL 5, HP PCL 6, emulace Postscript úrovně 3, přímý tisk PDF (v1.7), URF, PCLM, PWG.; Rozměry: - - - ; Další specifikace viz Kniha vnitřního vybavení - Kniha - prvků - Elektro a příslušenství | H51: ks | I51: 1 | J51: 5000
A52: VV_VEN | B52: Prvky vnitřního vybevení - Venkovní vybavení
A53: 1A.VV_VEN_001 | B53: Venkovní pergola k sezení vybavená židlemi a stlem | C53: Venkovní dřevěná pergola k sezení vybavená šesti židlemi a stolem. Kovový stůl a židle s opěrkou a područkami. Sloupky pergoly jsou průřezu 120 x 120 mm, vzdálenost sloupků je 2,0 m, pod každým sloupkem je proveden betonový základ s patkou sloupku z galvanického zinku, základy jsou provedeny v nezámrzné hloubce. Trvar střechy je sedlový, krokve průžezu 60 x 140 mm, podélné prvky průřezu 100 x 140 mm. Na střeše je provedeno bednění a laťování se skládanou betonovou střešní krytinou. V přístřešku je podlaha z betonové dlažby. Betonová dlažba je uložena na kladecí vrstu tl. 40 mm - kamenná drť 4-8mm, podkladní nosnou vrstvu tl. 150 mm - kamená drť 8-16 mm a zemní pláň. Klempířské prvky jsou provedeny z pozinkovaného plechu. | E53: 5000 x 5000 x 3300 mm (d x š x v) | F53: ; Další specifikace viz Kniha vnitřního vybavení - Kniha - prvků - Venkovní vybavení | G53: =CONCATENATE(B53,$C$1,C53,$E$1,E53,F53) -> Venkovní pergola k sezení vybavená židlemi a stlem; Popis:Venkovní dřevěná pergola k sezení vybavená šesti židlemi a stolem. Kovový stůl a židle s opěrkou a područkami. Sloupky pergoly jsou průřezu 120 x 120 mm, vzdálenost sloupků je 2,0 m, pod každým sloupkem je proveden betonový základ s patkou sloupku z galvanického zinku, základy jsou provedeny v nezámrzné hloubce. Trvar střechy je sedlový, krokve průžezu 60 x 140 mm, podélné prvky průřezu 100 x 140 mm. Na střeše je provedeno bednění a laťování se skládanou betonovou střešní krytinou. V přístřešku je podlaha z betonové dlažby. Betonová dlažba je uložena na kladecí vrstu tl. 40 mm - kamenná drť 4-8mm, podkladní nosnou vrstvu tl. 150 mm - kamená drť 8-16 mm a zemní pláň. Klempířské prvky jsou provedeny z pozinkovaného plechu.; Rozměry:5000 x 5000 x 3300 mm (d x š x v) ; Další specifikace viz Kniha vnitřního vybavení - Kniha - prvků - Venkovní vybavení | H53: ks | I53: 1 | J53: 55000
A54: 1A.VV_VEN_002 | B54: Zahradní domek | C54: Zhradní domek je určený k uskladnění zhradního nábytku a nářadí. Zahradní domek je proveden na základvou desku (štěrk tl. 150 mm a beton tl. 15 mm). Zahradní domek je proveden ze sloupků o průřezu 120 x 120 mm (sloupky jsou kotveny k základvé desce za pomocí pataky sloupku z galvanického zinku) a opláštěné smrkovými palubkami tl. 28 mm. Trvar střechy je sedlový, krokve průžezu 60 x 140 mm, podélné prvky průřezu 100 x 140 mm. Na střeše je provedeno bednění a laťování se skládanou betonovou střešní krytinou. Podlaha betonová. Klempířské prvky jsou provedeny z pozinkovaného plechu. | E54: 4000 x 3000 x 2400 mm (d x š x v) | F54: ; Další specifikace viz Kniha vnitřního vybavení - Kniha - prvků - Venkovní vybavení | G54: =CONCATENATE(B54,$C$1,C54,$E$1,E54,F54) -> Zahradní domek; Popis:Zhradní domek je určený k uskladnění zhradního nábytku a nářadí. Zahradní domek je proveden na základvou desku (štěrk tl. 150 mm a beton tl. 15 mm). Zahradní domek je proveden ze sloupků o průřezu 120 x 120 mm (sloupky jsou kotveny k základvé desce za pomocí pataky sloupku z galvanického zinku) a opláštěné smrkovými palubkami tl. 28 mm. Trvar střechy je sedlový, krokve průžezu 60 x 140 mm, podélné prvky průřezu 100 x 140 mm. Na střeše je provedeno bednění a laťování se skládanou betonovou střešní krytinou. Podlaha betonová. Klempířské prvky jsou provedeny z pozinkovaného plechu.; Rozměry:4000 x 3000 x 2400 mm (d x š x v) ; Další specifikace viz Kniha vnitřního vybavení - Kniha - prvků - Venkovní vybavení | H54: ks | I54: 1 | J54: 27800
A55: 1A.VV_VEN_003 | B55: Benzínová travní sekačka | C55: Benzínová travní sekačka se skládá z 4-traktního benzínového motoru, ocelového nože a koše o objemu 45l. Technické parametry: výška zdvihu 25-65 mm, průměr kol 7/10", rychlost 0,9 m/s, materiál kov. | E55: - - - | F55: ; Další specifikace viz Kniha vnitřního vybavení - Kniha - prvků - Venkovní vybavení | G55: =CONCATENATE(B55,$C$1,C55,$E$1,E55,F55) -> Benzínová travní sekačka; Popis:Benzínová travní sekačka se skládá z 4-traktního benzínového motoru, ocelového nože a koše o objemu 45l. Technické parametry: výška zdvihu 25-65 mm, průměr kol 7/10", rychlost 0,9 m/s, materiál kov.; Rozměry: - - - ; Další specifikace viz Kniha vnitřního vybavení - Kniha - prvků - Venkovní vybavení | H55: ks | I55: 1 | J55: 5290
A56: 1CD.1.1 | B56: Architektonicko-stavební řešení | C56: ; Popis: | D56: ; Materiál: | E56: ; Rozměry:
A57: 10_VB | B57: Výrobky
A58: KP | B58: Klempířské prvky
A59: 1C.P1-1.01 | B59: Okenní parapet | C59: Oplechování parapetu oken včetně doplňkového a montážního materiálu. | D59: Ocelový pozinkovaný plech, tl. 0,6 mm, exteriérový nátěr v odstínu RAL 7016 | E59: r.š. 330 mm | F59: ; Další specifikace viz Kniha klempířských prvků | G59: =CONCATENATE(B59,$C$1,C59,$D$1,D59,$E$1,E59,F59) -> Okenní parapet; Popis:Oplechování parapetu oken včetně doplňkového a montážního materiálu.; Materiál:Ocelový pozinkovaný plech, tl. 0,6 mm, exteriérový nátěr v odstínu RAL 7016; Rozměry:r.š. 330 mm ; Další specifikace viz Kniha klempířských prvků | H59: m | I59: 14.7 | J59: 474
A60: 1C.P1-1.02 | B60: Oplechování atiky | C60: Oplechování atiky, včetně doplňkového a montážního materiálu. | D60: Ocelový pozinkovaný plech, tl. 0,6 mm, exteriérový nátěr v odstínu RAL 7016 | E60: r.š. 860 mm | F60: ; Další specifikace viz Kniha klempířských prvků | G60: Oplechování atiky; Popis:Oplechování atiky, včetně doplňkového a montážního materiálu.; Materiál:Ocelový pozinkovaný plech, tl. 0,6 mm, exteriérový nátěr v odstínu RAL 7016; Rozměry:r.š. 860 mm ; Další specifikace viz Kniha klempířských prvků | H60: m | I60: 13.7 | J60: 1480
A61: 1C.P1-1.03 | B61: Oplechování atiky | C61: Oplechování atiky, včetně doplňkového a montážního materiálu. | D61: Ocelový pozinkovaný plech, tl. 0,6 mm, exteriérový nátěr v odstínu RAL 7016 | E61: r.š. 720 mm | F61: ; Další specifikace viz Kniha klempířských prvků | G61: Oplechování atiky; Popis:Oplechování atiky, včetně doplňkového a montážního materiálu.; Materiál:Ocelový pozinkovaný plech, tl. 0,6 mm, exteriérový nátěr v odstínu RAL 7016; Rozměry:r.š. 720 mm ; Další specifikace viz Kniha klempířských prvků | H61: m | I61: 14.1 | J61: 1100
A62: 1C.P1-1.04 | B62: Boční oplechování | C62: Boční oplechování, včetně doplňkového a montážního materiálu. | D62: Ocelový pozinkovaný plech, tl. 0,6 mm, exteriérový nátěr v odstínu RAL 7016 | E62: r.š. 435 mm | F62: ; Další specifikace viz Kniha klempířských prvků | G62: Boční oplechování; Popis:Boční oplechování, včetně doplňkového a montážního materiálu.; Materiál:Ocelový pozinkovaný plech, tl. 0,6 mm, exteriérový nátěr v odstínu RAL 7016; Rozměry:r.š. 435 mm ; Další specifikace viz Kniha klempířských prvků | H62: m | I62: 5.5 | J62: 860
A63: 1C.P1-1.05 | B63: Dešťový žlab | C63: Dešťový žlab, včetně doplňkového a montážního materiálu. | D63: Ocelový pozinkovaný plech, tl. 0,6 mm, exteriérový nátěr v odstínu RAL 7016 | E63: průměr 300 mm | F63: ; Další specifikace viz Kniha klempířských prvků | G63: Dešťový žlab; Popis:Dešťový žlab, včetně doplňkového a montážního materiálu.; Materiál:Ocelový pozinkovaný plech, tl. 0,6 mm, exteriérový nátěr v odstínu RAL 7016; Rozměry:průměr 300 mm ; Další specifikace viz Kniha klempířských prvků | H63: m | I63: 32.1 | J63: 725
A64: 1C.P1-1.06 | B64: Dešťový svod | C64: Dešťový svod, včetně doplňkového a montážního materiálu. | D64: Ocelový pozinkovaný plech, tl. 0,6 mm, exteriérový nátěr v odstínu RAL 7016 | E64: průměr 120 mm | F64: ; Další specifikace viz Kniha klempířských prvků | G64: Dešťový svod; Popis:Dešťový svod, včetně doplňkového a montážního materiálu.; Materiál:Ocelový pozinkovaný plech, tl. 0,6 mm, exteriérový nátěr v odstínu RAL 7016; Rozměry:průměr 120 mm ; Další specifikace viz Kniha klempířských prvků | H64: m | I64: 14.1 | J64: 919
A65: TP | B65: Truhlářské prvky
A66: 1C.T1-1.01 | B66: Oddělující lehká dřevěná příčka | C66: Oddělující lehká dřevěná příčka, rošt ze smrkových doblovaných hranolů 40 x 40 mm spojené konstrukčními vruty se zápustnou hlavou, opláštěné laminátovou MDF deskou, vzor světlého dřeva s méně výraznou kresbou. Hranoly kotveny do stěny a stropu. Součástí příčky jsou uzamykatelné dveře o rozměru 1600 x 1970 mm, obložková polodrážková zárubeň materiál MDF, vložkový zámek + klika. | D66: rošt: smrkové hranoly, opláštění a dveře: MDF deska, zámek a klika: broušený nerez | E66: 2500 x 60 x 2300 mm (d x hl x v) | F66: ; Další specifikace viz Kniha truhlářských prvků | G66: =CONCATENATE(B66,$C$1,C66,$D$1,D66,$E$1,E66,F66) -> Oddělující lehká dřevěná příčka; Popis:Oddělující lehká dřevěná příčka, rošt ze smrkových doblovaných hranolů 40 x 40 mm spojené konstrukčními vruty se zápustnou hlavou, opláštěné laminátovou MDF deskou, vzor světlého dřeva s méně výraznou kresbou. Hranoly kotveny do stěny a stropu. Součástí příčky jsou uzamykatelné dveře o rozměru 1600 x 1970 mm, obložková polodrážková zárubeň materiál MDF, vložkový zámek + klika.; Materiál:rošt: smrkové hranoly, opláštění a dveře: MDF deska, zámek a klika: broušený nerez; Rozměry:2500 x 60 x 2300 mm (d x hl x v) ; Další specifikace viz Kniha truhlářských prvků | H66: ks | I66: 1 | J66: 23000
A67: 1C.T1-1.02 | B67: Kuchyňská linka tvaru U | C67: Kuchyňská linka tvaru U, sokl 80 mm, korpus z lamino desky tl. 18 mm, hrana z ABS tl. 2 mm. Horní i spodní skříňky plné, pracovní deska z laminátové desky tl. 38 mm, nerezový dřez s odkapávačem. Kování linky je kovové. Součástí kuchyňské linky je dřez s odkapávačem, varná deska se čtyřmi plotýnkami, trouba, lednička, mrazák a myčka. Spotřebiče energetiské třídy min. A přesně specifikovány vnitřního vybavení. Horní i spodní část je opatřená krycím panelem š. 50 mm. | D67: Korpus z lamina, pracovní deska z laminátové desky | E67: viz. obrazová příloha | F67: ; SPOTŘEBIČE OCENIT V KAPITOLE_Prvky vnitřního vybevení - Elektro a příslušenství ; Další specifikace viz Kniha truhlářských prvků | G67: =CONCATENATE(B67,$C$1,C67,$D$1,D67,$E$1,E67,F67) -> Kuchyňská linka tvaru U; Popis:Kuchyňská linka tvaru U, sokl 80 mm, korpus z lamino desky tl. 18 mm, hrana z ABS tl. 2 mm. Horní i spodní skříňky plné, pracovní deska z laminátové desky tl. 38 mm, nerezový dřez s odkapávačem. Kování linky je kovové. Součástí kuchyňské linky je dřez s odkapávačem, varná deska se čtyřmi plotýnkami, trouba, lednička, mrazák a myčka. Spotřebiče energetiské třídy min. A přesně specifikovány vnitřního vybavení. Horní i spodní část je opatřená krycím panelem š. 50 mm.; Materiál:Korpus z lamina, pracovní deska z laminátové desky; Rozměry:viz. obrazová příloha ; SPOTŘEBIČE OCENIT V KAPITOLE_Prvky vnitřního vybevení - Elektro a příslušenství ; Další specifikace viz Kniha truhlářských prvků | H67: ks | I67: 1 | J67: =231600*0.9 -> 208440
A68: OP | B68: Ostatní prvky
A69: 1C.X1-1.01 | B69: Venkovní rolety | C69: Venkovní hliníková roleta pro regulaci přirozeného osvětlení a zachycení slunečních paprsků s bočními vodícími lištami. Horní ocelový válcovaný profil upravený pozinkování o rozměru 58 x 56 mm zakrytý krycím plechem. Lamely hliníkové o šířce 80 mm s navíjecími mechanismy, textilními žebříčky a vytahovacími páskami. Boční vodící lišty o rozměru 20 x 20 mm v barvě stříbrná elox. Ovládání elektrické. | D69: hliník, barva stříbrný elox | E69: 1250x1750 mm (šxv) | F69: ; Další specifikace viz Kniha ostatních prvků | G69: =CONCATENATE(B69,$C$1,C69,$D$1,D69,$E$1,E69,F69) -> Venkovní rolety; Popis:Venkovní hliníková roleta pro regulaci přirozeného osvětlení a zachycení slunečních paprsků s bočními vodícími lištami. Horní ocelový válcovaný profil upravený pozinkování o rozměru 58 x 56 mm zakrytý krycím plechem. Lamely hliníkové o šířce 80 mm s navíjecími mechanismy, textilními žebříčky a vytahovacími páskami. Boční vodící lišty o rozměru 20 x 20 mm v barvě stříbrná elox. Ovládání elektrické.; Materiál:hliník, barva stříbrný elox; Rozměry:1250x1750 mm (šxv) ; Další specifikace viz Kniha ostatních prvků | H69: ks | I69: 6 | J69: 6125
A70: 1C.X1-1.02 | B70: Stahovací schody zateplené s požární odolností | C70: Stahovací schody zateplené s protipožární vložkou (EW 15 DP3). Schody jsou opatřeny brzdícím mechanismem proti prudkému otevření. Víko je sendvočové složeno z dřevěného rámu vyplněný izolačním materiálem opláštěný pozinkovaným plechem. Pohledová čast je lakovaná v bílé barvě a kryta ochrannou fólií. | D70: víko: dřevěný rám vyplněný izolantem opláštěný pozinkovaným plechem, pohledová část lakovaná, barva bílá, schody: kovové | E70: 600 x 800 mm (š x d) | F70: ; Další specifikace viz Kniha ostatních prvků | G70: =CONCATENATE(B70,$C$1,C70,$D$1,D70,$E$1,E70,F70) -> Stahovací schody zateplené s požární odolností; Popis:Stahovací schody zateplené s protipožární vložkou (EW 15 DP3). Schody jsou opatřeny brzdícím mechanismem proti prudkému otevření. Víko je sendvočové složeno z dřevěného rámu vyplněný izolačním materiálem opláštěný pozinkovaným plechem. Pohledová čast je lakovaná v bílé barvě a kryta ochrannou fólií.; Materiál:víko: dřevěný rám vyplněný izolantem opláštěný pozinkovaným plechem, pohledová část lakovaná, barva bílá, schody: kovové; Rozměry:600 x 800 mm (š x d) ; Další specifikace viz Kniha ostatních prvků | H70: ks | I70: 1 | J70: =14720*1.2 -> 17664
A71: VV_N | B71: Prvky vnitřního vybevení - Nábytek a příslušenství
A72: 1C.VV_N_001 | B72: Čalouněné křeslo ušák | C72: Čalouněné křeslo ušák je tvořen z vlnonce, 2 cm kokosové vrstvy a 5 cm široké PUR pěny a čalouněná potahovou látkou v barvě šedé. Hmotnost křesla 23 kg. Doplňové rozměry křesla: hloubka 720 mm, výška sedu 470 mm, hloubka sedu 520 mm, šířka sedu 520 mm a výška opěrka 670 mm. | E72: 560 x 720 x 1080 mm (d x š x v) | F72: ; Další specifikace viz Kniha vnitřního vybavení - Kniha - prvků - Nábytek a příslušenství | G72: =CONCATENATE(B72,$C$1,C72,$E$1,E72,F72) -> Čalouněné křeslo ušák; Popis:Čalouněné křeslo ušák je tvořen z vlnonce, 2 cm kokosové vrstvy a 5 cm široké PUR pěny a čalouněná potahovou látkou v barvě šedé. Hmotnost křesla 23 kg. Doplňové rozměry křesla: hloubka 720 mm, výška sedu 470 mm, hloubka sedu 520 mm, šířka sedu 520 mm a výška opěrka 670 mm.; Rozměry:560 x 720 x 1080 mm (d x š x v) ; Další specifikace viz Kniha vnitřního vybavení - Kniha - prvků - Nábytek a příslušenství | H72: ks | I72: 6 | J72: 8736
A73: 1C.VV_N_002 | B73: Předsíňová stěna s věšáky | C73: Předsíňová stěna s kovovými háčky se dvěmi úchytkami a policí, kotvená do stěny včetně montážního materiálu. Korpus a police z MDF desky, barva světle hnědá, tl. 20 mm. Hrany optařeny ABS hranou tl. 1,5 mm. Háček (5 ks) se dvěmi úchytkami kotvená na desku věšáku včetně kotvení. Materiál nerezová ocel. | E73: věšák: 660 x 240 x 1520 mm (d x š x v), háček: 70 x 30 x 47 mm (d x š x v) | F73: ; Další specifikace viz Kniha vnitřního vybavení - Kniha - prvků - Nábytek a příslušenství | G73: Předsíňová stěna s věšáky; Popis:Předsíňová stěna s kovovými háčky se dvěmi úchytkami a policí, kotvená do stěny včetně montážního materiálu. Korpus a police z MDF desky, barva světle hnědá, tl. 20 mm. Hrany optařeny ABS hranou tl. 1,5 mm. Háček (5 ks) se dvěmi úchytkami kotvená na desku věšáku včetně kotvení. Materiál nerezová ocel.; Rozměry:věšák: 660 x 240 x 1520 mm (d x š x v), háček: 70 x 30 x 47 mm (d x š x v) ; Další specifikace viz Kniha vnitřního vybavení - Kniha - prvků - Nábytek a příslušenství | H73: ks | I73: 1 | J73: =1427*1.2 -> 1712.4
A74: 1C.VV_N_003 | B74: Nástěné zrcadlo do předsíně (rozměr 1000 x 900 mm) | C74: Nástěné pravoúhlé zrcadlo k montáži na stěnu včetně kotvení. Materiál sklo s bezpečnostní fólií se zabroušenými hranami. | E74: 1000 x 900 mm (š x v) | F74: ; Další specifikace viz Kniha vnitřního vybavení - Kniha - prvků - Nábytek a příslušenství | G74: Nástěné zrcadlo do předsíně (rozměr 1000 x 900 mm); Popis:Nástěné pravoúhlé zrcadlo k montáži na stěnu včetně kotvení. Materiál sklo s bezpečnostní fólií se zabroušenými hranami.; Rozměry:1000 x 900 mm (š x v) ; Další specifikace viz Kniha vnitřního vybavení - Kniha - prvků - Nábytek a příslušenství | H74: ks | I74: 1 | J74: =1000*0.9*1.2 -> 1080
A75: 1C.VV_N_004 | B75: Botník s variabilními policemi a lavicí | C75: Botník s variabilními policemi a lavicí. Botník je členěn na 12 polic pro uložení bot. Materiál laminovaná MDF deska, barva světle hnědá. Dno i půda z desky tl. 25 mm, z přední strany ABS hrana tl. 2 mm. Ostatní pohlednové prvky opatřeny ABS hranou tl. 1 mm. Boky korpusu z desky tl. 25 mm. Záda z desky tl. 10 mm. Police z desky tl. 20 mm s variabilním polohovatelností. Police a desky opatřeny hranou ABS tl. 2 mm. Dodávka včetvě rektifikačních nožiček. Sedák čalouněný potahvou látkou v barvě šedé. | E75: 1000 x 400 x 480 mm (d x š x v) | F75: ; Další specifikace viz Kniha vnitřního vybavení - Kniha - prvků - Nábytek a příslušenství | G75: Botník s variabilními policemi a lavicí; Popis:Botník s variabilními policemi a lavicí. Botník je členěn na 12 polic pro uložení bot. Materiál laminovaná MDF deska, barva světle hnědá. Dno i půda z desky tl. 25 mm, z přední strany ABS hrana tl. 2 mm. Ostatní pohlednové prvky opatřeny ABS hranou tl. 1 mm. Boky korpusu z desky tl. 25 mm. Záda z desky tl. 10 mm. Police z desky tl. 20 mm s variabilním polohovatelností. Police a desky opatřeny hranou ABS tl. 2 mm. Dodávka včetvě rektifikačních nožiček. Sedák čalouněný potahvou látkou v barvě šedé.; Rozměry:1000 x 400 x 480 mm (d x š x v) ; Další specifikace viz Kniha vnitřního vybavení - Kniha - prvků - Nábytek a příslušenství | H75: ks | I75: 1 | J75: =3090*1.2 -> 3708
A76: 1C.VV_N_005 | B76: Vestavěná skříň policová plná s dveřmi rozdělenými na dvě části (výška 2000 mm) | C76: Skříň dvoudvéřová. Vybavená 5 ks variabilních polic. Materiál laminovaná MDF deska, barva světle hnědá. Dno i půda z desky tl. 25 mm, z přední strany ABS hrana tl. 2 mm. Ostatní pohlednové prvky opatřeny ABS hranou tl. 1 mm. Boky korpusu z desky tl. 18 mm. Záda z desky tl. 8 mm. Police z desky tl. 25 mm, nosnost 80 kg s variabilním polohovatelností. Police a desky opatřeny hranou ABS tl. 2 mm. Dodávka včetvě rektifikačních nožiček. | E76: 1400 x 400 x 2000 mm (d x š x v) | F76: ; Další specifikace viz Kniha vnitřního vybavení - Kniha - prvků - Nábytek a příslušenství | G76: Vestavěná skříň policová plná s dveřmi rozdělenými na dvě části (výška 2000 mm); Popis:Skříň dvoudvéřová. Vybavená 5 ks variabilních polic. Materiál laminovaná MDF deska, barva světle hnědá. Dno i půda z desky tl. 25 mm, z přední strany ABS hrana tl. 2 mm. Ostatní pohlednové prvky opatřeny ABS hranou tl. 1 mm. Boky korpusu z desky tl. 18 mm. Záda z desky tl. 8 mm. Police z desky tl. 25 mm, nosnost 80 kg s variabilním polohovatelností. Police a desky opatřeny hranou ABS tl. 2 mm. Dodávka včetvě rektifikačních nožiček.; Rozměry:1400 x 400 x 2000 mm (d x š x v) ; Další specifikace viz Kniha vnitřního vybavení - Kniha - prvků - Nábytek a příslušenství | H76: ks | I76: 1 | J76: 21000
A77: 1C.VV_N_006 | B77: Skříňka do koupelny (výška 700 mm) | C77: Skřínka se čtyřmi zásuvkami do koupleny a nožičkami. Materiál laminátová MDF deska, barva bílá. Dno i půda z desky tl. 25 mm, z přední strany ABS hrana tl. 2 mm. Ostatní pohlednové prvky opatřeny ABS hranou tl. 1 mm. Boky korpusu z desky tl. 18 mm. Záda z desky tl. 8 mm. Police z desky tl. 25 mm, nosnost 50 kg. Police a desky opatřeny hranou ABS tl. 2 mm. Dodávka včetvě kovových nožiček a úchytek k zásuvkám. | E77: 400 x 400 x 700 mm (d x š x v) | F77: ; Další specifikace viz Kniha vnitřního vybavení - Kniha - prvků - Nábytek a příslušenství | G77: Skříňka do koupelny (výška 700 mm); Popis:Skřínka se čtyřmi zásuvkami do koupleny a nožičkami. Materiál laminátová MDF deska, barva bílá. Dno i půda z desky tl. 25 mm, z přední strany ABS hrana tl. 2 mm. Ostatní pohlednové prvky opatřeny ABS hranou tl. 1 mm. Boky korpusu z desky tl. 18 mm. Záda z desky tl. 8 mm. Police z desky tl. 25 mm, nosnost 50 kg. Police a desky opatřeny hranou ABS tl. 2 mm. Dodávka včetvě kovových nožiček a úchytek k zásuvkám.; Rozměry:400 x 400 x 700 mm (d x š x v) ; Další specifikace viz Kniha vnitřního vybavení - Kniha - prvků - Nábytek a příslušenství | H77: ks | I77: 1 | J77: =3990*1.2 -> 4788
A78: 1C.VV_N_007 | B78: Sklopné zrcadlo pro bezbariérové WC | C78: Sklopné nerezové zrcadlo na toalety pro tělesně postižené včetně kotvení. Kotveno pomocí montážní lišty. Naklánění zrcadla je ovládané pomocí páky na stěně pod umyvadlem. Materiál sklo s bezpečnostní fólií se zabroušenými hranami a rám a páka z nerezy. | E78: 600 x 400 mm (š x v) | F78: ; Další specifikace viz Kniha vnitřního vybavení - Kniha - prvků - Nábytek a příslušenství | G78: Sklopné zrcadlo pro bezbariérové WC; Popis:Sklopné nerezové zrcadlo na toalety pro tělesně postižené včetně kotvení. Kotveno pomocí montážní lišty. Naklánění zrcadla je ovládané pomocí páky na stěně pod umyvadlem. Materiál sklo s bezpečnostní fólií se zabroušenými hranami a rám a páka z nerezy.; Rozměry:600 x 400 mm (š x v) ; Další specifikace viz Kniha vnitřního vybavení - Kniha - prvků - Nábytek a příslušenství | H78: ks | I78: 1 | J78: 3630
A79: 1C.VV_N_008 | B79: Sklopné sedátko do sprchy | C79: Sklopné sedátko do sprchy včetně montážního materiálu. Nosná konstrukce z nerezové oceli, sedátkou z odolného plastu jedohuše udržovatlené. Maximální nosnost 200 kg. | E79: 440 x 470 mm (d x š) | F79: ; Další specifikace viz Kniha vnitřního vybavení - Kniha - prvků - Nábytek a příslušenství | G79: Sklopné sedátko do sprchy; Popis:Sklopné sedátko do sprchy včetně montážního materiálu. Nosná konstrukce z nerezové oceli, sedátkou z odolného plastu jedohuše udržovatlené. Maximální nosnost 200 kg.; Rozměry:440 x 470 mm (d x š) ; Další specifikace viz Kniha vnitřního vybavení - Kniha - prvků - Nábytek a příslušenství | H79: ks | I79: 1 | J79: =3567*1.2 -> 4280.4
A80: 1C.VV_N_009 | B80: Police do skladu (výška 2000 mm) | C80: Police do skladu s pěti policemi včetně montážního materiálu. Police jsou výškově přestavitelné v rastru 138 mm. Šedý policový regál je rychle smontovatelný bez spojovacího materiálu. Police se jednoduchým způsobem nasadí na sloupky. Možnost spojování do polí a řad vedle sebe i za sebou pro zvýšení celkové tuhosti. Konstrukce je povrchově upravena práškovým lakem šedé barvy. Nohy jsou vybaveny plastovými patkami pro ochranu podlahové krytiny. | E80: 2000 x 600 x 2000 mm (d x š x v) | F80: ; Další specifikace viz Kniha vnitřního vybavení - Kniha - prvků - Nábytek a příslušenství | G80: Police do skladu (výška 2000 mm); Popis:Police do skladu s pěti policemi včetně montážního materiálu. Police jsou výškově přestavitelné v rastru 138 mm. Šedý policový regál je rychle smontovatelný bez spojovacího materiálu. Police se jednoduchým způsobem nasadí na sloupky. Možnost spojování do polí a řad vedle sebe i za sebou pro zvýšení celkové tuhosti. Konstrukce je povrchově upravena práškovým lakem šedé barvy. Nohy jsou vybaveny plastovými patkami pro ochranu podlahové krytiny.; Rozměry:2000 x 600 x 2000 mm (d x š x v) ; Další specifikace viz Kniha vnitřního vybavení - Kniha - prvků - Nábytek a příslušenství | H80: ks | I80: 2 | J80: 20000
A81: 1C.VV_N_010 | B81: Police do skladu tvaru "L" (výška 2000 mm) | C81: Police do skladu tvaru "L" s pěti police včetně montážního materiálu. Police jsou výškově přestavitelné v rastru 138 mm. Šedý policový regál je rychle smontovatelný bez spojovacího materiálu. Police se jednoduchým způsobem nasadí na sloupky. Možnost spojování do polí a řad vedle sebe i za sebou pro zvýšení celkové tuhosti. Konstrukce je povrchově upravena práškovým lakem šedé barvy. Nohy jsou vybaveny plastovými patkami pro ochranu podlahové krytiny. | E81: 1810/1610 x 600 x 2000 mm (d x š x v) | F81: ; Další specifikace viz Kniha vnitřního vybavení - Kniha - prvků - Nábytek a příslušenství | G81: Police do skladu tvaru "L" (výška 2000 mm); Popis:Police do skladu tvaru "L" s pěti police včetně montážního materiálu. Police jsou výškově přestavitelné v rastru 138 mm. Šedý policový regál je rychle smontovatelný bez spojovacího materiálu. Police se jednoduchým způsobem nasadí na sloupky. Možnost spojování do polí a řad vedle sebe i za sebou pro zvýšení celkové tuhosti. Konstrukce je povrchově upravena práškovým lakem šedé barvy. Nohy jsou vybaveny plastovými patkami pro ochranu podlahové krytiny.; Rozměry:1810/1610 x 600 x 2000 mm (d x š x v) ; Další specifikace viz Kniha vnitřního vybavení - Kniha - prvků - Nábytek a příslušenství | H81: ks | I81: 1 | J81: 18100
A82: 1C.VV_N_011 | B82: Kovová garnyž na záclony (délka 1450 mm) | C82: Kovová garnyž na záclony včetně montážního materiálu. Tyč garnyže o púrůměru 16 mm. Skládá se z galvanicky pokovený tyče, dvou koncovek, dvou konzol na zeď a žabky s kroužky. | E82: délka 1450 mm | F82: ; Další specifikace viz Kniha vnitřního vybavení - Kniha - prvků - Nábytek a příslušenství | G82: Kovová garnyž na záclony (délka 1450 mm); Popis:Kovová garnyž na záclony včetně montážního materiálu. Tyč garnyže o púrůměru 16 mm. Skládá se z galvanicky pokovený tyče, dvou koncovek, dvou konzol na zeď a žabky s kroužky.; Rozměry:délka 1450 mm ; Další specifikace viz Kniha vnitřního vybavení - Kniha - prvků - Nábytek a příslušenství | H82: ks | I82: 10 | J82: =946*1.2 -> 1135.2
A83: 1C.VV_N_012 | B83: Kovová garnyž na záclony (délka 1950 mm) | C83: Kovová garnyž na záclony včetně montážního materiálu. Tyč garnyže o púrůměru 16 mm. Skládá se z galvanicky pokovený tyče, dvou koncovek, dvou konzol na zeď a žabky s kroužky. | E83: délka 1950 mm | F83: ; Další specifikace viz Kniha vnitřního vybavení - Kniha - prvků - Nábytek a příslušenství | G83: Kovová garnyž na záclony (délka 1950 mm); Popis:Kovová garnyž na záclony včetně montážního materiálu. Tyč garnyže o púrůměru 16 mm. Skládá se z galvanicky pokovený tyče, dvou koncovek, dvou konzol na zeď a žabky s kroužky.; Rozměry:délka 1950 mm ; Další specifikace viz Kniha vnitřního vybavení - Kniha - prvků - Nábytek a příslušenství | H83: ks | I83: 2 | J83: =1272*1.2 -> 1526.4
A84: 1C.VV_N_013 | B84: Sada kuchyňského nádobí | C84: Sada kuchyňského nádobí obsahuje hrnec o průměru 16 cm s obsahem 2,1 l, hrnec o průměru 20 cm s obsahem 3,6 l, hrnec o průměru 24 cm s obsahem 5,7 l, keramická pánev, pekáč, tři nože, nůž na pečivo, čtyři vařečky, dvě naběračky, cedník, dvě škrabky, tři prkénka na maso, pečivo, zelenivu a ovoce, struhadlo, dvanáct hlubokých talířů, mělkých, dezertních a misek, tři mísy, dvanáct skleniček a hrnků, dvě sady příborů. | E84: - - - | F84: ; Další specifikace viz Kniha vnitřního vybavení - Kniha - prvků - Nábytek a příslušenství | G84: Sada kuchyňského nádobí; Popis:Sada kuchyňského nádobí obsahuje hrnec o průměru 16 cm s obsahem 2,1 l, hrnec o průměru 20 cm s obsahem 3,6 l, hrnec o průměru 24 cm s obsahem 5,7 l, keramická pánev, pekáč, tři nože, nůž na pečivo, čtyři vařečky, dvě naběračky, cedník, dvě škrabky, tři prkénka na maso, pečivo, zelenivu a ovoce, struhadlo, dvanáct hlubokých talířů, mělkých, dezertních a misek, tři mísy, dvanáct skleniček a hrnků, dvě sady příborů.; Rozměry: - - - ; Další specifikace viz Kniha vnitřního vybavení - Kniha - prvků - Nábytek a příslušenství | H84: ks | I84: 1 | J84: 13000
A85: 1C.VV_N_014 | B85: Termoport | C85: Termoport pro uskladnění pokrmů určených pro přepravu. Termoport je nevyhřívaný, čelní plnění s nasazovacími dvířky. Uzavírání pomocí záklopných uzávěrů zapuštěných do čelních stěnkorpusu, vnitřní prostor umožňuje uložení 12 párů vylisovaných drážek se svislou roztečí 39 mm k zasouvání gastro nádob, praktických držák popisovacích karet a ergonomická madla s neklouzavými plastovými úchyty. Materiál polypropylen, polyamid a chromniklová ocel. Hmotnost 14 kg. | E85: 630 x 425 x 660 mm | F85: ; Další specifikace viz Kniha vnitřního vybavení - Kniha - prvků - Nábytek a příslušenství | G85: Termoport; Popis:Termoport pro uskladnění pokrmů určených pro přepravu. Termoport je nevyhřívaný, čelní plnění s nasazovacími dvířky. Uzavírání pomocí záklopných uzávěrů zapuštěných do čelních stěnkorpusu, vnitřní prostor umožňuje uložení 12 párů vylisovaných drážek se svislou roztečí 39 mm k zasouvání gastro nádob, praktických držák popisovacích karet a ergonomická madla s neklouzavými plastovými úchyty. Materiál polypropylen, polyamid a chromniklová ocel. Hmotnost 14 kg.; Rozměry:630 x 425 x 660 mm ; Další specifikace viz Kniha vnitřního vybavení - Kniha - prvků - Nábytek a příslušenství | H85: ks | I85: 1 | J85: =16081 -> 16081
A86: 1C.VV_N_015 | B86: Psací stůl pro personál | C86: Pracovní stůl obdélníkový bez zásuvek. Materiál laminátová MDF deska, barva světle hnědá. Deska tl. 18 mm. Deska opatřená ABS hranou tl. 2 mm. Nohy stolu hliníkové, povrchová úprava práškovým vypalovacím lakem v odstínu štříbrno šedá. | E86: 1200 x 700 x 740 mm (d x š x v) | F86: ; Další specifikace viz Kniha vnitřního vybavení - Kniha - prvků - Nábytek a příslušenství | G86: Psací stůl pro personál; Popis:Pracovní stůl obdélníkový bez zásuvek. Materiál laminátová MDF deska, barva světle hnědá. Deska tl. 18 mm. Deska opatřená ABS hranou tl. 2 mm. Nohy stolu hliníkové, povrchová úprava práškovým vypalovacím lakem v odstínu štříbrno šedá.; Rozměry:1200 x 700 x 740 mm (d x š x v) ; Další specifikace viz Kniha vnitřního vybavení - Kniha - prvků - Nábytek a příslušenství | H86: ks | I86: 1 | J86: 5220
A87: 1C.VV_N_016 | B87: Zásuvkový díl uzamykatelný | C87: Kancelářský kontejner volně stojící se čtyřmi zásuvkami uzamykatelný na plastových kolečkách. V čele horní zásuvky umístěný zámek, jednotlivé zásuvky opatřené kovovými úchytkami. Materiál laminátová MDF deska, barva světle hnědá. Deska tl. 18 mm. Deska opatřená ABS hranou tl. 2 mm. Kovové pojezdy zásuvek. | E87: 600 x 420 x 550 mm (d x š x v) | F87: ; Další specifikace viz Kniha vnitřního vybavení - Kniha - prvků - Nábytek a příslušenství | G87: Zásuvkový díl uzamykatelný; Popis:Kancelářský kontejner volně stojící se čtyřmi zásuvkami uzamykatelný na plastových kolečkách. V čele horní zásuvky umístěný zámek, jednotlivé zásuvky opatřené kovovými úchytkami. Materiál laminátová MDF deska, barva světle hnědá. Deska tl. 18 mm. Deska opatřená ABS hranou tl. 2 mm. Kovové pojezdy zásuvek.; Rozměry:600 x 420 x 550 mm (d x š x v) ; Další specifikace viz Kniha vnitřního vybavení - Kniha - prvků - Nábytek a příslušenství | H87: ks | I87: 1 | J87: 5070
A88: 1C.VV_N_017 | B88: Nastavitelný držák na počítač pod stůl | C88: Nastavitelný držák na počítač pod stůl včetně montážního materiálu. Materiál ocel se stříbrným lakem. Nosnost do 4,5 kg. | E88: 135 - 250 x 300 - 458 mm (š x v) | F88: ; Další specifikace viz Kniha vnitřního vybavení - Kniha - prvků - Nábytek a příslušenství | G88: Nastavitelný držák na počítač pod stůl; Popis:Nastavitelný držák na počítač pod stůl včetně montážního materiálu. Materiál ocel se stříbrným lakem. Nosnost do 4,5 kg.; Rozměry:135 - 250 x 300 - 458 mm (š x v) ; Další specifikace viz Kniha vnitřního vybavení - Kniha - prvků - Nábytek a příslušenství | H88: ks | I88: 1 | J88: 1203
A89: 1C.VV_N_018 | B89: Kancelářská židle otočná s kolečky | C89: Ergonomická kancelářská židle otočná s výsokým opěrákem s kolečky. Výškově nastavitelný sedák, bederní opěrka a područky, samostatná síťovina na opěráku barva černá. Materál lakovaná ocel, plast. Hmotnost 17 kg, nosnost 120 kg. | E89: 660/500 x 500 x 1000/1090 mm (d x š x v) | F89: ; Další specifikace viz Kniha vnitřního vybavení - Kniha - prvků - Nábytek a příslušenství | G89: Kancelářská židle otočná s kolečky; Popis:Ergonomická kancelářská židle otočná s výsokým opěrákem s kolečky. Výškově nastavitelný sedák, bederní opěrka a područky, samostatná síťovina na opěráku barva černá. Materál lakovaná ocel, plast. Hmotnost 17 kg, nosnost 120 kg.; Rozměry:660/500 x 500 x 1000/1090 mm (d x š x v) ; Další specifikace viz Kniha vnitřního vybavení - Kniha - prvků - Nábytek a příslušenství | H89: ks | I89: 1 | J89: =3900 -> 3900
A90: 1C.VV_N_019 | B90: Šatní skříň s policemi a tyčí uzamykatelná (výška 2000 mm) | C90: Skříň dvoudvéřová, dvoudílná - dělená na dvě části. 1/2 vybavená šatní tyčí a policí a 1/2 vybavená 5 ks variabilních polic. Materiál laminovaná MDF deska, barva světle hnědá. Dno i půda z desky tl. 25 mm, z přední strany ABS hrana tl. 2 mm. Ostatní pohledné prvky opatřeny ABS hranou tl. 1 mm. Boky korpusu z desky tl. 18 mm. Záda desky tl. 8 mm. Police z desky tl. 25 mm. Police a desky opatřeny hranou ABS tl. 2 mm. | E90: 1700 x 600 x 2000 mm (d x š x v) | F90: ; Další specifikace viz Kniha vnitřního vybavení - Kniha - prvků - Nábytek a příslušenství | G90: Šatní skříň s policemi a tyčí uzamykatelná (výška 2000 mm); Popis:Skříň dvoudvéřová, dvoudílná - dělená na dvě části. 1/2 vybavená šatní tyčí a policí a 1/2 vybavená 5 ks variabilních polic. Materiál laminovaná MDF deska, barva světle hnědá. Dno i půda z desky tl. 25 mm, z přední strany ABS hrana tl. 2 mm. Ostatní pohledné prvky opatřeny ABS hranou tl. 1 mm. Boky korpusu z desky tl. 18 mm. Záda desky tl. 8 mm. Police z desky tl. 25 mm. Police a desky opatřeny hranou ABS tl. 2 mm.; Rozměry:1700 x 600 x 2000 mm (d x š x v) ; Další specifikace viz Kniha vnitřního vybavení - Kniha - prvků - Nábytek a příslušenství | H90: ks | I90: 1 | J90: 25500
A91: 1C.VV_N_020 | B91: Nástěnná police s konzolemi | C91: Nástěnná police s konzolemi kotvené do zdi včetně kotvení. Materiál laminátová MDF deska, barva světle hnědá. Police z desky tl. 25 mm, opatřena ABS hranou tl. 2 mm. Nosnost 80 kg. Konzole dřevěné v barvě světle hnědé. | E91: 1000 x 300 x 20 mm (d x š x v) | F91: ; Další specifikace viz Kniha vnitřního vybavení - Kniha - prvků - Nábytek a příslušenství | G91: Nástěnná police s konzolemi; Popis:Nástěnná police s konzolemi kotvené do zdi včetně kotvení. Materiál laminátová MDF deska, barva světle hnědá. Police z desky tl. 25 mm, opatřena ABS hranou tl. 2 mm. Nosnost 80 kg. Konzole dřevěné v barvě světle hnědé.; Rozměry:1000 x 300 x 20 mm (d x š x v) ; Další specifikace viz Kniha vnitřního vybavení - Kniha - prvků - Nábytek a příslušenství | H91: ks | I91: 1 | J91: =530*1.2 -> 636
A92: 1C.VV_N_021 | B92: Sklopná vana | C92: Nastavitelná vana s digitálním panelem, kontrolou teploty vody, desinfekčním programem a perličkovými tryskami. Technické parametry vnitřní délka 1850 mm, vnitřní šířka 550 mm, hloubka 420 mm, nosnost 160 kg, vzduchová masáž, 12 trysek, napájení 230 V. | E92: 2090 x 820 x 635 - 1035 mm (d x š x v) | F92: ; Další specifikace viz Kniha vnitřního vybavení - Kniha - prvků - Nábytek a příslušenství | G92: Sklopná vana; Popis:Nastavitelná vana s digitálním panelem, kontrolou teploty vody, desinfekčním programem a perličkovými tryskami. Technické parametry vnitřní délka 1850 mm, vnitřní šířka 550 mm, hloubka 420 mm, nosnost 160 kg, vzduchová masáž, 12 trysek, napájení 230 V.; Rozměry:2090 x 820 x 635 - 1035 mm (d x š x v) ; Další specifikace viz Kniha vnitřního vybavení - Kniha - prvků - Nábytek a příslušenství | H92: ks | I92: 1 | J92: 200000
A93: 1C.VV_N_022 | B93: Sklopná madla k WC | C93: Sklopná madla k WC včetně montážníh materiálu. Madla jsou z nerezi. Nosnost 120 kg. | E93: délka madla 813 mm | F93: ; Další specifikace viz Kniha vnitřního vybavení - Kniha - prvků - Nábytek a příslušenství | G93: Sklopná madla k WC; Popis:Sklopná madla k WC včetně montážníh materiálu. Madla jsou z nerezi. Nosnost 120 kg.; Rozměry:délka madla 813 mm ; Další specifikace viz Kniha vnitřního vybavení - Kniha - prvků - Nábytek a příslušenství | H93: ks | I93: 2 | J93: =2488 -> 2488
A94: 1C.VV_N_023 | B94: Trezor pro personál | C94: Trezor s elektronickým zámkem. Materiál ocel, korpus 1,5 mm, dveře 4 mm, povrchová úprava práškovaným lakem v barvě šedé. Možné upevnit na zeď. Provoz trezeru je za pomoci 4 běžných baterií (1,5 V). | E94: 350 x 250 x 250 mm (d x š x v) | F94: ; Další specifikace viz Kniha vnitřního vybavení - Kniha - prvků - Nábytek a příslušenství | G94: Trezor pro personál; Popis:Trezor s elektronickým zámkem. Materiál ocel, korpus 1,5 mm, dveře 4 mm, povrchová úprava práškovaným lakem v barvě šedé. Možné upevnit na zeď. Provoz trezeru je za pomoci 4 běžných baterií (1,5 V).; Rozměry:350 x 250 x 250 mm (d x š x v) ; Další specifikace viz Kniha vnitřního vybavení - Kniha - prvků - Nábytek a příslušenství | H94: ks | I94: 1 | J94: =1259 -> 1259
A95: VV_E | B95: Prvky vnitřního vybevení - Elektro a příslušenství
A96: 1C.VV_E_001 | B96: Myčka vestavěná | C96: Kapacita myčky 13 sad nádobí, 2 úložné koše, spotřeba vody 11 l, AQUA STOP proti přetečení, 2 ostřikovací ramena, 4 programy: Eco, Intenzivní, Normální, Oplachování, mycí teploty: 40-70°C, energetická třída A+, účinnost mytí A, účinnost sušení A, hlučnost 49 dB(A), spotřeba energie: 1,04 kWh. | E96: 595 x 570 x 820 mm | F96: ; Další specifikace viz Kniha vnitřního vybavení - Kniha - prvků - Elektro a příslušenství | G96: =CONCATENATE(B96,$C$1,C96,$E$1,E96,F96) -> Myčka vestavěná; Popis:Kapacita myčky 13 sad nádobí, 2 úložné koše, spotřeba vody 11 l, AQUA STOP proti přetečení, 2 ostřikovací ramena, 4 programy: Eco, Intenzivní, Normální, Oplachování, mycí teploty: 40-70°C, energetická třída A+, účinnost mytí A, účinnost sušení A, hlučnost 49 dB(A), spotřeba energie: 1,04 kWh.; Rozměry:595 x 570 x 820 mm ; Další specifikace viz Kniha vnitřního vybavení - Kniha - prvků - Elektro a příslušenství | H96: ks | I96: 1 | J96: 15000
A97: 1C.VV_E_002 | B97: Varná deska vestavěná | C97: Sklokeramická varná deska, 4 highlight varné zóny, dotykové ovládání, 9 stupňů výkonu, kontrolky provozu a zbytkového tepla, dětská pojistka, bez rámečku - rovné hrany. | E97: 590 x 520 x 46 mm | F97: ; Další specifikace viz Kniha vnitřního vybavení - Kniha - prvků - Elektro a příslušenství | G97: Varná deska vestavěná; Popis:Sklokeramická varná deska, 4 highlight varné zóny, dotykové ovládání, 9 stupňů výkonu, kontrolky provozu a zbytkového tepla, dětská pojistka, bez rámečku - rovné hrany.; Rozměry:590 x 520 x 46 mm ; Další specifikace viz Kniha vnitřního vybavení - Kniha - prvků - Elektro a příslušenství | H97: ks | I97: 1 | J97: 12000
A98: 1C.VV_E_003 | B98: Sušička na 8 kg prádla | C98: Sušička, min. 8kg prádla, kondenzační s tepelným čerpadlem, min. třída A, invertorový motor. | E98: 600 x 600 x 900 mm | F98: ; Další specifikace viz Kniha vnitřního vybavení - Kniha - prvků - Elektro a příslušenství | G98: Sušička na 8 kg prádla; Popis:Sušička, min. 8kg prádla, kondenzační s tepelným čerpadlem, min. třída A, invertorový motor.; Rozměry:600 x 600 x 900 mm ; Další specifikace viz Kniha vnitřního vybavení - Kniha - prvků - Elektro a příslušenství | H98: ks | I98: 1 | J98: 15000
A99: 1C.VV_E_004 | B99: Kuchyňský robot | C99: Robot s celokovovým tělem a kovovými převody, planetární systém hnětení, míchání a šlehání zaručuje bezezbytkové promíchání obsahu mísy, příslušenství: míchací metla, šlehací balónová metla, hnětací hák, mlýnek na maso se dvěma mlecími disky - hrubý 8mm a jemný 3mm, nástavec na plnění uzenářských produktů, kráječ a struhadlo se 3 vyměnitelnými nástavci pro hrubé, jemné a plátkové strouhání, kapacita pro přípravu až 1,5 kg těsta, šlehání až 8 vaječných bílků, nerezová mísa o objemu 4,5 l s dvěma madly, 8 rychlostí, regulace rychlosti otáček, bajonetový systém uchycení nástavců umožňuje rychlé sestavení i výměnu, odnímatelná mísa a příslušenství pro snadné mytí i v myčce, výkyvné rameno pro snadnou manipulaci a pohodlnější výměnu nástavců, aretační pojistka v horní poloze výkyvného ramene, protiskluzové nožky, zabraňující pohybu robotu při používání, tepelná pojistka proti přehřátí. | E99: 270 x 350 x 360 mm | F99: ; Další specifikace viz Kniha vnitřního vybavení - Kniha - prvků - Elektro a příslušenství | G99: Kuchyňský robot; Popis:Robot s celokovovým tělem a kovovými převody, planetární systém hnětení, míchání a šlehání zaručuje bezezbytkové promíchání obsahu mísy, příslušenství: míchací metla, šlehací balónová metla, hnětací hák, mlýnek na maso se dvěma mlecími disky - hrubý 8mm a jemný 3mm, nástavec na plnění uzenářských produktů, kráječ a struhadlo se 3 vyměnitelnými nástavci pro hrubé, jemné a plátkové strouhání, kapacita pro přípravu až 1,5 kg těsta, šlehání až 8 vaječných bílků, nerezová mísa o objemu 4,5 l s dvěma madly, 8 rychlostí, regulace rychlosti otáček, bajonetový systém uchycení nástavců umožňuje rychlé sestavení i výměnu, odnímatelná mísa a příslušenství pro snadné mytí i v myčce, výkyvné rameno pro snadnou manipulaci a pohodlnější výměnu nástavců, aretační pojistka v horní poloze výkyvného ramene, protiskluzové nožky, zabraňující pohybu robotu při používání, tepelná pojistka proti přehřátí.; Rozměry:270 x 350 x 360 mm ; Další specifikace viz Kniha vnitřního vybavení - Kniha - prvků - Elektro a příslušenství | H99: ks | I99: 1 | J99: 4990
A100: 1C.VV_E_005 | B100: Vestavěná trouba | C100: Multifunkční horkovzdušná elektrická trouba objem 60l. Samostatná trouba s pravým horkým vzduchem v energetické třídě A, funkce rozmrazování, displej s digitálním časovačem - nastavení minutky, denního času, konce pečení a doby pečení, možnost péci na 2 úrovních najednou, uvnitř trouby vysoce lesklý smalt pro snadné čištění, nerezové provedení. | E100: 594 x 540 x 589 mm | F100: ; Další specifikace viz Kniha vnitřního vybavení - Kniha - prvků - Elektro a příslušenství | G100: Vestavěná trouba; Popis:Multifunkční horkovzdušná elektrická trouba objem 60l. Samostatná trouba s pravým horkým vzduchem v energetické třídě A, funkce rozmrazování, displej s digitálním časovačem - nastavení minutky, denního času, konce pečení a doby pečení, možnost péci na 2 úrovních najednou, uvnitř trouby vysoce lesklý smalt pro snadné čištění, nerezové provedení.; Rozměry:594 x 540 x 589 mm ; Další specifikace viz Kniha vnitřního vybavení - Kniha - prvků - Elektro a příslušenství | H100: ks | I100: 1 | J100: 13000
A101: 1C.VV_E_006 | B101: Elektronicky polohovatelná postel | C101: Elektricky ovládané lůžko s dřevěným obložením, 4 dílnou ložnou plochou, postranicemi, zabraňující pádu z lůžka, výškové nastavení (od 38 do 86 cm). Nastavení výšky lůžka a náklonu jednotlivých dílů ložné plochy se provádí pomocí ovladače. Pasivní (pěnovou) antidekubitní matraci – působí preventivně proti vzniku dekubitů (proleženin). Je vyrobená z polyuretanové pěny se sníženou hořlavostí. Jádro je profilované s Flex-efektem pro dobré rozložení váhy pacienta. Má vyztužené okraje. Snímatelný potah vyrobený vysoko frekvenčním svařováním. Aktivní matraci – pro prevenci proleženin 2. stupně. Aktivní antidekubitní matrace se používaná v kombinaci s běžnou matrací. Interval výměny vzduchu 10 min. Nastavitelný tlak v matraci podle váhy pacienta, volba dynamického/statického režimu, signalizace nízkého tlaku. CPR ventil, zvukový alarm výpadku napájení. Hrazdu a rukojeť. Nosnost do 160 kg. | E101: 103 x 207 x 40-80 mm | F101: ; Další specifikace viz Kniha vnitřního vybavení - Kniha - prvků - Elektro a příslušenství | G101: Elektronicky polohovatelná postel; Popis:Elektricky ovládané lůžko s dřevěným obložením, 4 dílnou ložnou plochou, postranicemi, zabraňující pádu z lůžka, výškové nastavení (od 38 do 86 cm). Nastavení výšky lůžka a náklonu jednotlivých dílů ložné plochy se provádí pomocí ovladače. Pasivní (pěnovou) antidekubitní matraci – působí preventivně proti vzniku dekubitů (proleženin). Je vyrobená z polyuretanové pěny se sníženou hořlavostí. Jádro je profilované s Flex-efektem pro dobré rozložení váhy pacienta. Má vyztužené okraje. Snímatelný potah vyrobený vysoko frekvenčním svařováním. Aktivní matraci – pro prevenci proleženin 2. stupně. Aktivní antidekubitní matrace se používaná v kombinaci s běžnou matrací. Interval výměny vzduchu 10 min. Nastavitelný tlak v matraci podle váhy pacienta, volba dynamického/statického režimu, signalizace nízkého tlaku. CPR ventil, zvukový alarm výpadku napájení. Hrazdu a rukojeť. Nosnost do 160 kg.; Rozměry:103 x 207 x 40-80 mm ; Další specifikace viz Kniha vnitřního vybavení - Kniha - prvků - Elektro a příslušenství | H101: ks | I101: 1 | J101: 35000
A102: 1C.VV_E_007 | B102: Notebook | C102: Notebook, 15,4 “ LCD, 8 GB RAM, 500 GB HDD, procesor i3 a vyšší, Windows 10 Pro, MS Office 2016 Home and Bussines CZ. | E102: - - - | F102: ; Další specifikace viz Kniha vnitřního vybavení - Kniha - prvků - Elektro a příslušenství | G102: Notebook; Popis:Notebook, 15,4 “ LCD, 8 GB RAM, 500 GB HDD, procesor i3 a vyšší, Windows 10 Pro, MS Office 2016 Home and Bussines CZ.; Rozměry: - - - ; Další specifikace viz Kniha vnitřního vybavení - Kniha - prvků - Elektro a příslušenství | H102: ks | I102: 1 | J102: 33590
A103: 1C.VV_E_008 | B103: Tiskárna na A4 | C103: Malá tiskárna - Funkce: černobílý laserový tisk, kopírování, skenování, fax, Formát: A4, rozlišení tisku: 1200dpi, ovládání: dotykový barevný grafický displej, velikost paměti: 256 MB, rychlost tisku: 38 Str./min., doba tisku první strany: 5,7s, oboustranný tisk: automatický , vstupní zásobník: 250 listů, víceúčelový zásobník: 100 listů, výstupní zásobník: 150 listů, gramáž média: 60 – 175 g/m2, rozlišení kopírování: 600x600dpi, zoom kopírování: 25 – 400%, rozlišení skenování: 1200dpi, podavač skeneru: oboustranný 50 listů, oboustranné jednoprůchodové skenování fumkce skeneru: skenování do e-mailu, do síťové složky, do USB, připojení: USB 2.0, Ethernet 10/100/1000T, hostitelský USB port, jazyky tiskárny: PCL 5, HP PCL 6, emulace Postscript úrovně 3, přímý tisk PDF (v1.7), URF, PCLM, PWG. | E103: - - - | F103: ; Další specifikace viz Kniha vnitřního vybavení - Kniha - prvků - Elektro a příslušenství | G103: Tiskárna na A4; Popis:Malá tiskárna - Funkce: černobílý laserový tisk, kopírování, skenování, fax, Formát: A4, rozlišení tisku: 1200dpi, ovládání: dotykový barevný grafický displej, velikost paměti: 256 MB, rychlost tisku: 38 Str./min., doba tisku první strany: 5,7s, oboustranný tisk: automatický , vstupní zásobník: 250 listů, víceúčelový zásobník: 100 listů, výstupní zásobník: 150 listů, gramáž média: 60 – 175 g/m2, rozlišení kopírování: 600x600dpi, zoom kopírování: 25 – 400%, rozlišení skenování: 1200dpi, podavač skeneru: oboustranný 50 listů, oboustranné jednoprůchodové skenování fumkce skeneru: skenování do e-mailu, do síťové složky, do USB, připojení: USB 2.0, Ethernet 10/100/1000T, hostitelský USB port, jazyky tiskárny: PCL 5, HP PCL 6, emulace Postscript úrovně 3, přímý tisk PDF (v1.7), URF, PCLM, PWG.; Rozměry: - - - ; Další specifikace viz Kniha vnitřního vybavení - Kniha - prvků - Elektro a příslušenství | H103: ks | I103: 1 | J103: 5000

Sheet STOD_B (hidden)
A1: 1BD.1.1 | B1: Architektonicko-stavební řešení | C1: ; Popis: | D1: ; Materiál: | E1: ; Rozměry:
A2: 10_VB | B2: Výrobky
A3: KP | B3: Klempířské prvky | C3: Sloupec1 | D3: Sloupec2 | E3: Sloupec3 | F3: Sloupec4 | G3: Sloupec5 | H3: Sloupec6 | I3: Sloupec7 | J3: Sloupec8
A4: 1B.P1-1.01 | B4: Okenní parapet | C4: Oplechování parapetu oken včetně doplňkového a montážního materiálu. | D4: Ocelový pozinkovaný plech, tl. 0,6 mm, exteriérový nátěr v odstínu RAL 7016 | E4: r.š. 330 mm | F4: ; Další specifikace viz Kniha klempířských prvků | G4: =CONCATENATE(B4,$C$1,C4,$D$1,D4,$E$1,E4,F4) -> Okenní parapet; Popis:Oplechování parapetu oken včetně doplňkového a montážního materiálu.; Materiál:Ocelový pozinkovaný plech, tl. 0,6 mm, exteriérový nátěr v odstínu RAL 7016; Rozměry:r.š. 330 mm ; Další specifikace viz Kniha klempířských prvků | H4: m | I4: 14.7 | J4: 474
A5: 1B.P1-1.02 | B5: Oplechování atiky | C5: Oplechování atiky, včetně doplňkového a montážního materiálu. | D5: Ocelový pozinkovaný plech, tl. 0,6 mm, exteriérový nátěr v odstínu RAL 7016 | E5: r.š. 860 mm | F5: ; Další specifikace viz Kniha klempířských prvků | G5: Oplechování atiky; Popis:Oplechování atiky, včetně doplňkového a montážního materiálu.; Materiál:Ocelový pozinkovaný plech, tl. 0,6 mm, exteriérový nátěr v odstínu RAL 7016; Rozměry:r.š. 860 mm ; Další specifikace viz Kniha klempířských prvků | H5: m | I5: 13.7 | J5: 1480
A6: 1B.P1-1.03 | B6: Oplechování atiky | C6: Oplechování atiky, včetně doplňkového a montážního materiálu. | D6: Ocelový pozinkovaný plech, tl. 0,6 mm, exteriérový nátěr v odstínu RAL 7016 | E6: r.š. 720 mm | F6: ; Další specifikace viz Kniha klempířských prvků | G6: Oplechování atiky; Popis:Oplechování atiky, včetně doplňkového a montážního materiálu.; Materiál:Ocelový pozinkovaný plech, tl. 0,6 mm, exteriérový nátěr v odstínu RAL 7016; Rozměry:r.š. 720 mm ; Další specifikace viz Kniha klempířských prvků | H6: m | I6: 14.1 | J6: 1100
A7: 1B.P1-1.04 | B7: Boční oplechování | C7: Boční oplechování, včetně doplňkového a montážního materiálu. | D7: Ocelový pozinkovaný plech, tl. 0,6 mm, exteriérový nátěr v odstínu RAL 7016 | E7: r.š. 435 mm | F7: ; Další specifikace viz Kniha klempířských prvků | G7: Boční oplechování; Popis:Boční oplechování, včetně doplňkového a montážního materiálu.; Materiál:Ocelový pozinkovaný plech, tl. 0,6 mm, exteriérový nátěr v odstínu RAL 7016; Rozměry:r.š. 435 mm ; Další specifikace viz Kniha klempířských prvků | H7: m | I7: 5.5 | J7: 860
A8: 1B.P1-1.05 | B8: Dešťový žlab | C8: Dešťový žlab, včetně doplňkového a montážního materiálu. | D8: Ocelový pozinkovaný plech, tl. 0,6 mm, exteriérový nátěr v odstínu RAL 7016 | E8: průměr 300 mm | F8: ; Další specifikace viz Kniha klempířských prvků | G8: Dešťový žlab; Popis:Dešťový žlab, včetně doplňkového a montážního materiálu.; Materiál:Ocelový pozinkovaný plech, tl. 0,6 mm, exteriérový nátěr v odstínu RAL 7016; Rozměry:průměr 300 mm ; Další specifikace viz Kniha klempířských prvků | H8: m | I8: 32.1 | J8: 725
A9: 1B.P1-1.06 | B9: Dešťový svod | C9: Dešťový svod, včetně doplňkového a montážního materiálu. | D9: Ocelový pozinkovaný plech, tl. 0,6 mm, exteriérový nátěr v odstínu RAL 7016 | E9: průměr 120 mm | F9: ; Další specifikace viz Kniha klempířských prvků | G9: Dešťový svod; Popis:Dešťový svod, včetně doplňkového a montážního materiálu.; Materiál:Ocelový pozinkovaný plech, tl. 0,6 mm, exteriérový nátěr v odstínu RAL 7016; Rozměry:průměr 120 mm ; Další specifikace viz Kniha klempířských prvků | H9: m | I9: 14.1 | J9: 919
A10: KP | B10: Zámečnické prvky
A11: 1B.Z1-1.01 | B11: Drátěné poplastované pletivo | C11: Oplocení z dratěného poplastovaného pletiva se sloupkami, obrubníkem a brankou. Branka opatřena kováním klika koule se samozavíračem a generální vložkovým klíčem. Velikost ok pletiva 55 x 55 mm. Nosné sloupky z švorové trubky 48 mm o síle stěny 1,5 mm. Sloupky po 2,5 m, opěry plotu na začátku, na konci na každém rohu a po každých 25 m. Základová patka se provádí pod každým nosným sloupkem do nezámrzné hloubky, velikost pakty 300 x 300 mm. Obrubník je uložen do rýhy s maltovým ložem. Výška obrubníku je 200 mm, je částečně zapuštěn do terénu. | D11: Poplastované plepletivo a sloupky a branka, barva jehlová zeleň RAL 6005, obrubník: beton | E11: výška 1,8 m | F11: ; Další specifikace viz Kniha zámečnických prvků | G11: =CONCATENATE(B11,$C$1,C11,$D$1,D11,$E$1,E11,F11) -> Drátěné poplastované pletivo; Popis:Oplocení z dratěného poplastovaného pletiva se sloupkami, obrubníkem a brankou. Branka opatřena kováním klika koule se samozavíračem a generální vložkovým klíčem. Velikost ok pletiva 55 x 55 mm. Nosné sloupky z švorové trubky 48 mm o síle stěny 1,5 mm. Sloupky po 2,5 m, opěry plotu na začátku, na konci na každém rohu a po každých 25 m. Základová patka se provádí pod každým nosným sloupkem do nezámrzné hloubky, velikost pakty 300 x 300 mm. Obrubník je uložen do rýhy s maltovým ložem. Výška obrubníku je 200 mm, je částečně zapuštěn do terénu.; Materiál:Poplastované plepletivo a sloupky a branka, barva jehlová zeleň RAL 6005, obrubník: beton; Rozměry:výška 1,8 m ; Další specifikace viz Kniha zámečnických prvků | H11: m | I11: 52.5 | J11: 1297
A12: TP | B12: Truhlářské prvky
A13: 1B.T1-1.01 | B13: Oddělující lehká dřevěná příčka | C13: Oddělující lehká dřevěná příčka, rošt ze smrkových doblovaných hranolů 40 x 40 mm spojené konstrukčními vruty se zápustnou hlavou, opláštěné laminátovou MDF deskou, vzor světlého dřeva s méně výraznou kresbou. Hranoly kotveny do stěny a stropu. Součástí příčky jsou uzamykatelné dveře o rozměru 1600 x 1970 mm, obložková polodrážková zárubeň materiál MDF, vložkový zámek + klika. | D13: rošt: smrkové hranoly, opláštění a dveře: MDF deska, zámek a klika: broušený nerez | E13: 2500 x 60 x 2300 mm (d x hl x v) | F13: ; Všechen nábytek musí být proveden tak, aby splňoval požadavky pro užívání lidí s autismem. Tento nábytek musí splňovat požadavky na dostatečnou odolnost, jednoduchou udržovatelnost, vysokou odolnost vůči poškození, musí byýt dostatečně tuhý, stabilní a odolný proti nárazu, tak aby nedošlo k poškození nábytku ani k úrazu; Další specifikace viz Kniha truhlářských prvků | G13: =CONCATENATE(B13,$C$1,C13,$D$1,D13,$E$1,E13,F13) -> Oddělující lehká dřevěná příčka; Popis:Oddělující lehká dřevěná příčka, rošt ze smrkových doblovaných hranolů 40 x 40 mm spojené konstrukčními vruty se zápustnou hlavou, opláštěné laminátovou MDF deskou, vzor světlého dřeva s méně výraznou kresbou. Hranoly kotveny do stěny a stropu. Součástí příčky jsou uzamykatelné dveře o rozměru 1600 x 1970 mm, obložková polodrážková zárubeň materiál MDF, vložkový zámek + klika.; Materiál:rošt: smrkové hranoly, opláštění a dveře: MDF deska, zámek a klika: broušený nerez; Rozměry:2500 x 60 x 2300 mm (d x hl x v) ; Všechen nábytek musí být proveden tak, aby splňoval požadavky pro užívání lidí s autismem. Tento nábytek musí splňovat požadavky na dostatečnou odolnost, jednoduchou udržovatelnost, vysokou odolnost vůči poškození, musí byýt dostatečně tuhý, stabilní a odolný proti nárazu, tak aby nedošlo k poškození nábytku ani k úrazu; Další specifikace viz Kniha truhlářských prvků | H13: ks | I13: 1 | J13: =23000*1.2 -> 27600
A14: 1B.T1-1.02 | B14: Kuchyňská linka tvaru U | C14: Kuchyňská linka tvaru U, sokl 80 mm, korpus z lamino desky tl. 18 mm, hrana z ABS tl. 2 mm. Horní i spodní skříňky plné, pracovní deska z laminátové desky tl. 38 mm, nerezový dřez s odkapávačem. Kování linky je kovové. Součástí kuchyňské linky je dřez s odkapávačem, varná deska se čtyřmi plotýnkami, trouba, lednička, mrazák a myčka. Spotřebiče energetiské třídy min. A přesně specifikovány vnitřního vybavení. Horní i spodní část je opatřená krycím panelem š. 50 mm. | D14: Korpus z lamina, pracovní deska z laminátové desky | E14: viz. obrazová příloha | F14: ; SPOTŘEBIČE OCENIT V KAPITOLE_Prvky vnitřního vybevení - Elektro a příslušenství ; Všechen nábytek musí být proveden tak, aby splňoval požadavky pro užívání lidí s autismem. Tento nábytek musí splňovat požadavky na dostatečnou odolnost, jednoduchou udržovatelnost, vysokou odolnost vůči poškození, musí byýt dostatečně tuhý, stabilní a odolný proti nárazu, tak aby nedošlo k poškození nábytku ani k úrazu; Další specifikace viz Kniha truhlářských prvků | G14: =CONCATENATE(B14,$C$1,C14,$D$1,D14,$E$1,E14,F14) -> Kuchyňská linka tvaru U; Popis:Kuchyňská linka tvaru U, sokl 80 mm, korpus z lamino desky tl. 18 mm, hrana z ABS tl. 2 mm. Horní i spodní skříňky plné, pracovní deska z laminátové desky tl. 38 mm, nerezový dřez s odkapávačem. Kování linky je kovové. Součástí kuchyňské linky je dřez s odkapávačem, varná deska se čtyřmi plotýnkami, trouba, lednička, mrazák a myčka. Spotřebiče energetiské třídy min. A přesně specifikovány vnitřního vybavení. Horní i spodní část je opatřená krycím panelem š. 50 mm.; Materiál:Korpus z lamina, pracovní deska z laminátové desky; Rozměry:viz. obrazová příloha ; SPOTŘEBIČE OCENIT V KAPITOLE_Prvky vnitřního vybevení - Elektro a příslušenství ; Všechen nábytek musí být proveden tak, aby splňoval požadavky pro užívání lidí s autismem. Tento nábytek musí splňovat požadavky na dostatečnou odolnost, jednoduchou udržovatelnost, vysokou odolnost vůči poškození, musí byýt dostatečně tuhý, stabilní a odolný proti nárazu, tak aby nedošlo k poškození nábytku ani k úrazu; Další specifikace viz Kniha truhlářských prvků | H14: ks | I14: 1 | J14: =231600*1.2*0.9 -> 250128
A15: OP | B15: Ostatní prvky
A16: 1B.X1-1.01 | B16: Venkovní rolety | C16: Venkovní hliníková roleta pro regulaci přirozeného osvětlení a zachycení slunečních paprsků s bočními vodícími lištami. Horní ocelový válcovaný profil upravený pozinkování o rozměru 58 x 56 mm zakrytý krycím plechem. Lamely hliníkové o šířce 80 mm s navíjecími mechanismy, textilními žebříčky a vytahovacími páskami. Boční vodící lišty o rozměru 20 x 20 mm v barvě stříbrná elox. Ovládání elektrické. | D16: hliník, barva stříbrný elox | E16: 1250x1750 mm (šxv) | F16: ; Další specifikace viz Kniha ostatních prvků | G16: =CONCATENATE(B16,$C$1,C16,$D$1,D16,$E$1,E16,F16) -> Venkovní rolety; Popis:Venkovní hliníková roleta pro regulaci přirozeného osvětlení a zachycení slunečních paprsků s bočními vodícími lištami. Horní ocelový válcovaný profil upravený pozinkování o rozměru 58 x 56 mm zakrytý krycím plechem. Lamely hliníkové o šířce 80 mm s navíjecími mechanismy, textilními žebříčky a vytahovacími páskami. Boční vodící lišty o rozměru 20 x 20 mm v barvě stříbrná elox. Ovládání elektrické.; Materiál:hliník, barva stříbrný elox; Rozměry:1250x1750 mm (šxv) ; Další specifikace viz Kniha ostatních prvků | H16: ks | I16: 6 | J16: 6125
A17: 1B.X1-1.02 | B17: Stahovací schody zateplené s požární odolností | C17: Stahovací schody zateplené s protipožární vložkou (EW 15 DP3). Schody jsou opatřeny brzdícím mechanismem proti prudkému otevření. Víko je sendvočové složeno z dřevěného rámu vyplněný izolačním materiálem opláštěný pozinkovaným plechem. Pohledová čast je lakovaná v bílé barvě a kryta ochrannou fólií. | D17: víko: dřevěný rám vyplněný izolantem opláštěný pozinkovaným plechem, pohledová část lakovaná, barva bílá, schody: kovové | E17: 600 x 800 mm (š x d) | F17: ; Další specifikace viz Kniha ostatních prvků | G17: =CONCATENATE(B17,$C$1,C17,$D$1,D17,$E$1,E17,F17) -> Stahovací schody zateplené s požární odolností; Popis:Stahovací schody zateplené s protipožární vložkou (EW 15 DP3). Schody jsou opatřeny brzdícím mechanismem proti prudkému otevření. Víko je sendvočové složeno z dřevěného rámu vyplněný izolačním materiálem opláštěný pozinkovaným plechem. Pohledová čast je lakovaná v bílé barvě a kryta ochrannou fólií.; Materiál:víko: dřevěný rám vyplněný izolantem opláštěný pozinkovaným plechem, pohledová část lakovaná, barva bílá, schody: kovové; Rozměry:600 x 800 mm (š x d) ; Další specifikace viz Kniha ostatních prvků | H17: ks | I17: 1 | J17: =14720*1.2 -> 17664
A18: VV_N | B18: Prvky vnitřního vybevení - Nábytek a příslušenství
A19: 1B.VV_N_001 | B19: Sedací vak | C19: Sedací dvouvrstvý vak, výplň z kuliček z polystyrenu, obsah náplně 365 l. Materiál potahu jednobarevný polyester a polyester s PVC zátěrem z rubové strany . Hmotnost 5,5 kg.Nosnost 120 kg. | E19: 1050 x 950 x 750 mm (d x š x v) | F19: ; Všechen nábytek musí být proveden tak, aby splňoval požadavky pro užívání lidí s autismem. Tento nábytek musí splňovat požadavky na dostatečnou odolnost, jednoduchou udržovatelnost, vysokou odolnost vůči poškození, musí byýt dostatečně tuhý, stabilní a odolný proti nárazu, tak aby nedošlo k poškození nábytku ani k úrazu; Další specifikace viz Kniha vnitřního vybavení - Kniha - prvků - Nábytek a příslušenství | G19: =CONCATENATE(B19,$C$1,C19,$E$1,E19,F19) -> Sedací vak; Popis:Sedací dvouvrstvý vak, výplň z kuliček z polystyrenu, obsah náplně 365 l. Materiál potahu jednobarevný polyester a polyester s PVC zátěrem z rubové strany . Hmotnost 5,5 kg.Nosnost 120 kg.; Rozměry:1050 x 950 x 750 mm (d x š x v) ; Všechen nábytek musí být proveden tak, aby splňoval požadavky pro užívání lidí s autismem. Tento nábytek musí splňovat požadavky na dostatečnou odolnost, jednoduchou udržovatelnost, vysokou odolnost vůči poškození, musí byýt dostatečně tuhý, stabilní a odolný proti nárazu, tak aby nedošlo k poškození nábytku ani k úrazu; Další specifikace viz Kniha vnitřního vybavení - Kniha - prvků - Nábytek a příslušenství | H19: ks | I19: 6 | J19: 3690
A20: 1B.VV_N_002 | B20: Předsíňová stěna s věšáky | C20: Předsíňová stěna s kovovými háčky se dvěmi úchytkami a policí, kotvená do stěny včetně montážního materiálu. Korpus a police z MDF desky, barva světle hnědá, tl. 20 mm. Hrany optařeny ABS hranou tl. 1,5 mm. Háček (5 ks) se dvěmi úchytkami kotvená na desku věšáku včetně kotvení. Materiál nerezová ocel. | E20: věšák: 660 x 240 x 1520 mm (d x š x v), háček: 70 x 30 x 47 mm (d x š x v) | F20: ; Všechen nábytek musí být proveden tak, aby splňoval požadavky pro užívání lidí s autismem. Tento nábytek musí splňovat požadavky na dostatečnou odolnost, jednoduchou udržovatelnost, vysokou odolnost vůči poškození, musí byýt dostatečně tuhý, stabilní a odolný proti nárazu, tak aby nedošlo k poškození nábytku ani k úrazu; Další specifikace viz Kniha vnitřního vybavení - Kniha - prvků - Nábytek a příslušenství | G20: Předsíňová stěna s věšáky; Popis:Předsíňová stěna s kovovými háčky se dvěmi úchytkami a policí, kotvená do stěny včetně montážního materiálu. Korpus a police z MDF desky, barva světle hnědá, tl. 20 mm. Hrany optařeny ABS hranou tl. 1,5 mm. Háček (5 ks) se dvěmi úchytkami kotvená na desku věšáku včetně kotvení. Materiál nerezová ocel.; Rozměry:věšák: 660 x 240 x 1520 mm (d x š x v), háček: 70 x 30 x 47 mm (d x š x v) ; Všechen nábytek musí být proveden tak, aby splňoval požadavky pro užívání lidí s autismem. Tento nábytek musí splňovat požadavky na dostatečnou odolnost, jednoduchou udržovatelnost, vysokou odolnost vůči poškození, musí byýt dostatečně tuhý, stabilní a odolný proti nárazu, tak aby nedošlo k poškození nábytku ani k úrazu; Další specifikace viz Kniha vnitřního vybavení - Kniha - prvků - Nábytek a příslušenství | H20: ks | I20: 1 | J20: =1427*1.2*1.3 -> 2226.12
A21: 1B.VV_N_003 | B21: Botník s variabilními policemi a lavicí | C21: Botník s variabilními policemi a lavicí. Botník je členěn na 12 polic pro uložení bot. Materiál laminovaná MDF deska, barva světle hnědá. Dno i půda z desky tl. 25 mm, z přední strany ABS hrana tl. 2 mm. Ostatní pohlednové prvky opatřeny ABS hranou tl. 1 mm. Boky korpusu z desky tl. 25 mm. Záda z desky tl. 10 mm. Police z desky tl. 20 mm s variabilním polohovatelností. Police a desky opatřeny hranou ABS tl. 2 mm. Dodávka včetvě rektifikačních nožiček. Sedák čalouněný potahvou látkou v barvě šedé. | E21: 1000 x 400 x 480 mm (d x š x v) | F21: ; Všechen nábytek musí být proveden tak, aby splňoval požadavky pro užívání lidí s autismem. Tento nábytek musí splňovat požadavky na dostatečnou odolnost, jednoduchou udržovatelnost, vysokou odolnost vůči poškození, musí byýt dostatečně tuhý, stabilní a odolný proti nárazu, tak aby nedošlo k poškození nábytku ani k úrazu; Další specifikace viz Kniha vnitřního vybavení - Kniha - prvků - Nábytek a příslušenství | G21: Botník s variabilními policemi a lavicí; Popis:Botník s variabilními policemi a lavicí. Botník je členěn na 12 polic pro uložení bot. Materiál laminovaná MDF deska, barva světle hnědá. Dno i půda z desky tl. 25 mm, z přední strany ABS hrana tl. 2 mm. Ostatní pohlednové prvky opatřeny ABS hranou tl. 1 mm. Boky korpusu z desky tl. 25 mm. Záda z desky tl. 10 mm. Police z desky tl. 20 mm s variabilním polohovatelností. Police a desky opatřeny hranou ABS tl. 2 mm. Dodávka včetvě rektifikačních nožiček. Sedák čalouněný potahvou látkou v barvě šedé.; Rozměry:1000 x 400 x 480 mm (d x š x v) ; Všechen nábytek musí být proveden tak, aby splňoval požadavky pro užívání lidí s autismem. Tento nábytek musí splňovat požadavky na dostatečnou odolnost, jednoduchou udržovatelnost, vysokou odolnost vůči poškození, musí byýt dostatečně tuhý, stabilní a odolný proti nárazu, tak aby nedošlo k poškození nábytku ani k úrazu; Další specifikace viz Kniha vnitřního vybavení - Kniha - prvků - Nábytek a příslušenství | H21: ks | I21: 1 | J21: =3090*1.2*1.3 -> 4820.4
A22: 1B.VV_N_004 | B22: Vestavěná skříň policová plná s dveřmi rozdělenými na dvě části (výška 2000 mm) | C22: Skříň dvoudvéřová. Vybavená 5 ks variabilních polic. Materiál laminovaná MDF deska, barva světle hnědá. Dno i půda z desky tl. 25 mm, z přední strany ABS hrana tl. 2 mm. Ostatní pohlednové prvky opatřeny ABS hranou tl. 1 mm. Boky korpusu z desky tl. 18 mm. Záda z desky tl. 8 mm. Police z desky tl. 25 mm, nosnost 80 kg s variabilním polohovatelností. Police a desky opatřeny hranou ABS tl. 2 mm. Dodávka včetvě rektifikačních nožiček. | E22: 1400 x 400 x 2000 mm (d x š x v) | F22: ; Všechen nábytek musí být proveden tak, aby splňoval požadavky pro užívání lidí s autismem. Tento nábytek musí splňovat požadavky na dostatečnou odolnost, jednoduchou udržovatelnost, vysokou odolnost vůči poškození, musí byýt dostatečně tuhý, stabilní a odolný proti nárazu, tak aby nedošlo k poškození nábytku ani k úrazu; Další specifikace viz Kniha vnitřního vybavení - Kniha - prvků - Nábytek a příslušenství | G22: Vestavěná skříň policová plná s dveřmi rozdělenými na dvě části (výška 2000 mm); Popis:Skříň dvoudvéřová. Vybavená 5 ks variabilních polic. Materiál laminovaná MDF deska, barva světle hnědá. Dno i půda z desky tl. 25 mm, z přední strany ABS hrana tl. 2 mm. Ostatní pohlednové prvky opatřeny ABS hranou tl. 1 mm. Boky korpusu z desky tl. 18 mm. Záda z desky tl. 8 mm. Police z desky tl. 25 mm, nosnost 80 kg s variabilním polohovatelností. Police a desky opatřeny hranou ABS tl. 2 mm. Dodávka včetvě rektifikačních nožiček.; Rozměry:1400 x 400 x 2000 mm (d x š x v) ; Všechen nábytek musí být proveden tak, aby splňoval požadavky pro užívání lidí s autismem. Tento nábytek musí splňovat požadavky na dostatečnou odolnost, jednoduchou udržovatelnost, vysokou odolnost vůči poškození, musí byýt dostatečně tuhý, stabilní a odolný proti nárazu, tak aby nedošlo k poškození nábytku ani k úrazu; Další specifikace viz Kniha vnitřního vybavení - Kniha - prvků - Nábytek a příslušenství | H22: ks | I22: 1 | J22: =21000*1.3 -> 27300
A23: 1B.VV_N_005 | B23: Skříňka do koupelny (výška 700 mm) | C23: Skřínka se čtyřmi zásuvkami do koupleny a nožičkami. Materiál laminátová MDF deska, barva bílá. Dno i půda z desky tl. 25 mm, z přední strany ABS hrana tl. 2 mm. Ostatní pohlednové prvky opatřeny ABS hranou tl. 1 mm. Boky korpusu z desky tl. 18 mm. Záda z desky tl. 8 mm. Police z desky tl. 25 mm, nosnost 50 kg. Police a desky opatřeny hranou ABS tl. 2 mm. Dodávka včetvě kovových nožiček a úchytek k zásuvkám. | E23: 400 x 400 x 700 mm (d x š x v) | F23: ; Všechen nábytek musí být proveden tak, aby splňoval požadavky pro užívání lidí s autismem. Tento nábytek musí splňovat požadavky na dostatečnou odolnost, jednoduchou udržovatelnost, vysokou odolnost vůči poškození, musí byýt dostatečně tuhý, stabilní a odolný proti nárazu, tak aby nedošlo k poškození nábytku ani k úrazu; Další specifikace viz Kniha vnitřního vybavení - Kniha - prvků - Nábytek a příslušenství | G23: Skříňka do koupelny (výška 700 mm); Popis:Skřínka se čtyřmi zásuvkami do koupleny a nožičkami. Materiál laminátová MDF deska, barva bílá. Dno i půda z desky tl. 25 mm, z přední strany ABS hrana tl. 2 mm. Ostatní pohlednové prvky opatřeny ABS hranou tl. 1 mm. Boky korpusu z desky tl. 18 mm. Záda z desky tl. 8 mm. Police z desky tl. 25 mm, nosnost 50 kg. Police a desky opatřeny hranou ABS tl. 2 mm. Dodávka včetvě kovových nožiček a úchytek k zásuvkám.; Rozměry:400 x 400 x 700 mm (d x š x v) ; Všechen nábytek musí být proveden tak, aby splňoval požadavky pro užívání lidí s autismem. Tento nábytek musí splňovat požadavky na dostatečnou odolnost, jednoduchou udržovatelnost, vysokou odolnost vůči poškození, musí byýt dostatečně tuhý, stabilní a odolný proti nárazu, tak aby nedošlo k poškození nábytku ani k úrazu; Další specifikace viz Kniha vnitřního vybavení - Kniha - prvků - Nábytek a příslušenství | H23: ks | I23: 1 | J23: =3990*1.2*1.3 -> 6224.4
A24: 1B.VV_N_006 | B24: Zabudované zrcadlo | C24: Nástěné pravoúhlé zrcadlo na toalety k přilepení na stěnu. Materiál sklo s bezpečnostní fólií se zabroušenými hranami. Lepidlo určené pro lepení zrcadel. | E24: 600 x 400 mm (š x v) | G24: Zabudované zrcadlo; Popis:Nástěné pravoúhlé zrcadlo na toalety k přilepení na stěnu. Materiál sklo s bezpečnostní fólií se zabroušenými hranami. Lepidlo určené pro lepení zrcadel.; Rozměry:600 x 400 mm (š x v) | H24: ks | I24: 1 | J24: 750
A25: 1B.VV_N_007 | B25: Sklopné sedátko do sprchy s madlem | C25: Sklopné sedátko do sprchy včetně montážního materiálu. Nosná konstrukce z nerezové oceli, sedátkou z odolného plastu jedohuše udržovatlené. Maximální nosnost 200 kg. | E25: 440 x 470 mm (d x š) | F25: ; Všechen nábytek musí být proveden tak, aby splňoval požadavky pro užívání lidí s autismem. Tento nábytek musí splňovat požadavky na dostatečnou odolnost, jednoduchou udržovatelnost, vysokou odolnost vůči poškození, musí byýt dostatečně tuhý, stabilní a odolný proti nárazu, tak aby nedošlo k poškození nábytku ani k úrazu; Další specifikace viz Kniha vnitřního vybavení - Kniha - prvků - Nábytek a příslušenství | G25: Sklopné sedátko do sprchy s madlem; Popis:Sklopné sedátko do sprchy včetně montážního materiálu. Nosná konstrukce z nerezové oceli, sedátkou z odolného plastu jedohuše udržovatlené. Maximální nosnost 200 kg.; Rozměry:440 x 470 mm (d x š) ; Všechen nábytek musí být proveden tak, aby splňoval požadavky pro užívání lidí s autismem. Tento nábytek musí splňovat požadavky na dostatečnou odolnost, jednoduchou udržovatelnost, vysokou odolnost vůči poškození, musí byýt dostatečně tuhý, stabilní a odolný proti nárazu, tak aby nedošlo k poškození nábytku ani k úrazu; Další specifikace viz Kniha vnitřního vybavení - Kniha - prvků - Nábytek a příslušenství | H25: ks | I25: 1 | J25: =3567*1.2 -> 4280.4
A26: 1B.VV_N_008 | B26: Police do skladu (výška 2000 mm) | C26: Police do skladu s pěti policemi včetně montážního materiálu. Police jsou výškově přestavitelné v rastru 138 mm. Šedý policový regál je rychle smontovatelný bez spojovacího materiálu. Police se jednoduchým způsobem nasadí na sloupky. Možnost spojování do polí a řad vedle sebe i za sebou pro zvýšení celkové tuhosti. Konstrukce je povrchově upravena práškovým lakem šedé barvy. Nohy jsou vybaveny plastovými patkami pro ochranu podlahové krytiny. | E26: 2000 x 600 x 2000 mm (d x š x v) | F26: ; Všechen nábytek musí být proveden tak, aby splňoval požadavky pro užívání lidí s autismem. Tento nábytek musí splňovat požadavky na dostatečnou odolnost, jednoduchou udržovatelnost, vysokou odolnost vůči poškození, musí byýt dostatečně tuhý, stabilní a odolný proti nárazu, tak aby nedošlo k poškození nábytku ani k úrazu; Další specifikace viz Kniha vnitřního vybavení - Kniha - prvků - Nábytek a příslušenství | G26: Police do skladu (výška 2000 mm); Popis:Police do skladu s pěti policemi včetně montážního materiálu. Police jsou výškově přestavitelné v rastru 138 mm. Šedý policový regál je rychle smontovatelný bez spojovacího materiálu. Police se jednoduchým způsobem nasadí na sloupky. Možnost spojování do polí a řad vedle sebe i za sebou pro zvýšení celkové tuhosti. Konstrukce je povrchově upravena práškovým lakem šedé barvy. Nohy jsou vybaveny plastovými patkami pro ochranu podlahové krytiny.; Rozměry:2000 x 600 x 2000 mm (d x š x v) ; Všechen nábytek musí být proveden tak, aby splňoval požadavky pro užívání lidí s autismem. Tento nábytek musí splňovat požadavky na dostatečnou odolnost, jednoduchou udržovatelnost, vysokou odolnost vůči poškození, musí byýt dostatečně tuhý, stabilní a odolný proti nárazu, tak aby nedošlo k poškození nábytku ani k úrazu; Další specifikace viz Kniha vnitřního vybavení - Kniha - prvků - Nábytek a příslušenství | H26: ks | I26: 2 | J26: 20000
A27: 1B.VV_N_009 | B27: Police do skladu tvaru "L" (výška 2000 mm) | C27: Police do skladu tvaru "L" s pěti police včetně montážního materiálu. Police jsou výškově přestavitelné v rastru 138 mm. Šedý policový regál je rychle smontovatelný bez spojovacího materiálu. Police se jednoduchým způsobem nasadí na sloupky. Možnost spojování do polí a řad vedle sebe i za sebou pro zvýšení celkové tuhosti. Konstrukce je povrchově upravena práškovým lakem šedé barvy. Nohy jsou vybaveny plastovými patkami pro ochranu podlahové krytiny. | E27: 1810/1610 x 600 x 2000 mm (d x š x v) | F27: ; Všechen nábytek musí být proveden tak, aby splňoval požadavky pro užívání lidí s autismem. Tento nábytek musí splňovat požadavky na dostatečnou odolnost, jednoduchou udržovatelnost, vysokou odolnost vůči poškození, musí byýt dostatečně tuhý, stabilní a odolný proti nárazu, tak aby nedošlo k poškození nábytku ani k úrazu; Další specifikace viz Kniha vnitřního vybavení - Kniha - prvků - Nábytek a příslušenství | G27: Police do skladu tvaru "L" (výška 2000 mm); Popis:Police do skladu tvaru "L" s pěti police včetně montážního materiálu. Police jsou výškově přestavitelné v rastru 138 mm. Šedý policový regál je rychle smontovatelný bez spojovacího materiálu. Police se jednoduchým způsobem nasadí na sloupky. Možnost spojování do polí a řad vedle sebe i za sebou pro zvýšení celkové tuhosti. Konstrukce je povrchově upravena práškovým lakem šedé barvy. Nohy jsou vybaveny plastovými patkami pro ochranu podlahové krytiny.; Rozměry:1810/1610 x 600 x 2000 mm (d x š x v) ; Všechen nábytek musí být proveden tak, aby splňoval požadavky pro užívání lidí s autismem. Tento nábytek musí splňovat požadavky na dostatečnou odolnost, jednoduchou udržovatelnost, vysokou odolnost vůči poškození, musí byýt dostatečně tuhý, stabilní a odolný proti nárazu, tak aby nedošlo k poškození nábytku ani k úrazu; Další specifikace viz Kniha vnitřního vybavení - Kniha - prvků - Nábytek a příslušenství | H27: ks | I27: 1 | J27: 18100
A28: 1B.VV_N_010 | B28: Celomasivní postel s matrací | C28: Celomasivní poslet z bukového dřeva i s matrací. Materiál bukové dřevo ošetřeno nezávadným lakem ve dvou vrstvách. Součástí postele je rošt, čelo hlavy, nohy a nosná konstrukce. Výška čela u hlavy 870 mm a výška čela u nohou 460 mm, nohy rozměru 55 x 55 mm, nosná konstrukce z masinu tl. 29 mm. Ortopedická matrace s kanálky pro zajištění dostatečného větrání s potahem se zipem. Výška matrace 200 mm. Matrace má vyskou tvarvou stálost a zónované jádro. Nosnot matrace 130 kg. | E28: rozměr postele: 2200 x 1000 mm (d x š), rozměr madrace: 2100 x 900 mm (d x š) | F28: ; Všechen nábytek musí být proveden tak, aby splňoval požadavky pro užívání lidí s autismem. Tento nábytek musí splňovat požadavky na dostatečnou odolnost, jednoduchou udržovatelnost, vysokou odolnost vůči poškození, musí byýt dostatečně tuhý, stabilní a odolný proti nárazu, tak aby nedošlo k poškození nábytku ani k úrazu; Další specifikace viz Kniha vnitřního vybavení - Kniha - prvků - Nábytek a příslušenství | G28: Celomasivní postel s matrací; Popis:Celomasivní poslet z bukového dřeva i s matrací. Materiál bukové dřevo ošetřeno nezávadným lakem ve dvou vrstvách. Součástí postele je rošt, čelo hlavy, nohy a nosná konstrukce. Výška čela u hlavy 870 mm a výška čela u nohou 460 mm, nohy rozměru 55 x 55 mm, nosná konstrukce z masinu tl. 29 mm. Ortopedická matrace s kanálky pro zajištění dostatečného větrání s potahem se zipem. Výška matrace 200 mm. Matrace má vyskou tvarvou stálost a zónované jádro. Nosnot matrace 130 kg.; Rozměry:rozměr postele: 2200 x 1000 mm (d x š), rozměr madrace: 2100 x 900 mm (d x š) ; Všechen nábytek musí být proveden tak, aby splňoval požadavky pro užívání lidí s autismem. Tento nábytek musí splňovat požadavky na dostatečnou odolnost, jednoduchou udržovatelnost, vysokou odolnost vůči poškození, musí byýt dostatečně tuhý, stabilní a odolný proti nárazu, tak aby nedošlo k poškození nábytku ani k úrazu; Další specifikace viz Kniha vnitřního vybavení - Kniha - prvků - Nábytek a příslušenství | H28: ks | I28: 6 | J28: 25000
A29: 1B.VV_N_011 | B29: Šatní skříň plná s dveřmi rozdělenými na dvě části (výška 2000 mm) | C29: Skříň dvoudvéřová s nosnou ocelovou konstrukcí opláštěnou dubovými spárovkami. Vybavená 5 ks polic. Materiál dubová spárovka, ošetřeno nezávadným lakem ve dvou vrstvách. Dno, půda a boky z desky tl. 26 mm, záda z desky tl. 20 mm. Police z desky tl. 20 mm, nosnost 150 kg s pevnou výškou polic. Hrany polic a desek zaobleny r=3 mm. Nosná konstrukce z ocelového uzavřeného čtvercového průřezu o rozměru 10 x 10 mm, tl. stěny 1,0 mm. Ocelová konstrukce opatřena nátěrem v barvě světle hnědé. Kování musí být navrženo pro větší nosnost (cca 100 kg). Dodávka včetvě rektifikačních nožiček. | E29: 1700 x 600 x 2000 mm (d x š x v) | F29: ; Všechen nábytek musí být proveden tak, aby splňoval požadavky pro užívání lidí s autismem. Tento nábytek musí splňovat požadavky na dostatečnou odolnost, jednoduchou udržovatelnost, vysokou odolnost vůči poškození, musí byýt dostatečně tuhý, stabilní a odolný proti nárazu, tak aby nedošlo k poškození nábytku ani k úrazu; Další specifikace viz Kniha vnitřního vybavení - Kniha - prvků - Nábytek a příslušenství | G29: Šatní skříň plná s dveřmi rozdělenými na dvě části (výška 2000 mm); Popis:Skříň dvoudvéřová s nosnou ocelovou konstrukcí opláštěnou dubovými spárovkami. Vybavená 5 ks polic. Materiál dubová spárovka, ošetřeno nezávadným lakem ve dvou vrstvách. Dno, půda a boky z desky tl. 26 mm, záda z desky tl. 20 mm. Police z desky tl. 20 mm, nosnost 150 kg s pevnou výškou polic. Hrany polic a desek zaobleny r=3 mm. Nosná konstrukce z ocelového uzavřeného čtvercového průřezu o rozměru 10 x 10 mm, tl. stěny 1,0 mm. Ocelová konstrukce opatřena nátěrem v barvě světle hnědé. Kování musí být navrženo pro větší nosnost (cca 100 kg). Dodávka včetvě rektifikačních nožiček.; Rozměry:1700 x 600 x 2000 mm (d x š x v) ; Všechen nábytek musí být proveden tak, aby splňoval požadavky pro užívání lidí s autismem. Tento nábytek musí splňovat požadavky na dostatečnou odolnost, jednoduchou udržovatelnost, vysokou odolnost vůči poškození, musí byýt dostatečně tuhý, stabilní a odolný proti nárazu, tak aby nedošlo k poškození nábytku ani k úrazu; Další specifikace viz Kniha vnitřního vybavení - Kniha - prvků - Nábytek a příslušenství | H29: ks | I29: 3 | J29: =25500*1.3 -> 33150
A30: 1B.VV_N_012 | B30: Šatní skříň plná s dveřmi rozdělenými na dvě části (výška 2000 mm) | C30: Skříň dvoudvéřová s nosnou ocelovou konstrukcí opláštěnou dubovými spárovkami. Vybavená 5 ks polic. Materiál dubová spárovka, ošetřeno nezávadným lakem ve dvou vrstvách. Dno, půda a boky z desky tl. 26 mm, záda z desky tl. 20 mm. Police z desky tl. 20 mm, nosnost 150 kg s pevnou výškou polic. Hrany polic a desek zaobleny r=3 mm. Nosná konstrukce z ocelového uzavřeného čtvercového průřezu o rozměru 10 x 10 mm, tl. stěny 1,0 mm. Ocelová konstrukce opatřena nátěrem v barvě světle hnědé. Kování musí být navrženo pro větší nosnost (cca 100 kg). Dodávka včetvě rektifikačních nožiček. | E30: 1200 x 600 x 2000 mm (d x š x v) | F30: ; Všechen nábytek musí být proveden tak, aby splňoval požadavky pro užívání lidí s autismem. Tento nábytek musí splňovat požadavky na dostatečnou odolnost, jednoduchou udržovatelnost, vysokou odolnost vůči poškození, musí byýt dostatečně tuhý, stabilní a odolný proti nárazu, tak aby nedošlo k poškození nábytku ani k úrazu; Další specifikace viz Kniha vnitřního vybavení - Kniha - prvků - Nábytek a příslušenství | G30: Šatní skříň plná s dveřmi rozdělenými na dvě části (výška 2000 mm); Popis:Skříň dvoudvéřová s nosnou ocelovou konstrukcí opláštěnou dubovými spárovkami. Vybavená 5 ks polic. Materiál dubová spárovka, ošetřeno nezávadným lakem ve dvou vrstvách. Dno, půda a boky z desky tl. 26 mm, záda z desky tl. 20 mm. Police z desky tl. 20 mm, nosnost 150 kg s pevnou výškou polic. Hrany polic a desek zaobleny r=3 mm. Nosná konstrukce z ocelového uzavřeného čtvercového průřezu o rozměru 10 x 10 mm, tl. stěny 1,0 mm. Ocelová konstrukce opatřena nátěrem v barvě světle hnědé. Kování musí být navrženo pro větší nosnost (cca 100 kg). Dodávka včetvě rektifikačních nožiček.; Rozměry:1200 x 600 x 2000 mm (d x š x v) ; Všechen nábytek musí být proveden tak, aby splňoval požadavky pro užívání lidí s autismem. Tento nábytek musí splňovat požadavky na dostatečnou odolnost, jednoduchou udržovatelnost, vysokou odolnost vůči poškození, musí byýt dostatečně tuhý, stabilní a odolný proti nárazu, tak aby nedošlo k poškození nábytku ani k úrazu; Další specifikace viz Kniha vnitřního vybavení - Kniha - prvků - Nábytek a příslušenství | H30: ks | I30: 3 | J30: =25500/1.7*1.2*1.3 -> 23400
A31: 1B.VV_N_017 | B31: Sada kuchyňského nádobí | C31: Sada kuchyňského nádobí obsahuje hrnec o průměru 16 cm s obsahem 2,1 l, hrnec o průměru 20 cm s obsahem 3,6 l, hrnec o průměru 24 cm s obsahem 5,7 l, keramická pánev, pekáč, tři nože, nůž na pečivo, čtyři vařečky, dvě naběračky, cedník, dvě škrabky, tři prkénka na maso, pečivo, zelenivu a ovoce, struhadlo, dvanáct hlubokých talířů, mělkých, dezertních a misek, tři mísy, dvanáct skleniček a hrnků, dvě sady příborů. | E31: - - - | F31: ; Všechen nábytek musí být proveden tak, aby splňoval požadavky pro užívání lidí s autismem. Tento nábytek musí splňovat požadavky na dostatečnou odolnost, jednoduchou udržovatelnost, vysokou odolnost vůči poškození, musí byýt dostatečně tuhý, stabilní a odolný proti nárazu, tak aby nedošlo k poškození nábytku ani k úrazu; Další specifikace viz Kniha vnitřního vybavení - Kniha - prvků - Nábytek a příslušenství | G31: Sada kuchyňského nádobí; Popis:Sada kuchyňského nádobí obsahuje hrnec o průměru 16 cm s obsahem 2,1 l, hrnec o průměru 20 cm s obsahem 3,6 l, hrnec o průměru 24 cm s obsahem 5,7 l, keramická pánev, pekáč, tři nože, nůž na pečivo, čtyři vařečky, dvě naběračky, cedník, dvě škrabky, tři prkénka na maso, pečivo, zelenivu a ovoce, struhadlo, dvanáct hlubokých talířů, mělkých, dezertních a misek, tři mísy, dvanáct skleniček a hrnků, dvě sady příborů.; Rozměry: - - - ; Všechen nábytek musí být proveden tak, aby splňoval požadavky pro užívání lidí s autismem. Tento nábytek musí splňovat požadavky na dostatečnou odolnost, jednoduchou udržovatelnost, vysokou odolnost vůči poškození, musí byýt dostatečně tuhý, stabilní a odolný proti nárazu, tak aby nedošlo k poškození nábytku ani k úrazu; Další specifikace viz Kniha vnitřního vybavení - Kniha - prvků - Nábytek a příslušenství | H31: ks | I31: 1 | J31: 15000
A32: 1B.VV_N_018 | B32: Termoport | C32: Termoport pro uskladnění pokrmů určených pro přepravu. Termoport je nevyhřívaný, čelní plnění s nasazovacími dvířky. Uzavírání pomocí záklopných uzávěrů zapuštěných do čelních stěnkorpusu, vnitřní prostor umožňuje uložení 12 párů vylisovaných drážek se svislou roztečí 39 mm k zasouvání gastro nádob, praktických držák popisovacích karet a ergonomická madla s neklouzavými plastovými úchyty. Materiál polypropylen, polyamid a chromniklová ocel. Hmotnost 14 kg. | E32: 630 x 425 x 660 mm | F32: ; Všechen nábytek musí být proveden tak, aby splňoval požadavky pro užívání lidí s autismem. Tento nábytek musí splňovat požadavky na dostatečnou odolnost, jednoduchou udržovatelnost, vysokou odolnost vůči poškození, musí byýt dostatečně tuhý, stabilní a odolný proti nárazu, tak aby nedošlo k poškození nábytku ani k úrazu; Další specifikace viz Kniha vnitřního vybavení - Kniha - prvků - Nábytek a příslušenství | G32: Termoport; Popis:Termoport pro uskladnění pokrmů určených pro přepravu. Termoport je nevyhřívaný, čelní plnění s nasazovacími dvířky. Uzavírání pomocí záklopných uzávěrů zapuštěných do čelních stěnkorpusu, vnitřní prostor umožňuje uložení 12 párů vylisovaných drážek se svislou roztečí 39 mm k zasouvání gastro nádob, praktických držák popisovacích karet a ergonomická madla s neklouzavými plastovými úchyty. Materiál polypropylen, polyamid a chromniklová ocel. Hmotnost 14 kg.; Rozměry:630 x 425 x 660 mm ; Všechen nábytek musí být proveden tak, aby splňoval požadavky pro užívání lidí s autismem. Tento nábytek musí splňovat požadavky na dostatečnou odolnost, jednoduchou udržovatelnost, vysokou odolnost vůči poškození, musí byýt dostatečně tuhý, stabilní a odolný proti nárazu, tak aby nedošlo k poškození nábytku ani k úrazu; Další specifikace viz Kniha vnitřního vybavení - Kniha - prvků - Nábytek a příslušenství | H32: ks | I32: 1 | J32: =16081 -> 16081
A33: 1B.VV_N_021 | B33: Sklopná vana | C33: Nastavitelná vana s digitálním panelem, kontrolou teploty vody, desinfekčním programem a perličkovými tryskami. Technické parametry vnitřní délka 1850 mm, vnitřní šířka 550 mm, hloubka 420 mm, nosnost 160 kg, vzduchová masáž, 12 trysek, napájení 230 V. | E33: 2090 x 820 x 635 - 1035 mm (d x š x v) | F33: ; Všechen nábytek musí být proveden tak, aby splňoval požadavky pro užívání lidí s autismem. Tento nábytek musí splňovat požadavky na dostatečnou odolnost, jednoduchou udržovatelnost, vysokou odolnost vůči poškození, musí byýt dostatečně tuhý, stabilní a odolný proti nárazu, tak aby nedošlo k poškození nábytku ani k úrazu; Další specifikace viz Kniha vnitřního vybavení - Kniha - prvků - Nábytek a příslušenství | G33: Sklopná vana; Popis:Nastavitelná vana s digitálním panelem, kontrolou teploty vody, desinfekčním programem a perličkovými tryskami. Technické parametry vnitřní délka 1850 mm, vnitřní šířka 550 mm, hloubka 420 mm, nosnost 160 kg, vzduchová masáž, 12 trysek, napájení 230 V.; Rozměry:2090 x 820 x 635 - 1035 mm (d x š x v) ; Všechen nábytek musí být proveden tak, aby splňoval požadavky pro užívání lidí s autismem. Tento nábytek musí splňovat požadavky na dostatečnou odolnost, jednoduchou udržovatelnost, vysokou odolnost vůči poškození, musí byýt dostatečně tuhý, stabilní a odolný proti nárazu, tak aby nedošlo k poškození nábytku ani k úrazu; Další specifikace viz Kniha vnitřního vybavení - Kniha - prvků - Nábytek a příslušenství | H33: ks | I33: 1 | J33: 200000
A34: 1B.VV_N_022 | B34: Sklopná madla k WC | C34: Sklopná madla k WC včetně montážníh materiálu. Madla jsou z nerezi. Nosnost 120 kg. | E34: délka madla 813 mm | F34: ; Všechen nábytek musí být proveden tak, aby splňoval požadavky pro užívání lidí s autismem. Tento nábytek musí splňovat požadavky na dostatečnou odolnost, jednoduchou udržovatelnost, vysokou odolnost vůči poškození, musí byýt dostatečně tuhý, stabilní a odolný proti nárazu, tak aby nedošlo k poškození nábytku ani k úrazu; Další specifikace viz Kniha vnitřního vybavení - Kniha - prvků - Nábytek a příslušenství | G34: Sklopná madla k WC; Popis:Sklopná madla k WC včetně montážníh materiálu. Madla jsou z nerezi. Nosnost 120 kg.; Rozměry:délka madla 813 mm ; Všechen nábytek musí být proveden tak, aby splňoval požadavky pro užívání lidí s autismem. Tento nábytek musí splňovat požadavky na dostatečnou odolnost, jednoduchou udržovatelnost, vysokou odolnost vůči poškození, musí byýt dostatečně tuhý, stabilní a odolný proti nárazu, tak aby nedošlo k poškození nábytku ani k úrazu; Další specifikace viz Kniha vnitřního vybavení - Kniha - prvků - Nábytek a příslušenství | H34: ks | I34: 2 | J34: =2488 -> 2488
A35: 1B.VV_N_023 | B35: Psací stůl pro personál | C35: Pracovní stůl obdélníkový bez zásuvek. Materiál laminátová MDF deska, barva světle hnědá. Deska tl. 18 mm. Deska opatřená ABS hranou tl. 2 mm. Nohy stolu hliníkové, povrchová úprava práškovým vypalovacím lakem v odstínu štříbrno šedá. | E35: 1200 x 700 x 740 mm (d x š x v) | F35: ; Všechen nábytek musí být proveden tak, aby splňoval požadavky pro užívání lidí s autismem. Tento nábytek musí splňovat požadavky na dostatečnou odolnost, jednoduchou udržovatelnost, vysokou odolnost vůči poškození, musí byýt dostatečně tuhý, stabilní a odolný proti nárazu, tak aby nedošlo k poškození nábytku ani k úrazu; Další specifikace viz Kniha vnitřního vybavení - Kniha - prvků - Nábytek a příslušenství | G35: Psací stůl pro personál; Popis:Pracovní stůl obdélníkový bez zásuvek. Materiál laminátová MDF deska, barva světle hnědá. Deska tl. 18 mm. Deska opatřená ABS hranou tl. 2 mm. Nohy stolu hliníkové, povrchová úprava práškovým vypalovacím lakem v odstínu štříbrno šedá.; Rozměry:1200 x 700 x 740 mm (d x š x v) ; Všechen nábytek musí být proveden tak, aby splňoval požadavky pro užívání lidí s autismem. Tento nábytek musí splňovat požadavky na dostatečnou odolnost, jednoduchou udržovatelnost, vysokou odolnost vůči poškození, musí byýt dostatečně tuhý, stabilní a odolný proti nárazu, tak aby nedošlo k poškození nábytku ani k úrazu; Další specifikace viz Kniha vnitřního vybavení - Kniha - prvků - Nábytek a příslušenství | H35: ks | I35: 1 | J35: 5220
A36: 1B.VV_N_024 | B36: Zásuvkový díl uzamykatelný | C36: Kancelářský kontejner volně stojící se čtyřmi zásuvkami uzamykatelný na plastových kolečkách. V čele horní zásuvky umístěný zámek, jednotlivé zásuvky opatřené kovovými úchytkami. Materiál laminátová MDF deska, barva světle hnědá. Deska tl. 18 mm. Deska opatřená ABS hranou tl. 2 mm. Kovové pojezdy zásuvek. | E36: 600 x 420 x 550 mm (d x š x v) | F36: ; Všechen nábytek musí být proveden tak, aby splňoval požadavky pro užívání lidí s autismem. Tento nábytek musí splňovat požadavky na dostatečnou odolnost, jednoduchou udržovatelnost, vysokou odolnost vůči poškození, musí byýt dostatečně tuhý, stabilní a odolný proti nárazu, tak aby nedošlo k poškození nábytku ani k úrazu; Další specifikace viz Kniha vnitřního vybavení - Kniha - prvků - Nábytek a příslušenství | G36: Zásuvkový díl uzamykatelný; Popis:Kancelářský kontejner volně stojící se čtyřmi zásuvkami uzamykatelný na plastových kolečkách. V čele horní zásuvky umístěný zámek, jednotlivé zásuvky opatřené kovovými úchytkami. Materiál laminátová MDF deska, barva světle hnědá. Deska tl. 18 mm. Deska opatřená ABS hranou tl. 2 mm. Kovové pojezdy zásuvek.; Rozměry:600 x 420 x 550 mm (d x š x v) ; Všechen nábytek musí být proveden tak, aby splňoval požadavky pro užívání lidí s autismem. Tento nábytek musí splňovat požadavky na dostatečnou odolnost, jednoduchou udržovatelnost, vysokou odolnost vůči poškození, musí byýt dostatečně tuhý, stabilní a odolný proti nárazu, tak aby nedošlo k poškození nábytku ani k úrazu; Další specifikace viz Kniha vnitřního vybavení - Kniha - prvků - Nábytek a příslušenství | H36: ks | I36: 1 | J36: 5070
A37: 1B.VV_N_025 | B37: Nastavitelný držák na počítač pod stůl | C37: Nastavitelný držák na počítač pod stůl včetně montážního materiálu. Materiál ocel se stříbrným lakem. Nosnost do 4,5 kg. | E37: 135 - 250 x 300 - 458 mm (š x v) | F37: ; Všechen nábytek musí být proveden tak, aby splňoval požadavky pro užívání lidí s autismem. Tento nábytek musí splňovat požadavky na dostatečnou odolnost, jednoduchou udržovatelnost, vysokou odolnost vůči poškození, musí byýt dostatečně tuhý, stabilní a odolný proti nárazu, tak aby nedošlo k poškození nábytku ani k úrazu; Další specifikace viz Kniha vnitřního vybavení - Kniha - prvků - Nábytek a příslušenství | G37: Nastavitelný držák na počítač pod stůl; Popis:Nastavitelný držák na počítač pod stůl včetně montážního materiálu. Materiál ocel se stříbrným lakem. Nosnost do 4,5 kg.; Rozměry:135 - 250 x 300 - 458 mm (š x v) ; Všechen nábytek musí být proveden tak, aby splňoval požadavky pro užívání lidí s autismem. Tento nábytek musí splňovat požadavky na dostatečnou odolnost, jednoduchou udržovatelnost, vysokou odolnost vůči poškození, musí byýt dostatečně tuhý, stabilní a odolný proti nárazu, tak aby nedošlo k poškození nábytku ani k úrazu; Další specifikace viz Kniha vnitřního vybavení - Kniha - prvků - Nábytek a příslušenství | H37: ks | I37: 1 | J37: 1203
A38: 1B.VV_N_026 | B38: Kancelářská židle otočná s kolečky | C38: Ergonomická kancelářská židle otočná s výsokým opěrákem s kolečky. Výškově nastavitelný sedák, bederní opěrka a područky, samostatná síťovina na opěráku barva černá. Materál lakovaná ocel, plast. Hmotnost 17 kg, nosnost 120 kg. | E38: 660/500 x 500 x 1000/1090 mm (d x š x v) | F38: ; Všechen nábytek musí být proveden tak, aby splňoval požadavky pro užívání lidí s autismem. Tento nábytek musí splňovat požadavky na dostatečnou odolnost, jednoduchou udržovatelnost, vysokou odolnost vůči poškození, musí byýt dostatečně tuhý, stabilní a odolný proti nárazu, tak aby nedošlo k poškození nábytku ani k úrazu; Další specifikace viz Kniha vnitřního vybavení - Kniha - prvků - Nábytek a příslušenství | G38: Kancelářská židle otočná s kolečky; Popis:Ergonomická kancelářská židle otočná s výsokým opěrákem s kolečky. Výškově nastavitelný sedák, bederní opěrka a područky, samostatná síťovina na opěráku barva černá. Materál lakovaná ocel, plast. Hmotnost 17 kg, nosnost 120 kg.; Rozměry:660/500 x 500 x 1000/1090 mm (d x š x v) ; Všechen nábytek musí být proveden tak, aby splňoval požadavky pro užívání lidí s autismem. Tento nábytek musí splňovat požadavky na dostatečnou odolnost, jednoduchou udržovatelnost, vysokou odolnost vůči poškození, musí byýt dostatečně tuhý, stabilní a odolný proti nárazu, tak aby nedošlo k poškození nábytku ani k úrazu; Další specifikace viz Kniha vnitřního vybavení - Kniha - prvků - Nábytek a příslušenství | H38: ks | I38: 1 | J38: =3900 -> 3900
A39: 1B.VV_N_027 | B39: Šatní skříň s policemi a tyčí uzamykatelná (výška 2000 mm) | C39: Skříň dvoudvéřová, dvoudílná - dělená na dvě části. 1/2 vybavená šatní tyčí a policí a 1/2 vybavená 5 ks variabilních polic. Materiál laminovaná MDF deska, barva světle hnědá. Dno i půda z desky tl. 25 mm, z přední strany ABS hrana tl. 2 mm. Ostatní pohledné prvky opatřeny ABS hranou tl. 1 mm. Boky korpusu z desky tl. 18 mm. Záda desky tl. 8 mm. Police z desky tl. 25 mm. Police a desky opatřeny hranou ABS tl. 2 mm. | E39: 1700 x 600 x 2000 mm (d x š x v) | F39: ; Další specifikace viz Kniha vnitřního vybavení - Kniha - prvků - Nábytek a příslušenství | G39: Šatní skříň s policemi a tyčí uzamykatelná (výška 2000 mm); Popis:Skříň dvoudvéřová, dvoudílná - dělená na dvě části. 1/2 vybavená šatní tyčí a policí a 1/2 vybavená 5 ks variabilních polic. Materiál laminovaná MDF deska, barva světle hnědá. Dno i půda z desky tl. 25 mm, z přední strany ABS hrana tl. 2 mm. Ostatní pohledné prvky opatřeny ABS hranou tl. 1 mm. Boky korpusu z desky tl. 18 mm. Záda desky tl. 8 mm. Police z desky tl. 25 mm. Police a desky opatřeny hranou ABS tl. 2 mm.; Rozměry:1700 x 600 x 2000 mm (d x š x v) ; Další specifikace viz Kniha vnitřního vybavení - Kniha - prvků - Nábytek a příslušenství | H39: ks | I39: 1 | J39: 25500
A40: 1B.VV_N_028 | B40: Nástěnná police s konzolemi | C40: Nástěnná police s konzolemi kotvené do zdi včetně kotvení. Materiál laminátová MDF deska, barva světle hnědá. Police z desky tl. 25 mm, opatřena ABS hranou tl. 2 mm. Nosnost 80 kg. Konzole dřevěné v barvě světle hnědé. | E40: 1000 x 300 x 20 mm (d x š x v) | F40: ; Všechen nábytek musí být proveden tak, aby splňoval požadavky pro užívání lidí s autismem. Tento nábytek musí splňovat požadavky na dostatečnou odolnost, jednoduchou udržovatelnost, vysokou odolnost vůči poškození, musí byýt dostatečně tuhý, stabilní a odolný proti nárazu, tak aby nedošlo k poškození nábytku ani k úrazu; Další specifikace viz Kniha vnitřního vybavení - Kniha - prvků - Nábytek a příslušenství | G40: Nástěnná police s konzolemi; Popis:Nástěnná police s konzolemi kotvené do zdi včetně kotvení. Materiál laminátová MDF deska, barva světle hnědá. Police z desky tl. 25 mm, opatřena ABS hranou tl. 2 mm. Nosnost 80 kg. Konzole dřevěné v barvě světle hnědé.; Rozměry:1000 x 300 x 20 mm (d x š x v) ; Všechen nábytek musí být proveden tak, aby splňoval požadavky pro užívání lidí s autismem. Tento nábytek musí splňovat požadavky na dostatečnou odolnost, jednoduchou udržovatelnost, vysokou odolnost vůči poškození, musí byýt dostatečně tuhý, stabilní a odolný proti nárazu, tak aby nedošlo k poškození nábytku ani k úrazu; Další specifikace viz Kniha vnitřního vybavení - Kniha - prvků - Nábytek a příslušenství | H40: ks | I40: 1 | J40: =530*1.2 -> 636
A41: 1B.VV_N_031 | B41: Trezor pro personál | C41: Trezor s elektronickým zámkem. Materiál ocel, korpus 1,5 mm, dveře 4 mm, povrchová úprava práškovaným lakem v barvě šedé. Možné upevnit na zeď. Provoz trezeru je za pomoci 4 běžných baterií (1,5 V). | E41: 350 x 250 x 250 mm (d x š x v) | F41: ; Všechen nábytek musí být proveden tak, aby splňoval požadavky pro užívání lidí s autismem. Tento nábytek musí splňovat požadavky na dostatečnou odolnost, jednoduchou udržovatelnost, vysokou odolnost vůči poškození, musí byýt dostatečně tuhý, stabilní a odolný proti nárazu, tak aby nedošlo k poškození nábytku ani k úrazu; Další specifikace viz Kniha vnitřního vybavení - Kniha - prvků - Nábytek a příslušenství | G41: Trezor pro personál; Popis:Trezor s elektronickým zámkem. Materiál ocel, korpus 1,5 mm, dveře 4 mm, povrchová úprava práškovaným lakem v barvě šedé. Možné upevnit na zeď. Provoz trezeru je za pomoci 4 běžných baterií (1,5 V).; Rozměry:350 x 250 x 250 mm (d x š x v) ; Všechen nábytek musí být proveden tak, aby splňoval požadavky pro užívání lidí s autismem. Tento nábytek musí splňovat požadavky na dostatečnou odolnost, jednoduchou udržovatelnost, vysokou odolnost vůči poškození, musí byýt dostatečně tuhý, stabilní a odolný proti nárazu, tak aby nedošlo k poškození nábytku ani k úrazu; Další specifikace viz Kniha vnitřního vybavení - Kniha - prvků - Nábytek a příslušenství | H41: ks | I41: 1 | J41: =1259 -> 1259
A42: 1B.VV_N_034 | B42: Hák s karabinou pro zavěšení houpacího pytle | C42: Hák s karabinou pro zavěšení sezení včetně montážního materiálu. Materiál ocel, povrchová úprava bílý galvanický zinek. Nosnost 200 kg | E42: délka 280 mm | F42: ; Všechen nábytek musí být proveden tak, aby splňoval požadavky pro užívání lidí s autismem. Tento nábytek musí splňovat požadavky na dostatečnou odolnost, jednoduchou udržovatelnost, vysokou odolnost vůči poškození, musí byýt dostatečně tuhý, stabilní a odolný proti nárazu, tak aby nedošlo k poškození nábytku ani k úrazu; Další specifikace viz Kniha vnitřního vybavení - Kniha - prvků - Nábytek a příslušenství | G42: Hák s karabinou pro zavěšení houpacího pytle; Popis:Hák s karabinou pro zavěšení sezení včetně montážního materiálu. Materiál ocel, povrchová úprava bílý galvanický zinek. Nosnost 200 kg; Rozměry:délka 280 mm ; Všechen nábytek musí být proveden tak, aby splňoval požadavky pro užívání lidí s autismem. Tento nábytek musí splňovat požadavky na dostatečnou odolnost, jednoduchou udržovatelnost, vysokou odolnost vůči poškození, musí byýt dostatečně tuhý, stabilní a odolný proti nárazu, tak aby nedošlo k poškození nábytku ani k úrazu; Další specifikace viz Kniha vnitřního vybavení - Kniha - prvků - Nábytek a příslušenství | H42: ks | I42: 7 | J42: 550
A43: VV_E | B43: Prvky vnitřního vybevení - Elektro a příslušenství
A44: 1B.VV_E_001 | B44: Myčka vestavěná | C44: Kapacita myčky 13 sad nádobí, 2 úložné koše, spotřeba vody 11 l, AQUA STOP proti přetečení, 2 ostřikovací ramena, 4 programy: Eco, Intenzivní, Normální, Oplachování, mycí teploty: 40-70°C, energetická třída A+, účinnost mytí A, účinnost sušení A, hlučnost 49 dB(A), spotřeba energie: 1,04 kWh. | E44: 595 x 570 x 820 mm | F44: ; Všechen nábytek musí být proveden tak, aby splňoval požadavky pro užívání lidí s autismem. Tento nábytek musí splňovat požadavky na dostatečnou odolnost, jednoduchou udržovatelnost, vysokou odolnost vůči poškození, musí byýt dostatečně tuhý, stabilní a odolný proti nárazu, tak aby nedošlo k poškození nábytku ani k úrazu; ; Další specifikace viz Kniha vnitřního vybavení - Kniha - prvků - Elektro a příslušenství | G44: =CONCATENATE(B44,$C$1,C44,$E$1,E44,F44) -> Myčka vestavěná; Popis:Kapacita myčky 13 sad nádobí, 2 úložné koše, spotřeba vody 11 l, AQUA STOP proti přetečení, 2 ostřikovací ramena, 4 programy: Eco, Intenzivní, Normální, Oplachování, mycí teploty: 40-70°C, energetická třída A+, účinnost mytí A, účinnost sušení A, hlučnost 49 dB(A), spotřeba energie: 1,04 kWh.; Rozměry:595 x 570 x 820 mm ; Všechen nábytek musí být proveden tak, aby splňoval požadavky pro užívání lidí s autismem. Tento nábytek musí splňovat požadavky na dostatečnou odolnost, jednoduchou udržovatelnost, vysokou odolnost vůči poškození, musí byýt dostatečně tuhý, stabilní a odolný proti nárazu, tak aby nedošlo k poškození nábytku ani k úrazu; ; Další specifikace viz Kniha vnitřního vybavení - Kniha - prvků - Elektro a příslušenství | H44: ks | I44: 1 | J44: 15000
A45: 1B.VV_E_002 | B45: Varná deska vestavěná | C45: Sklokeramická varná deska, 4 highlight varné zóny, dotykové ovládání, 9 stupňů výkonu, kontrolky provozu a zbytkového tepla, dětská pojistka, bez rámečku - rovné hrany. | E45: 590 x 520 x 46 mm | F45: ; Všechen nábytek musí být proveden tak, aby splňoval požadavky pro užívání lidí s autismem. Tento nábytek musí splňovat požadavky na dostatečnou odolnost, jednoduchou udržovatelnost, vysokou odolnost vůči poškození, musí byýt dostatečně tuhý, stabilní a odolný proti nárazu, tak aby nedošlo k poškození nábytku ani k úrazu; ; Další specifikace viz Kniha vnitřního vybavení - Kniha - prvků - Elektro a příslušenství | G45: Varná deska vestavěná; Popis:Sklokeramická varná deska, 4 highlight varné zóny, dotykové ovládání, 9 stupňů výkonu, kontrolky provozu a zbytkového tepla, dětská pojistka, bez rámečku - rovné hrany.; Rozměry:590 x 520 x 46 mm ; Všechen nábytek musí být proveden tak, aby splňoval požadavky pro užívání lidí s autismem. Tento nábytek musí splňovat požadavky na dostatečnou odolnost, jednoduchou udržovatelnost, vysokou odolnost vůči poškození, musí byýt dostatečně tuhý, stabilní a odolný proti nárazu, tak aby nedošlo k poškození nábytku ani k úrazu; ; Další specifikace viz Kniha vnitřního vybavení - Kniha - prvků - Elektro a příslušenství | H45: ks | I45: 1 | J45: 12000
A46: 1B.VV_E_003 | B46: Sušička na 8 kg prádla | C46: Sušička, min. 8kg prádla, kondenzační s tepelným čerpadlem, min. třída A, invertorový motor. | E46: 600 x 600 x 900 mm | F46: ; Všechen nábytek musí být proveden tak, aby splňoval požadavky pro užívání lidí s autismem. Tento nábytek musí splňovat požadavky na dostatečnou odolnost, jednoduchou udržovatelnost, vysokou odolnost vůči poškození, musí byýt dostatečně tuhý, stabilní a odolný proti nárazu, tak aby nedošlo k poškození nábytku ani k úrazu; ; Další specifikace viz Kniha vnitřního vybavení - Kniha - prvků - Elektro a příslušenství | G46: Sušička na 8 kg prádla; Popis:Sušička, min. 8kg prádla, kondenzační s tepelným čerpadlem, min. třída A, invertorový motor.; Rozměry:600 x 600 x 900 mm ; Všechen nábytek musí být proveden tak, aby splňoval požadavky pro užívání lidí s autismem. Tento nábytek musí splňovat požadavky na dostatečnou odolnost, jednoduchou udržovatelnost, vysokou odolnost vůči poškození, musí byýt dostatečně tuhý, stabilní a odolný proti nárazu, tak aby nedošlo k poškození nábytku ani k úrazu; ; Další specifikace viz Kniha vnitřního vybavení - Kniha - prvků - Elektro a příslušenství | H46: ks | I46: 1 | J46: 15000
A47: 1B.VV_E_004 | B47: Kuchyňský robot | C47: Robot s celokovovým tělem a kovovými převody, planetární systém hnětení, míchání a šlehání zaručuje bezezbytkové promíchání obsahu mísy, příslušenství: míchací metla, šlehací balónová metla, hnětací hák, mlýnek na maso se dvěma mlecími disky - hrubý 8mm a jemný 3mm, nástavec na plnění uzenářských produktů, kráječ a struhadlo se 3 vyměnitelnými nástavci pro hrubé, jemné a plátkové strouhání, kapacita pro přípravu až 1,5 kg těsta, šlehání až 8 vaječných bílků, nerezová mísa o objemu 4,5 l s dvěma madly, 8 rychlostí, regulace rychlosti otáček, bajonetový systém uchycení nástavců umožňuje rychlé sestavení i výměnu, odnímatelná mísa a příslušenství pro snadné mytí i v myčce, výkyvné rameno pro snadnou manipulaci a pohodlnější výměnu nástavců, aretační pojistka v horní poloze výkyvného ramene, protiskluzové nožky, zabraňující pohybu robotu při používání, tepelná pojistka proti přehřátí. | E47: 270 x 350 x 360 mm | F47: ; Všechen nábytek musí být proveden tak, aby splňoval požadavky pro užívání lidí s autismem. Tento nábytek musí splňovat požadavky na dostatečnou odolnost, jednoduchou udržovatelnost, vysokou odolnost vůči poškození, musí byýt dostatečně tuhý, stabilní a odolný proti nárazu, tak aby nedošlo k poškození nábytku ani k úrazu; ; Další specifikace viz Kniha vnitřního vybavení - Kniha - prvků - Elektro a příslušenství | G47: Kuchyňský robot; Popis:Robot s celokovovým tělem a kovovými převody, planetární systém hnětení, míchání a šlehání zaručuje bezezbytkové promíchání obsahu mísy, příslušenství: míchací metla, šlehací balónová metla, hnětací hák, mlýnek na maso se dvěma mlecími disky - hrubý 8mm a jemný 3mm, nástavec na plnění uzenářských produktů, kráječ a struhadlo se 3 vyměnitelnými nástavci pro hrubé, jemné a plátkové strouhání, kapacita pro přípravu až 1,5 kg těsta, šlehání až 8 vaječných bílků, nerezová mísa o objemu 4,5 l s dvěma madly, 8 rychlostí, regulace rychlosti otáček, bajonetový systém uchycení nástavců umožňuje rychlé sestavení i výměnu, odnímatelná mísa a příslušenství pro snadné mytí i v myčce, výkyvné rameno pro snadnou manipulaci a pohodlnější výměnu nástavců, aretační pojistka v horní poloze výkyvného ramene, protiskluzové nožky, zabraňující pohybu robotu při používání, tepelná pojistka proti přehřátí.; Rozměry:270 x 350 x 360 mm ; Všechen nábytek musí být proveden tak, aby splňoval požadavky pro užívání lidí s autismem. Tento nábytek musí splňovat požadavky na dostatečnou odolnost, jednoduchou udržovatelnost, vysokou odolnost vůči poškození, musí byýt dostatečně tuhý, stabilní a odolný proti nárazu, tak aby nedošlo k poškození nábytku ani k úrazu; ; Další specifikace viz Kniha vnitřního vybavení - Kniha - prvků - Elektro a příslušenství | H47: ks | I47: 1 | J47: 4990
A48: 1B.VV_E_005 | B48: Vestavěná trouba | C48: Multifunkční horkovzdušná elektrická trouba objem 60l. Samostatná trouba s pravým horkým vzduchem v energetické třídě A, funkce rozmrazování, displej s digitálním časovačem - nastavení minutky, denního času, konce pečení a doby pečení, možnost péci na 2 úrovních najednou, uvnitř trouby vysoce lesklý smalt pro snadné čištění, nerezové provedení. | E48: 594 x 540 x 589 mm | F48: ; Všechen nábytek musí být proveden tak, aby splňoval požadavky pro užívání lidí s autismem. Tento nábytek musí splňovat požadavky na dostatečnou odolnost, jednoduchou udržovatelnost, vysokou odolnost vůči poškození, musí byýt dostatečně tuhý, stabilní a odolný proti nárazu, tak aby nedošlo k poškození nábytku ani k úrazu; ; Další specifikace viz Kniha vnitřního vybavení - Kniha - prvků - Elektro a příslušenství | G48: Vestavěná trouba; Popis:Multifunkční horkovzdušná elektrická trouba objem 60l. Samostatná trouba s pravým horkým vzduchem v energetické třídě A, funkce rozmrazování, displej s digitálním časovačem - nastavení minutky, denního času, konce pečení a doby pečení, možnost péci na 2 úrovních najednou, uvnitř trouby vysoce lesklý smalt pro snadné čištění, nerezové provedení.; Rozměry:594 x 540 x 589 mm ; Všechen nábytek musí být proveden tak, aby splňoval požadavky pro užívání lidí s autismem. Tento nábytek musí splňovat požadavky na dostatečnou odolnost, jednoduchou udržovatelnost, vysokou odolnost vůči poškození, musí byýt dostatečně tuhý, stabilní a odolný proti nárazu, tak aby nedošlo k poškození nábytku ani k úrazu; ; Další specifikace viz Kniha vnitřního vybavení - Kniha - prvků - Elektro a příslušenství | H48: ks | I48: 1 | J48: 13000
A49: 1B.VV_E_006 | B49: Chladnička s mrazákem | C49: Volně stojící kombinovaná chladnička s mrazničkou dole, energetická třída A++, objem chladničky 112 l, objem mrazničky 48 l, klimatická třída ST, N, LED osvětlení, automatické odmrazování chladničky, manuální odmrazování mrazničky, LED osvětlení, možnost otočení otevírání dveří, 2 nastavitelné nožičky. | E49: 566 x 500 x 1430 mm (d x š x v) | F49: ; Všechen nábytek musí být proveden tak, aby splňoval požadavky pro užívání lidí s autismem. Tento nábytek musí splňovat požadavky na dostatečnou odolnost, jednoduchou udržovatelnost, vysokou odolnost vůči poškození, musí byýt dostatečně tuhý, stabilní a odolný proti nárazu, tak aby nedošlo k poškození nábytku ani k úrazu; ; Další specifikace viz Kniha vnitřního vybavení - Kniha - prvků - Elektro a příslušenství | G49: Chladnička s mrazákem; Popis:Volně stojící kombinovaná chladnička s mrazničkou dole, energetická třída A++, objem chladničky 112 l, objem mrazničky 48 l, klimatická třída ST, N, LED osvětlení, automatické odmrazování chladničky, manuální odmrazování mrazničky, LED osvětlení, možnost otočení otevírání dveří, 2 nastavitelné nožičky.; Rozměry:566 x 500 x 1430 mm (d x š x v) ; Všechen nábytek musí být proveden tak, aby splňoval požadavky pro užívání lidí s autismem. Tento nábytek musí splňovat požadavky na dostatečnou odolnost, jednoduchou udržovatelnost, vysokou odolnost vůči poškození, musí byýt dostatečně tuhý, stabilní a odolný proti nárazu, tak aby nedošlo k poškození nábytku ani k úrazu; ; Další specifikace viz Kniha vnitřního vybavení - Kniha - prvků - Elektro a příslušenství | H49: ks | I49: 1 | J49: 15000
A50: 1B.VV_E_007 | B50: Notebook | C50: Notebook, 15,4 “ LCD, 8 GB RAM, 500 GB HDD, procesor i3 a vyšší, Windows 10 Pro, MS Office 2016 Home and Bussines CZ. | E50: - - - | F50: ; Všechen nábytek musí být proveden tak, aby splňoval požadavky pro užívání lidí s autismem. Tento nábytek musí splňovat požadavky na dostatečnou odolnost, jednoduchou udržovatelnost, vysokou odolnost vůči poškození, musí byýt dostatečně tuhý, stabilní a odolný proti nárazu, tak aby nedošlo k poškození nábytku ani k úrazu; ; Další specifikace viz Kniha vnitřního vybavení - Kniha - prvků - Elektro a příslušenství | G50: Notebook; Popis:Notebook, 15,4 “ LCD, 8 GB RAM, 500 GB HDD, procesor i3 a vyšší, Windows 10 Pro, MS Office 2016 Home and Bussines CZ.; Rozměry: - - - ; Všechen nábytek musí být proveden tak, aby splňoval požadavky pro užívání lidí s autismem. Tento nábytek musí splňovat požadavky na dostatečnou odolnost, jednoduchou udržovatelnost, vysokou odolnost vůči poškození, musí byýt dostatečně tuhý, stabilní a odolný proti nárazu, tak aby nedošlo k poškození nábytku ani k úrazu; ; Další specifikace viz Kniha vnitřního vybavení - Kniha - prvků - Elektro a příslušenství | H50: ks | I50: 1 | J50: 33590
A51: 1B.VV_E_008 | B51: Tiskárna na A4 | C51: Malá tiskárna - Funkce: černobílý laserový tisk, kopírování, skenování, fax, Formát: A4, rozlišení tisku: 1200dpi, ovládání: dotykový barevný grafický displej, velikost paměti: 256 MB, rychlost tisku: 38 Str./min., doba tisku první strany: 5,7s, oboustranný tisk: automatický , vstupní zásobník: 250 listů, víceúčelový zásobník: 100 listů, výstupní zásobník: 150 listů, gramáž média: 60 – 175 g/m2, rozlišení kopírování: 600x600dpi, zoom kopírování: 25 – 400%, rozlišení skenování: 1200dpi, podavač skeneru: oboustranný 50 listů, oboustranné jednoprůchodové skenování fumkce skeneru: skenování do e-mailu, do síťové složky, do USB, připojení: USB 2.0, Ethernet 10/100/1000T, hostitelský USB port, jazyky tiskárny: PCL 5, HP PCL 6, emulace Postscript úrovně 3, přímý tisk PDF (v1.7), URF, PCLM, PWG. | E51: - - - | F51: ; Všechen nábytek musí být proveden tak, aby splňoval požadavky pro užívání lidí s autismem. Tento nábytek musí splňovat požadavky na dostatečnou odolnost, jednoduchou udržovatelnost, vysokou odolnost vůči poškození, musí byýt dostatečně tuhý, stabilní a odolný proti nárazu, tak aby nedošlo k poškození nábytku ani k úrazu; ; Další specifikace viz Kniha vnitřního vybavení - Kniha - prvků - Elektro a příslušenství | G51: Tiskárna na A4; Popis:Malá tiskárna - Funkce: černobílý laserový tisk, kopírování, skenování, fax, Formát: A4, rozlišení tisku: 1200dpi, ovládání: dotykový barevný grafický displej, velikost paměti: 256 MB, rychlost tisku: 38 Str./min., doba tisku první strany: 5,7s, oboustranný tisk: automatický , vstupní zásobník: 250 listů, víceúčelový zásobník: 100 listů, výstupní zásobník: 150 listů, gramáž média: 60 – 175 g/m2, rozlišení kopírování: 600x600dpi, zoom kopírování: 25 – 400%, rozlišení skenování: 1200dpi, podavač skeneru: oboustranný 50 listů, oboustranné jednoprůchodové skenování fumkce skeneru: skenování do e-mailu, do síťové složky, do USB, připojení: USB 2.0, Ethernet 10/100/1000T, hostitelský USB port, jazyky tiskárny: PCL 5, HP PCL 6, emulace Postscript úrovně 3, přímý tisk PDF (v1.7), URF, PCLM, PWG.; Rozměry: - - - ; Všechen nábytek musí být proveden tak, aby splňoval požadavky pro užívání lidí s autismem. Tento nábytek musí splňovat požadavky na dostatečnou odolnost, jednoduchou udržovatelnost, vysokou odolnost vůči poškození, musí byýt dostatečně tuhý, stabilní a odolný proti nárazu, tak aby nedošlo k poškození nábytku ani k úrazu; ; Další specifikace viz Kniha vnitřního vybavení - Kniha - prvků - Elektro a příslušenství | H51: ks | I51: 1 | J51: 5000
A52: VV_VEN | B52: Prvky vnitřního vybevení - Venkovní vybavení
A53: 1B.VV_VEN_001 | B53: Venkovní pergola k sezení vybavená židlemi a stlem | C53: Venkovní dřevěná pergola k sezení vybavená šesti židlemi a stolem. Kovový stůl a židle s opěrkou a područkami. Sloupky pergoly jsou průřezu 120 x 120 mm, vzdálenost sloupků je 2,0 m, pod každým sloupkem je proveden betonový základ s patkou sloupku z galvanického zinku, základy jsou provedeny v nezámrzné hloubce. Trvar střechy je sedlový, krokve průžezu 60 x 140 mm, podélné prvky průřezu 100 x 140 mm. Na střeše je provedeno bednění a laťování se skládanou betonovou střešní krytinou. V přístřešku je podlaha z betonové dlažby. Betonová dlažba je uložena na kladecí vrstu tl. 40 mm - kamenná drť 4-8mm, podkladní nosnou vrstvu tl. 150 mm - kamená drť 8-16 mm a zemní pláň. Klempířské prvky jsou provedeny z pozinkovaného plechu. | E53: 5000 x 5000 x 3300 mm (d x š x v) | F53: ; Všechen nábytek musí být proveden tak, aby splňoval požadavky pro užívání lidí s autismem. Tento nábytek musí splňovat požadavky na dostatečnou odolnost, jednoduchou udržovatelnost, vysokou odolnost vůči poškození, musí byýt dostatečně tuhý, stabilní a odolný proti nárazu, tak aby nedošlo k poškození nábytku ani k úrazu; Další specifikace viz Kniha vnitřního vybavení - Kniha - prvků - Venkovní vybavení | G53: =CONCATENATE(B53,$C$1,C53,$E$1,E53,F53) -> Venkovní pergola k sezení vybavená židlemi a stlem; Popis:Venkovní dřevěná pergola k sezení vybavená šesti židlemi a stolem. Kovový stůl a židle s opěrkou a područkami. Sloupky pergoly jsou průřezu 120 x 120 mm, vzdálenost sloupků je 2,0 m, pod každým sloupkem je proveden betonový základ s patkou sloupku z galvanického zinku, základy jsou provedeny v nezámrzné hloubce. Trvar střechy je sedlový, krokve průžezu 60 x 140 mm, podélné prvky průřezu 100 x 140 mm. Na střeše je provedeno bednění a laťování se skládanou betonovou střešní krytinou. V přístřešku je podlaha z betonové dlažby. Betonová dlažba je uložena na kladecí vrstu tl. 40 mm - kamenná drť 4-8mm, podkladní nosnou vrstvu tl. 150 mm - kamená drť 8-16 mm a zemní pláň. Klempířské prvky jsou provedeny z pozinkovaného plechu.; Rozměry:5000 x 5000 x 3300 mm (d x š x v) ; Všechen nábytek musí být proveden tak, aby splňoval požadavky pro užívání lidí s autismem. Tento nábytek musí splňovat požadavky na dostatečnou odolnost, jednoduchou udržovatelnost, vysokou odolnost vůči poškození, musí byýt dostatečně tuhý, stabilní a odolný proti nárazu, tak aby nedošlo k poškození nábytku ani k úrazu; Další specifikace viz Kniha vnitřního vybavení - Kniha - prvků - Venkovní vybavení | H53: ks | I53: 1 | J53: 55000
A54: 1B.VV_VEN_002 | B54: Zapuštěná venkovní trampolína | C54: Venkovní trampolína je zapuštěná do země, okolo trampolíny jsou ochranné desky s ochrannou sítí. Rám trampolíny z pozinkované oceli. Obsahuje 84 odpružených pružin. Nosnost 160 kg. Trampolína je osazena na betonovou základovou desku v hloubce 880 mm. Skákací plocha je 2350 x 2350 mm. | E54: 3000 x 3000 x 880 mm (d x š x v) | F54: ; Všechen nábytek musí být proveden tak, aby splňoval požadavky pro užívání lidí s autismem. Tento nábytek musí splňovat požadavky na dostatečnou odolnost, jednoduchou udržovatelnost, vysokou odolnost vůči poškození, musí byýt dostatečně tuhý, stabilní a odolný proti nárazu, tak aby nedošlo k poškození nábytku ani k úrazu; Další specifikace viz Kniha vnitřního vybavení - Kniha - prvků - Venkovní vybavení | G54: =CONCATENATE(B54,$C$1,C54,$E$1,E54,F54) -> Zapuštěná venkovní trampolína; Popis:Venkovní trampolína je zapuštěná do země, okolo trampolíny jsou ochranné desky s ochrannou sítí. Rám trampolíny z pozinkované oceli. Obsahuje 84 odpružených pružin. Nosnost 160 kg. Trampolína je osazena na betonovou základovou desku v hloubce 880 mm. Skákací plocha je 2350 x 2350 mm.; Rozměry:3000 x 3000 x 880 mm (d x š x v) ; Všechen nábytek musí být proveden tak, aby splňoval požadavky pro užívání lidí s autismem. Tento nábytek musí splňovat požadavky na dostatečnou odolnost, jednoduchou udržovatelnost, vysokou odolnost vůči poškození, musí byýt dostatečně tuhý, stabilní a odolný proti nárazu, tak aby nedošlo k poškození nábytku ani k úrazu; Další specifikace viz Kniha vnitřního vybavení - Kniha - prvků - Venkovní vybavení | H54: ks | I54: 1 | J54: 15300

Sheet STOD_D (hidden)
A1: 1DD.1.1 | B1: Architektonicko-stavební řešení | C1: ; Popis: | D1: ; Materiál: | E1: ; Rozměry:
A2: 10_VB | B2: Výrobky
A3: KP | B3: Klempířské prvky | C3: Sloupec1 | D3: Sloupec2 | E3: Sloupec3 | F3: Sloupec4 | G3: Sloupec5 | H3: Sloupec6 | I3: Sloupec7 | J3: Sloupec8
A4: 1D.P1-1.01 | B4: Okenní parapet | C4: Oplechování parapetu oken včetně doplňkového a montážního materiálu. | D4: Ocelový pozinkovaný plech, tl. 0,6 mm, exteriérový nátěr v odstínu RAL 7016 | E4: r.š. 330 mm | F4: ; Další specifikace viz Kniha klempířských prvků | G4: =CONCATENATE(B4,$C$1,C4,$D$1,D4,$E$1,E4,F4) -> Okenní parapet; Popis:Oplechování parapetu oken včetně doplňkového a montážního materiálu.; Materiál:Ocelový pozinkovaný plech, tl. 0,6 mm, exteriérový nátěr v odstínu RAL 7016; Rozměry:r.š. 330 mm ; Další specifikace viz Kniha klempířských prvků | H4: m | I4: 14.5 | J4: 474
A5: 1D.P1-1.02 | B5: Oplechování atiky | C5: Oplechování atiky, včetně doplňkového a montážního materiálu. | D5: Ocelový pozinkovaný plech, tl. 0,6 mm, exteriérový nátěr v odstínu RAL 7016 | E5: r.š. 720 mm | F5: ; Další specifikace viz Kniha klempířských prvků | G5: Oplechování atiky; Popis:Oplechování atiky, včetně doplňkového a montážního materiálu.; Materiál:Ocelový pozinkovaný plech, tl. 0,6 mm, exteriérový nátěr v odstínu RAL 7016; Rozměry:r.š. 720 mm ; Další specifikace viz Kniha klempířských prvků | H5: m | I5: 10.1 | J5: 1100
A6: 1D.P1-1.03 | B6: Oplechování atiky | C6: Oplechování atiky, včetně doplňkového a montážního materiálu. | D6: Ocelový pozinkovaný plech, tl. 0,6 mm, exteriérový nátěr v odstínu RAL 7016 | E6: r.š. 720 mm | F6: ; Další specifikace viz Kniha klempířských prvků | G6: Oplechování atiky; Popis:Oplechování atiky, včetně doplňkového a montážního materiálu.; Materiál:Ocelový pozinkovaný plech, tl. 0,6 mm, exteriérový nátěr v odstínu RAL 7016; Rozměry:r.š. 720 mm ; Další specifikace viz Kniha klempířských prvků | H6: m | I6: 12.21 | J6: 1100
A7: 1D.P1-1.04 | B7: Boční oplechování | C7: Boční oplechování, včetně doplňkového a montážního materiálu. | D7: Ocelový pozinkovaný plech, tl. 0,6 mm, exteriérový nátěr v odstínu RAL 7016 | E7: r.š. 435 mm | F7: ; Další specifikace viz Kniha klempířských prvků | G7: Boční oplechování; Popis:Boční oplechování, včetně doplňkového a montážního materiálu.; Materiál:Ocelový pozinkovaný plech, tl. 0,6 mm, exteriérový nátěr v odstínu RAL 7016; Rozměry:r.š. 435 mm ; Další specifikace viz Kniha klempířských prvků | H7: m | I7: 5.5 | J7: 860
A8: 1D.P1-1.05 | B8: Dešťový žlab | C8: Dešťový žlab, včetně doplňkového a montážního materiálu. | D8: Ocelový pozinkovaný plech, tl. 0,6 mm, exteriérový nátěr v odstínu RAL 7016 | E8: průměr 300 mm | F8: ; Další specifikace viz Kniha klempířských prvků | G8: Dešťový žlab; Popis:Dešťový žlab, včetně doplňkového a montážního materiálu.; Materiál:Ocelový pozinkovaný plech, tl. 0,6 mm, exteriérový nátěr v odstínu RAL 7016; Rozměry:průměr 300 mm ; Další specifikace viz Kniha klempířských prvků | H8: m | I8: 31 | J8: 725
A9: 1D.P1-1.06 | B9: Dešťový svod | C9: Dešťový svod, včetně doplňkového a montážního materiálu. | D9: Ocelový pozinkovaný plech, tl. 0,6 mm, exteriérový nátěr v odstínu RAL 7016 | E9: průměr 120 mm | F9: ; Další specifikace viz Kniha klempířských prvků | G9: Dešťový svod; Popis:Dešťový svod, včetně doplňkového a montážního materiálu.; Materiál:Ocelový pozinkovaný plech, tl. 0,6 mm, exteriérový nátěr v odstínu RAL 7016; Rozměry:průměr 120 mm ; Další specifikace viz Kniha klempířských prvků | H9: m | I9: 16.37 | J9: 919
A10: KP | B10: Zámečnické prvky
A11: 1D.Z1-1.01 | B11: Kovové zábradlí a madlo ke schodišti | C11: Sloupkové zábradlí s výplní zábradlí a madlo kotveno do konstrukce schodiště. Madlo 50 x 40 m, vodorovný profil 20 x 20 mm a svislé sloupky 15 x 15 mm. Madlo kotveno do stěny. Materiál nerezová ocel, povrchová úprava kartáčovaná nerez. | D11: Nerezová ocel, povrchová úprava kartáčovaná nerez | E11: výška 900 mm | F11: ; Další specifikace viz Kniha zámečnických prvků | G11: =CONCATENATE(B11,$C$1,C11,$D$1,D11,$E$1,E11,F11) -> Kovové zábradlí a madlo ke schodišti; Popis:Sloupkové zábradlí s výplní zábradlí a madlo kotveno do konstrukce schodiště. Madlo 50 x 40 m, vodorovný profil 20 x 20 mm a svislé sloupky 15 x 15 mm. Madlo kotveno do stěny. Materiál nerezová ocel, povrchová úprava kartáčovaná nerez.; Materiál:Nerezová ocel, povrchová úprava kartáčovaná nerez; Rozměry:výška 900 mm ; Další specifikace viz Kniha zámečnických prvků | H11: m | I11: 5.8 | J11: 2260
A12: TP | B12: Truhlářské prvky
A13: 1D.T1-1.01 | B13: Kuchyňská linka | C13: Kuchyňská linka, sokl 80 mm, korpus z lamino desky tl. 18 mm, hrana z ABS tl. 2 mm. Spodní skříňky plné, pracovní deska z laminátové desky tl. 38 mm, nerezový dřez s odkapávačem. Kování linky je kovové. Součástí kuchyňské linky je dřez s odkapávačem a spotřebiče energetické třídy min. A přesně specifikovány v Knize vnitřního vybavení. Kuchyňská linka je opatřená krycím panelem š. 50 mm. | D13: Korpus z lamina, pracovní deska z laminátové desky | E13: viz. obrazová příloha | F13: ; SPOTŘEBIČE OCENIT V KAPITOLE_Prvky vnitřního vybevení - Elektro a příslušenství ; Další specifikace viz Kniha truhlářských prvků | G13: =CONCATENATE(B13,$C$1,C13,$D$1,D13,$E$1,E13,F13) -> Kuchyňská linka; Popis:Kuchyňská linka, sokl 80 mm, korpus z lamino desky tl. 18 mm, hrana z ABS tl. 2 mm. Spodní skříňky plné, pracovní deska z laminátové desky tl. 38 mm, nerezový dřez s odkapávačem. Kování linky je kovové. Součástí kuchyňské linky je dřez s odkapávačem a spotřebiče energetické třídy min. A přesně specifikovány v Knize vnitřního vybavení. Kuchyňská linka je opatřená krycím panelem š. 50 mm.; Materiál:Korpus z lamina, pracovní deska z laminátové desky; Rozměry:viz. obrazová příloha ; SPOTŘEBIČE OCENIT V KAPITOLE_Prvky vnitřního vybevení - Elektro a příslušenství ; Další specifikace viz Kniha truhlářských prvků | H13: ks | I13: 1 | J13: 46475
A14: 1D.T1-1.02 | B14: Kuchyňská linka | C14: Kuchyňská linka, sokl 80 mm, korpus z lamino desky tl. 18 mm, hrana z ABS tl. 2 mm. Spodní skříňky plné, pracovní deska z laminátové desky tl. 38 mm, nerezový dřez s odkapávačem. Kování linky je kovové. Součástí kuchyňské linky je dřez s odkapávačem a spotřebiče energetické třídy min. A přesně specifikovány v Knize vnitřního vybavení. Kuchyňská linka je opatřená krycím panelem š. 50 mm. | D14: Korpus z lamina, pracovní deska z laminátové desky | E14: viz. obrazová příloha | F14: ; SPOTŘEBIČE OCENIT V KAPITOLE_Prvky vnitřního vybevení - Elektro a příslušenství ; Další specifikace viz Kniha truhlářských prvků | G14: Kuchyňská linka; Popis:Kuchyňská linka, sokl 80 mm, korpus z lamino desky tl. 18 mm, hrana z ABS tl. 2 mm. Spodní skříňky plné, pracovní deska z laminátové desky tl. 38 mm, nerezový dřez s odkapávačem. Kování linky je kovové. Součástí kuchyňské linky je dřez s odkapávačem a spotřebiče energetické třídy min. A přesně specifikovány v Knize vnitřního vybavení. Kuchyňská linka je opatřená krycím panelem š. 50 mm.; Materiál:Korpus z lamina, pracovní deska z laminátové desky; Rozměry:viz. obrazová příloha ; SPOTŘEBIČE OCENIT V KAPITOLE_Prvky vnitřního vybevení - Elektro a příslušenství ; Další specifikace viz Kniha truhlářských prvků | H14: ks | I14: 1 | J14: 46475
A15: 1D.T1-1.03 | B15: Lehká příčka na bázi dřeva | C15: Dřevotřísková laminátová deska na bázi dřeva tl. 30 mm, součástí příčky je dveřní křídlo o rozměru 700 x 1970 mm. Veškeré doplňky jsou nerezové, podpěrné nohy ve výšce 100 mm nad podlahou (celková výška včetně nožiček), nerezové panty 3 ks na jedno křídlo, stěny a příčky navzájem spojeny hliníkovými eloxovanými "U" profily, horní ztužující hrana 40 x 40 mm - hliníková s povrchvou úpravou elox. Doplňky: nerezový pant, podpěrné nohy výškově nastavitelné, dveřní zamykání, hliníkový profil, nerezový úchyt a horní ztužující hrazda. | D15: Laminátová dřevotřísková deska, veškeré doplňky nerezové | E15: 1860 x 30 x 2000 mm, 930 x 30 x 2000 mm (d x š x v) | F15: ; Další specifikace viz Kniha truhlářských prvků | G15: Lehká příčka na bázi dřeva; Popis:Dřevotřísková laminátová deska na bázi dřeva tl. 30 mm, součástí příčky je dveřní křídlo o rozměru 700 x 1970 mm. Veškeré doplňky jsou nerezové, podpěrné nohy ve výšce 100 mm nad podlahou (celková výška včetně nožiček), nerezové panty 3 ks na jedno křídlo, stěny a příčky navzájem spojeny hliníkovými eloxovanými "U" profily, horní ztužující hrana 40 x 40 mm - hliníková s povrchvou úpravou elox. Doplňky: nerezový pant, podpěrné nohy výškově nastavitelné, dveřní zamykání, hliníkový profil, nerezový úchyt a horní ztužující hrazda.; Materiál:Laminátová dřevotřísková deska, veškeré doplňky nerezové; Rozměry:1860 x 30 x 2000 mm, 930 x 30 x 2000 mm (d x š x v); Další specifikace viz Kniha truhlářských prvků | H15: ks | I15: 1 | J15: 22320
A16: 1D.T1-1.04 | B16: Lehká příčka na bázi dřeva | C16: Dřevotřísková laminátová deska na bázi dřeva tl. 30 mm, součástí příčky je dveřní křídlo o rozměru 700 x 1970 mm. Veškeré doplňky jsou nerezové, podpěrné nohy ve výšce 100 mm nad podlahou (celková výška včetně nožiček), nerezové panty 3 ks na jedno křídlo, stěny a příčky navzájem spojeny hliníkovými eloxovanými "U" profily, horní ztužující hrana 40 x 40 mm - hliníková s povrchvou úpravou elox. Doplňky: nerezový pant, podpěrné nohy výškově nastavitelné, dveřní zamykání, hliníkový profil, nerezový úchyt a horní ztužující hrazda. | D16: Laminátová dřevotřísková deska, veškeré doplňky nerezové | E16: 1720 x 30 x 2000 mm (d x š x v) | F16: ; Další specifikace viz Kniha truhlářských prvků | G16: Lehká příčka na bázi dřeva; Popis:Dřevotřísková laminátová deska na bázi dřeva tl. 30 mm, součástí příčky je dveřní křídlo o rozměru 700 x 1970 mm. Veškeré doplňky jsou nerezové, podpěrné nohy ve výšce 100 mm nad podlahou (celková výška včetně nožiček), nerezové panty 3 ks na jedno křídlo, stěny a příčky navzájem spojeny hliníkovými eloxovanými "U" profily, horní ztužující hrana 40 x 40 mm - hliníková s povrchvou úpravou elox. Doplňky: nerezový pant, podpěrné nohy výškově nastavitelné, dveřní zamykání, hliníkový profil, nerezový úchyt a horní ztužující hrazda.; Materiál:Laminátová dřevotřísková deska, veškeré doplňky nerezové; Rozměry:1720 x 30 x 2000 mm (d x š x v); Další specifikace viz Kniha truhlářských prvků | H16: ks | I16: 1 | J16: 13760
A17: 1D.T1-1.05 | B17: Lehká příčka na bázi dřeva | C17: Dřevotřísková laminátová deska na bázi dřeva tl. 30 mm, součástí příčky jsou dvě dveřní křídla o rozměru 700 x 1970 mm. Veškeré doplňky jsou nerezové, podpěrné nohy ve výšce 100 mm nad podlahou (celková výška včetně nožiček), nerezové panty 3 ks na jedno křídlo, stěny a příčky navzájem spojeny hliníkovými eloxovanými "U" profily, horní ztužující hrana 40 x 40 mm - hliníková s povrchvou úpravou elox. Doplňky: nerezový pant, podpěrné nohy výškově nastavitelné, dveřní zamykání, hliníkový profil, nerezový úchyt a horní ztužující hrazda. | D17: Laminátová dřevotřísková deska, veškeré doplňky nerezové | E17: 1830 x 30 x 2000 mm, 1520 x 30 x 2000 mm (d x š x v) | F17: ; Další specifikace viz Kniha truhlářských prvků | G17: Lehká příčka na bázi dřeva; Popis:Dřevotřísková laminátová deska na bázi dřeva tl. 30 mm, součástí příčky jsou dvě dveřní křídla o rozměru 700 x 1970 mm. Veškeré doplňky jsou nerezové, podpěrné nohy ve výšce 100 mm nad podlahou (celková výška včetně nožiček), nerezové panty 3 ks na jedno křídlo, stěny a příčky navzájem spojeny hliníkovými eloxovanými "U" profily, horní ztužující hrana 40 x 40 mm - hliníková s povrchvou úpravou elox. Doplňky: nerezový pant, podpěrné nohy výškově nastavitelné, dveřní zamykání, hliníkový profil, nerezový úchyt a horní ztužující hrazda.; Materiál:Laminátová dřevotřísková deska, veškeré doplňky nerezové; Rozměry:1830 x 30 x 2000 mm, 1520 x 30 x 2000 mm (d x š x v); Další specifikace viz Kniha truhlářských prvků | H17: ks | I17: 1 | J17: 26800
A18: 1D.T1-1.06 | B18: Lehká příčka na bázi dřeva | C18: Dřevotřísková laminátová deska na bázi dřeva tl. 30 mm, součástí příčky je dveřní křídlo o rozměru 700 x 1970 mm. Veškeré doplňky jsou nerezové, podpěrné nohy ve výšce 100 mm nad podlahou (celková výška včetně nožiček), nerezové panty 3 ks na jedno křídlo, stěny a příčky navzájem spojeny hliníkovými eloxovanými "U" profily, horní ztužující hrana 40 x 40 mm - hliníková s povrchvou úpravou elox. Doplňky: nerezový pant, podpěrné nohy výškově nastavitelné, dveřní zamykání, hliníkový profil, nerezový úchyt a horní ztužující hrazda. | D18: Laminátová dřevotřísková deska, veškeré doplňky nerezové | E18: 1270 x 30 x 2000 mm (d x š x v) | F18: ; Další specifikace viz Kniha truhlářských prvků | G18: Lehká příčka na bázi dřeva; Popis:Dřevotřísková laminátová deska na bázi dřeva tl. 30 mm, součástí příčky je dveřní křídlo o rozměru 700 x 1970 mm. Veškeré doplňky jsou nerezové, podpěrné nohy ve výšce 100 mm nad podlahou (celková výška včetně nožiček), nerezové panty 3 ks na jedno křídlo, stěny a příčky navzájem spojeny hliníkovými eloxovanými "U" profily, horní ztužující hrana 40 x 40 mm - hliníková s povrchvou úpravou elox. Doplňky: nerezový pant, podpěrné nohy výškově nastavitelné, dveřní zamykání, hliníkový profil, nerezový úchyt a horní ztužující hrazda.; Materiál:Laminátová dřevotřísková deska, veškeré doplňky nerezové; Rozměry:1270 x 30 x 2000 mm (d x š x v); Další specifikace viz Kniha truhlářských prvků | H18: ks | I18: 1 | J18: 10160
A19: OP | B19: Ostatní prvky
A20: 1D.OP-1.01 | B20: Sprchový závěs z PVC | C20: Sprchový závěs z PVC v bílé barvě s texturou, kroužky a tyčí. Závěs je zevěšen na tyč za pomoci plastových kroužků. Závěs nepropouští vodu a je možné ho prát na 40°C. | D20: Záves a kroužky: PVC, tyč: chrom | E20: 1400 x 2860 mm (d x v) 1400 x 2860 mm (d x v) | F20: ; Další specifikace viz Kniha ostatních prvků | G20: =CONCATENATE(B20,$C$1,C20,$D$1,D20,$E$1,E20,F20) -> Sprchový závěs z PVC; Popis:Sprchový závěs z PVC v bílé barvě s texturou, kroužky a tyčí. Závěs je zevěšen na tyč za pomoci plastových kroužků. Závěs nepropouští vodu a je možné ho prát na 40°C.; Materiál:Záves a kroužky: PVC, tyč: chrom; Rozměry:1400 x 2860 mm (d x v) 1400 x 2860 mm (d x v) ; Další specifikace viz Kniha ostatních prvků | H20: ks | I20: 1 | J20: 1000
A21: 1D.OP-1.02 | B21: Venkovní rolety | C21: Venkovní hliníková roleta pro regulaci přirozeného osvětlení a zachycení slunečních paprsků s bočními vodícími lištami. Horní ocelový válcovaný profil upravený pozinkování o rozměru 58 x 56 mm zakrytý krycím plechem. Lamely hliníkové o šířce 80 mm s navíjecími mechanismy, textilními žebříčky a vytahovacími páskami. Boční vodící lišty o rozměru 20 x 20 mm v barvě stříbrná elox. Ovládání elektrické. | D21: hliník, barva stříbrný elox | E21: 1250x1500 mm (šxv) | F21: ; Další specifikace viz Kniha ostatních prvků | G21: =CONCATENATE(B21,$C$1,C21,$D$1,D21,$E$1,E21,F21) -> Venkovní rolety; Popis:Venkovní hliníková roleta pro regulaci přirozeného osvětlení a zachycení slunečních paprsků s bočními vodícími lištami. Horní ocelový válcovaný profil upravený pozinkování o rozměru 58 x 56 mm zakrytý krycím plechem. Lamely hliníkové o šířce 80 mm s navíjecími mechanismy, textilními žebříčky a vytahovacími páskami. Boční vodící lišty o rozměru 20 x 20 mm v barvě stříbrná elox. Ovládání elektrické.; Materiál:hliník, barva stříbrný elox; Rozměry:1250x1500 mm (šxv) ; Další specifikace viz Kniha ostatních prvků | H21: ks | I21: 8 | J21: 5250
A22: 1D.OP-1.03 | B22: Vnitřní stínící roleta střešních oken | C22: Vnitřní stínící rolety. Vložena do rámu okna s krycími lištami. Ovládání je za pomocí pružinového pohonu navíjení látky. Roletu možno nastvait v libovolné výšce | D22: látka v barvě šedé | E22: 900x1650 mm (šxv) | F22: ; Další specifikace viz Kniha ostatních prvků | G22: =CONCATENATE(B22,$C$1,C22,$D$1,D22,$E$1,E22,F22) -> Vnitřní stínící roleta střešních oken; Popis:Vnitřní stínící rolety. Vložena do rámu okna s krycími lištami. Ovládání je za pomocí pružinového pohonu navíjení látky. Roletu možno nastvait v libovolné výšce; Materiál:látka v barvě šedé; Rozměry:900x1650 mm (šxv) ; Další specifikace viz Kniha ostatních prvků | H22: ks | I22: 6 | J22: 2970
A23: VV_N | B23: Prvky vnitřního vybevení - Nábytek a příslušenství
A24: 1D.VV_N_001 | B24: Předsíňová stěna s věšáky | C24: Předsíňová stěna s kovovými háčky se dvěmi úchytkami a policí, kotvená do stěny včetně montážního materiálu. Korpus a police z MDF desky, barva světle hnědá, tl. 20 mm. Hrany optařeny ABS hranou tl. 1,5 mm. Háček (5 ks) se dvěmi úchytkami kotvená na desku věšáku včetně kotvení. Materiál nerezová ocel. | E24: věšák: 660 x 240 x 1520 mm (d x š x v), háček: 70 x 30 x 47 mm (d x š x v) | F24: ; Další specifikace viz Kniha vnitřního vybavení - Kniha - prvků - Nábytek a příslušenství | G24: =CONCATENATE(B24,$C$1,C24,$D$1,D24,$E$1,E24,F24) -> Předsíňová stěna s věšáky; Popis:Předsíňová stěna s kovovými háčky se dvěmi úchytkami a policí, kotvená do stěny včetně montážního materiálu. Korpus a police z MDF desky, barva světle hnědá, tl. 20 mm. Hrany optařeny ABS hranou tl. 1,5 mm. Háček (5 ks) se dvěmi úchytkami kotvená na desku věšáku včetně kotvení. Materiál nerezová ocel.; Materiál:; Rozměry:věšák: 660 x 240 x 1520 mm (d x š x v), háček: 70 x 30 x 47 mm (d x š x v) ; Další specifikace viz Kniha vnitřního vybavení - Kniha - prvků - Nábytek a příslušenství | H24: ks | I24: 1 | J24: 1712.4
A25: 1D.VV_N_002 | B25: Police do skladu (výška 2000 mm) | C25: Police do skladu s pěti policemi včetně montážního materiálu. Police jsou výškově přestavitelné v rastru 138 mm. Šedý policový regál je rychle smontovatelný bez spojovacího materiálu. Police se jednoduchým způsobem nasadí na sloupky. Možnost spojování do polí a řad vedle sebe i za sebou pro zvýšení celkové tuhosti. Konstrukce je povrchově upravena práškovým lakem šedé barvy. Nohy jsou vybaveny plastovými patkami pro ochranu podlahové krytiny. | E25: 1400 x 300 x 2000 mm (d x š x v) | F25: ; Další specifikace viz Kniha vnitřního vybavení - Kniha - prvků - Nábytek a příslušenství | G25: Police do skladu (výška 2000 mm); Popis:Police do skladu s pěti policemi včetně montážního materiálu. Police jsou výškově přestavitelné v rastru 138 mm. Šedý policový regál je rychle smontovatelný bez spojovacího materiálu. Police se jednoduchým způsobem nasadí na sloupky. Možnost spojování do polí a řad vedle sebe i za sebou pro zvýšení celkové tuhosti. Konstrukce je povrchově upravena práškovým lakem šedé barvy. Nohy jsou vybaveny plastovými patkami pro ochranu podlahové krytiny.; Materiál:; Rozměry:1400 x 300 x 2000 mm (d x š x v) ; Další specifikace viz Kniha vnitřního vybavení - Kniha - prvků - Nábytek a příslušenství | H25: ks | I25: 1 | J25: =2500*1.4*2 -> 7000
A26: 1D.VV_N_003 | B26: Police do skladu (výška 1300) | C26: Police do skladu se čtyřmi policemi včetně montážního materiálu. Police jsou výškově přestavitelné v rastru 138 mm. Šedý policový regál je rychle smontovatelný bez spojovacího materiálu. Police se jednoduchým způsobem nasadí na sloupky. Možnost spojování do polí a řad vedle sebe i za sebou pro zvýšení celkové tuhosti. Konstrukce je povrchově upravena práškovým lakem šedé barvy. Nohy jsou vybaveny plastovými patkami pro ochranu podlahové krytiny. | E26: 1300 x 1300 x 300 mm (d x š x v) | F26: ; Další specifikace viz Kniha vnitřního vybavení - Kniha - prvků - Nábytek a příslušenství | G26: Police do skladu (výška 1300); Popis:Police do skladu se čtyřmi policemi včetně montážního materiálu. Police jsou výškově přestavitelné v rastru 138 mm. Šedý policový regál je rychle smontovatelný bez spojovacího materiálu. Police se jednoduchým způsobem nasadí na sloupky. Možnost spojování do polí a řad vedle sebe i za sebou pro zvýšení celkové tuhosti. Konstrukce je povrchově upravena práškovým lakem šedé barvy. Nohy jsou vybaveny plastovými patkami pro ochranu podlahové krytiny.; Materiál:; Rozměry:1300 x 1300 x 300 mm (d x š x v) ; Další specifikace viz Kniha vnitřního vybavení - Kniha - prvků - Nábytek a příslušenství | H26: ks | I26: 2 | J26: =2500*1.3*1.3 -> 4225
A27: 1D.VV_N_004 | B27: Police do archivu (výška 2000 mm) | C27: Police do skladu s pěti policemi včetně montážního materiálu. Police jsou výškově přestavitelné v rastru 138 mm. Šedý policový regál je rychle smontovatelný bez spojovacího materiálu. Police se jednoduchým způsobem nasadí na sloupky. Možnost spojování do polí a řad vedle sebe i za sebou pro zvýšení celkové tuhosti. Konstrukce je povrchově upravena práškovým lakem šedé barvy. Nohy jsou vybaveny plastovými patkami pro ochranu podlahové krytiny. | E27: 1300 x 600 x 2000 mm (d x š x v) | F27: ; Další specifikace viz Kniha vnitřního vybavení - Kniha - prvků - Nábytek a příslušenství | G27: Police do archivu (výška 2000 mm); Popis:Police do skladu s pěti policemi včetně montážního materiálu. Police jsou výškově přestavitelné v rastru 138 mm. Šedý policový regál je rychle smontovatelný bez spojovacího materiálu. Police se jednoduchým způsobem nasadí na sloupky. Možnost spojování do polí a řad vedle sebe i za sebou pro zvýšení celkové tuhosti. Konstrukce je povrchově upravena práškovým lakem šedé barvy. Nohy jsou vybaveny plastovými patkami pro ochranu podlahové krytiny.; Materiál:; Rozměry:1300 x 600 x 2000 mm (d x š x v) ; Další specifikace viz Kniha vnitřního vybavení - Kniha - prvků - Nábytek a příslušenství | H27: ks | I27: 1 | J27: =5000*1.3*2 -> 13000
A28: 1D.VV_N_005 | B28: Police do archivu (výška 1700 mm) | C28: Police do skladu se čtyřmi policemi včetně montážního materiálu. Police jsou výškově přestavitelné v rastru 138 mm. Šedý policový regál je rychle smontovatelný bez spojovacího materiálu. Police se jednoduchým způsobem nasadí na sloupky. Možnost spojování do polí a řad vedle sebe i za sebou pro zvýšení celkové tuhosti. Konstrukce je povrchově upravena práškovým lakem šedé barvy. Nohy jsou vybaveny plastovými patkami pro ochranu podlahové krytiny. | E28: 1300 x 600 x 1700 mm (d x š x v) | F28: ; Další specifikace viz Kniha vnitřního vybavení - Kniha - prvků - Nábytek a příslušenství | G28: Police do archivu (výška 1700 mm); Popis:Police do skladu se čtyřmi policemi včetně montážního materiálu. Police jsou výškově přestavitelné v rastru 138 mm. Šedý policový regál je rychle smontovatelný bez spojovacího materiálu. Police se jednoduchým způsobem nasadí na sloupky. Možnost spojování do polí a řad vedle sebe i za sebou pro zvýšení celkové tuhosti. Konstrukce je povrchově upravena práškovým lakem šedé barvy. Nohy jsou vybaveny plastovými patkami pro ochranu podlahové krytiny.; Materiál:; Rozměry:1300 x 600 x 1700 mm (d x š x v) ; Další specifikace viz Kniha vnitřního vybavení - Kniha - prvků - Nábytek a příslušenství | H28: ks | I28: 2 | J28: =5000*1.3*1.7 -> 11050
A29: 1D.VV_N_006 | B29: Police do archivu (výška 900 mm) | C29: Police do skladu se dvemi policemi včetně montážního materiálu. Police jsou výškově přestavitelné v rastru 138 mm. Šedý policový regál je rychle smontovatelný bez spojovacího materiálu. Police se jednoduchým způsobem nasadí na sloupky. Možnost spojování do polí a řad vedle sebe i za sebou pro zvýšení celkové tuhosti. Konstrukce je povrchově upravena práškovým lakem šedé barvy. Nohy jsou vybaveny plastovými patkami pro ochranu podlahové krytiny. | E29: 1300 x 600 x 900 mm (d x š x v) | F29: ; Další specifikace viz Kniha vnitřního vybavení - Kniha - prvků - Nábytek a příslušenství | G29: Police do archivu (výška 900 mm); Popis:Police do skladu se dvemi policemi včetně montážního materiálu. Police jsou výškově přestavitelné v rastru 138 mm. Šedý policový regál je rychle smontovatelný bez spojovacího materiálu. Police se jednoduchým způsobem nasadí na sloupky. Možnost spojování do polí a řad vedle sebe i za sebou pro zvýšení celkové tuhosti. Konstrukce je povrchově upravena práškovým lakem šedé barvy. Nohy jsou vybaveny plastovými patkami pro ochranu podlahové krytiny.; Materiál:; Rozměry:1300 x 600 x 900 mm (d x š x v) ; Další specifikace viz Kniha vnitřního vybavení - Kniha - prvků - Nábytek a příslušenství | H29: ks | I29: 2 | J29: =5000*1.3*0.9 -> 5850
A30: 1D.VV_N_007 | B30: Konferenční stolek kulatý s jednou nohou | C30: Konferenční stolek s jednou nenastavitelnou nohou bez zásuvek. Materiál laminátová MDF deska tl. 22 mm, barva světle hnědá, opatřená ABS hranou tl. 2 mm. Noha stolu ocelová v barvě šedé. | E30: 700 x 700 x 500 mm (d x š x v) | F30: ; Další specifikace viz Kniha vnitřního vybavení - Kniha - prvků - Nábytek a příslušenství | G30: Konferenční stolek kulatý s jednou nohou; Popis:Konferenční stolek s jednou nenastavitelnou nohou bez zásuvek. Materiál laminátová MDF deska tl. 22 mm, barva světle hnědá, opatřená ABS hranou tl. 2 mm. Noha stolu ocelová v barvě šedé.; Materiál:; Rozměry:700 x 700 x 500 mm (d x š x v) ; Další specifikace viz Kniha vnitřního vybavení - Kniha - prvků - Nábytek a příslušenství | H30: ks | I30: 2 | J30: 1500
A31: 1D.VV_N_008 | B31: Křeslo s polstrováním | C31: Křeslo s polstrování s kolečeky, čalouněná potahovou látkou v barvě šedé. Nosná konstrukce křesla je ze dřeva v kombinaci s potahovou látkou. | E31: 600 x 590 x 770 mm (d x š x v) | F31: ; Další specifikace viz Kniha vnitřního vybavení - Kniha - prvků - Nábytek a příslušenství | G31: Křeslo s polstrováním; Popis:Křeslo s polstrování s kolečeky, čalouněná potahovou látkou v barvě šedé. Nosná konstrukce křesla je ze dřeva v kombinaci s potahovou látkou.; Materiál:; Rozměry:600 x 590 x 770 mm (d x š x v) ; Další specifikace viz Kniha vnitřního vybavení - Kniha - prvků - Nábytek a příslušenství | H31: ks | I31: 4 | J31: 7800
A32: 1D.VV_N_011 | B32: Madla k WC | C32: Pevné a sklopné madlo k WC včetně montážníh materiálu. Madla jsou z nerezi. Nosnost 120 kg. | E32: délka madla 813 mm | F32: ; Další specifikace viz Kniha vnitřního vybavení - Kniha - prvků - Nábytek a příslušenství | G32: Madla k WC; Popis:Pevné a sklopné madlo k WC včetně montážníh materiálu. Madla jsou z nerezi. Nosnost 120 kg.; Materiál:; Rozměry:délka madla 813 mm ; Další specifikace viz Kniha vnitřního vybavení - Kniha - prvků - Nábytek a příslušenství | H32: ks | I32: 1 | J32: =2488 -> 2488
A33: 1D.VV_N_012 | B33: Trezor velký | C33: Trezor s elektronickým zámkem. Materiál ocel, korpus 1,5 mm, dveře 4 mm, povrchová úprava práškovaným lakem v barvě šedé. Možné upevnit na zeď. Provoz trezeru je za pomoci 4 běžných baterií (1,5 V). | E33: 500 x 450 x 700 mm (d x š x v) | F33: ; Další specifikace viz Kniha vnitřního vybavení - Kniha - prvků - Nábytek a příslušenství | G33: Trezor velký; Popis:Trezor s elektronickým zámkem. Materiál ocel, korpus 1,5 mm, dveře 4 mm, povrchová úprava práškovaným lakem v barvě šedé. Možné upevnit na zeď. Provoz trezeru je za pomoci 4 běžných baterií (1,5 V).; Materiál:; Rozměry:500 x 450 x 700 mm (d x š x v) ; Další specifikace viz Kniha vnitřního vybavení - Kniha - prvků - Nábytek a příslušenství | H33: ks | I33: 1 | J33: 9200
A34: 1D.VV_N_013 | B34: Trezor malý | C34: Trezor s elektronickým zámkem. Materiál ocel, korpus 1,5 mm, dveře 4 mm, povrchová úprava práškovaným lakem v barvě šedé. Možné upevnit na zeď. Provoz trezeru je za pomoci 4 běžných baterií (1,5 V). | E34: 450 x 350 x 350 mm (d x š x v) | F34: ; Další specifikace viz Kniha vnitřního vybavení - Kniha - prvků - Nábytek a příslušenství | G34: Trezor malý; Popis:Trezor s elektronickým zámkem. Materiál ocel, korpus 1,5 mm, dveře 4 mm, povrchová úprava práškovaným lakem v barvě šedé. Možné upevnit na zeď. Provoz trezeru je za pomoci 4 běžných baterií (1,5 V).; Materiál:; Rozměry:450 x 350 x 350 mm (d x š x v) ; Další specifikace viz Kniha vnitřního vybavení - Kniha - prvků - Nábytek a příslušenství | H34: ks | I34: 1 | J34: 3200
A35: VV_E | B35: Prvky vnitřního vybevení - Elektro a příslušenství
A36: 1D.VV_E_001 | B36: Velkoformátová televize | C36: Televize SMART LED, 190cm, ULED technologie, 4K Ultra HD 3840x2160, HDR Plus, PCI 2400(120Hz), DVB-T2/S2/C, H.265/HEVC, Vidaa U2 OS, 4x HDMI, 3x USB, CI+, LAN, DLNA, Wifi, MHL, HbbTV(2.0), web prohlížeč, PVR nahrávání, Timeshift, Local Dimming, UHD upscaling, Anyview Cast, Anyview Stream, hotelový mód,DBX Total Sonics, VESA, repro 30W, B | F36: ; Další specifikace viz Kniha vnitřního vybavení - Kniha - prvků - Elektro a příslušenství | G36: =CONCATENATE(B36,$C$1,C36,$D$1,D36,$E$1,E36,F36) -> Velkoformátová televize; Popis:Televize SMART LED, 190cm, ULED technologie, 4K Ultra HD 3840x2160, HDR Plus, PCI 2400(120Hz), DVB-T2/S2/C, H.265/HEVC, Vidaa U2 OS, 4x HDMI, 3x USB, CI+, LAN, DLNA, Wifi, MHL, HbbTV(2.0), web prohlížeč, PVR nahrávání, Timeshift, Local Dimming, UHD upscaling, Anyview Cast, Anyview Stream, hotelový mód,DBX Total Sonics, VESA, repro 30W, B; Materiál:; Rozměry: ; Další specifikace viz Kniha vnitřního vybavení - Kniha - prvků - Elektro a příslušenství | H36: ks | I36: 1 | J36: 107000
A37: 1D.VV_E_002 | B37: Notebook | C37: Notebook, 15,4 “ LCD, 8 GB RAM, 500 GB HDD, procesor i3 a vyšší, Windows 10 Pro, MS Office 2016 Home and Bussines CZ. | E37: - - - | F37: ; Další specifikace viz Kniha vnitřního vybavení - Kniha - prvků - Elektro a příslušenství | G37: =CONCATENATE(B37,$C$1,C37,$D$1,D37,$E$1,E37,F37) -> Notebook; Popis:Notebook, 15,4 “ LCD, 8 GB RAM, 500 GB HDD, procesor i3 a vyšší, Windows 10 Pro, MS Office 2016 Home and Bussines CZ.; Materiál:; Rozměry: - - - ; Další specifikace viz Kniha vnitřního vybavení - Kniha - prvků - Elektro a příslušenství | H37: ks | I37: 2 | J37: 33590

Sheet KVI_A (hidden)
A1: 2AD.1.1 | B1: Architektonicko-stavební řešení | C1: ; Popis: | D1: ; Materiál: | E1: ; Rozměry:
A2: 10_VB | B2: Výrobky
A3: KP | B3: Klempířské prvky | C3: Sloupec1 | D3: Sloupec2 | E3: Sloupec3 | F3: Sloupec4 | G3: Sloupec5 | H3: Sloupec6 | I3: Sloupec7 | J3: Sloupec8
A4: P1-1.01 | B4: Okenní parapet | C4: Oplechování parapetu oken včetně doplňkového a montážního materiálu. | D4: Ocelový pozinkovaný plech, tl. 0,6 mm, exteriérový nátěr v odstínu RAL 7016 | E4: r.š. 330 mm | F4: ; Další specifikace viz Kniha klempířských prvků | G4: =CONCATENATE(B4,$C$1,C4,$D$1,D4,$E$1,E4,F4) -> Okenní parapet; Popis:Oplechování parapetu oken včetně doplňkového a montážního materiálu.; Materiál:Ocelový pozinkovaný plech, tl. 0,6 mm, exteriérový nátěr v odstínu RAL 7016; Rozměry:r.š. 330 mm ; Další specifikace viz Kniha klempířských prvků | H4: m | I4: 14.7 | J4: 474
A5: P1-1.02 | B5: Oplechování atiky | C5: Oplechování atiky, včetně doplňkového a montážního materiálu. | D5: Ocelový pozinkovaný plech, tl. 0,6 mm, exteriérový nátěr v odstínu RAL 7016 | E5: r.š. 860 mm | F5: ; Další specifikace viz Kniha klempířských prvků | G5: Oplechování atiky; Popis:Oplechování atiky, včetně doplňkového a montážního materiálu.; Materiál:Ocelový pozinkovaný plech, tl. 0,6 mm, exteriérový nátěr v odstínu RAL 7016; Rozměry:r.š. 860 mm ; Další specifikace viz Kniha klempířských prvků | H5: m | I5: 13.7 | J5: 1480
A6: P1-1.03 | B6: Oplechování atiky | C6: Oplechování atiky, včetně doplňkového a montážního materiálu. | D6: Ocelový pozinkovaný plech, tl. 0,6 mm, exteriérový nátěr v odstínu RAL 7016 | E6: r.š. 720 mm | F6: ; Další specifikace viz Kniha klempířských prvků | G6: Oplechování atiky; Popis:Oplechování atiky, včetně doplňkového a montážního materiálu.; Materiál:Ocelový pozinkovaný plech, tl. 0,6 mm, exteriérový nátěr v odstínu RAL 7016; Rozměry:r.š. 720 mm ; Další specifikace viz Kniha klempířských prvků | H6: m | I6: 14.1 | J6: 1100
A7: P1-1.04 | B7: Boční oplechování | C7: Boční oplechování, včetně doplňkového a montážního materiálu. | D7: Ocelový pozinkovaný plech, tl. 0,6 mm, exteriérový nátěr v odstínu RAL 7016 | E7: r.š. 435 mm | F7: ; Další specifikace viz Kniha klempířských prvků | G7: Boční oplechování; Popis:Boční oplechování, včetně doplňkového a montážního materiálu.; Materiál:Ocelový pozinkovaný plech, tl. 0,6 mm, exteriérový nátěr v odstínu RAL 7016; Rozměry:r.š. 435 mm ; Další specifikace viz Kniha klempířských prvků | H7: m | I7: 5.5 | J7: 860
A8: P1-1.05 | B8: Dešťový žlab | C8: Dešťový žlab, včetně doplňkového a montážního materiálu. | D8: Ocelový pozinkovaný plech, tl. 0,6 mm, exteriérový nátěr v odstínu RAL 7016 | E8: průměr 300 mm | F8: ; Další specifikace viz Kniha klempířských prvků | G8: Dešťový žlab; Popis:Dešťový žlab, včetně doplňkového a montážního materiálu.; Materiál:Ocelový pozinkovaný plech, tl. 0,6 mm, exteriérový nátěr v odstínu RAL 7016; Rozměry:průměr 300 mm ; Další specifikace viz Kniha klempířských prvků | H8: m | I8: 32.1 | J8: 725
A9: P1-1.06 | B9: Dešťový svod | C9: Dešťový svod, včetně doplňkového a montážního materiálu. | D9: Ocelový pozinkovaný plech, tl. 0,6 mm, exteriérový nátěr v odstínu RAL 7016 | E9: průměr 120 mm | F9: ; Další specifikace viz Kniha klempířských prvků | G9: Dešťový svod; Popis:Dešťový svod, včetně doplňkového a montážního materiálu.; Materiál:Ocelový pozinkovaný plech, tl. 0,6 mm, exteriérový nátěr v odstínu RAL 7016; Rozměry:průměr 120 mm ; Další specifikace viz Kniha klempířských prvků | H9: m | I9: 14.1 | J9: 919
A10: KP | B10: Zámečnické prvky
A11: Z1-1.01 | B11: Drátěné poplastované pletivo | C11: Oplocení z dratěného poplastovaného pletiva se sloupkami a obrubníkem. Velikost ok pletiva 55 x 55 mm. Nosné sloupky z švorové trubky 48 mm o síle stěny 1,5 mm. Sloupky po 2,5 m, opěry plotu na začátku, na konci na každém rohu a po každých 25 m. Základová patka se provádí pod každým nosným sloupkem do nezámrzné hloubky, velikost pakty 300 x 300 mm. Obrubník je uložen do rýhy s maltovým ložem. Výška obrubníku je 200 mm, je částečně zapuštěn do terénu. | D11: Poplastované plepletivo a sloupky, barva jehlová zeleň RAL 6005, obrubník: beton | E11: výška 1,8 m | F11: ; Další specifikace viz Kniha zámečnických prvků | G11: =CONCATENATE(B11,$C$1,C11,$D$1,D11,$E$1,E11,F11) -> Drátěné poplastované pletivo; Popis:Oplocení z dratěného poplastovaného pletiva se sloupkami a obrubníkem. Velikost ok pletiva 55 x 55 mm. Nosné sloupky z švorové trubky 48 mm o síle stěny 1,5 mm. Sloupky po 2,5 m, opěry plotu na začátku, na konci na každém rohu a po každých 25 m. Základová patka se provádí pod každým nosným sloupkem do nezámrzné hloubky, velikost pakty 300 x 300 mm. Obrubník je uložen do rýhy s maltovým ložem. Výška obrubníku je 200 mm, je částečně zapuštěn do terénu.; Materiál:Poplastované plepletivo a sloupky, barva jehlová zeleň RAL 6005, obrubník: beton; Rozměry:výška 1,8 m ; Další specifikace viz Kniha zámečnických prvků | H11: m | I11: 210.2 | J11: 1197
A12: TP | B12: Truhlářské prvky
A13: T1-1.01 | B13: Oddělující lehká dřevěná příčka | C13: Oddělující lehká dřevěná příčka, rošt ze smrkových doblovaných hranolů 40 x 40 mm spojené konstrukčními vruty se zápustnou hlavou, opláštěné laminátovou MDF deskou, vzor světlého dřeva s méně výraznou kresbou. Hranoly kotveny do stěny a stropu. Součástí příčky jsou uzamykatelné dveře o rozměru 1600 x 1970 mm, obložková polodrážková zárubeň materiál MDF, vložkový zámek + klika. | D13: rošt: smrkové hranoly, opláštění a dveře: MDF deska, zámek a klika: broušený nerez | E13: 2500 x 60 x 2300 mm (d x hl x v) | F13: ; Další specifikace viz Kniha truhlářských prvků | G13: =CONCATENATE(B13,$C$1,C13,$D$1,D13,$E$1,E13,F13) -> Oddělující lehká dřevěná příčka; Popis:Oddělující lehká dřevěná příčka, rošt ze smrkových doblovaných hranolů 40 x 40 mm spojené konstrukčními vruty se zápustnou hlavou, opláštěné laminátovou MDF deskou, vzor světlého dřeva s méně výraznou kresbou. Hranoly kotveny do stěny a stropu. Součástí příčky jsou uzamykatelné dveře o rozměru 1600 x 1970 mm, obložková polodrážková zárubeň materiál MDF, vložkový zámek + klika.; Materiál:rošt: smrkové hranoly, opláštění a dveře: MDF deska, zámek a klika: broušený nerez; Rozměry:2500 x 60 x 2300 mm (d x hl x v) ; Další specifikace viz Kniha truhlářských prvků | H13: ks | I13: 1 | J13: 23000
A14: T1-1.02 | B14: Kuchyňská linka tvaru U | C14: Kuchyňská linka tvaru U, sokl 80 mm, korpus z lamino desky tl. 18 mm, hrana z ABS tl. 2 mm. Horní i spodní skříňky plné, pracovní deska z laminátové desky tl. 38 mm, nerezový dřez s odkapávačem. Kování linky je kovové. Součástí kuchyňské linky je dřez s odkapávačem, varná deska se čtyřmi plotýnkami, trouba, lednička, mrazák a myčka. Spotřebiče energetiské třídy min. A přesně specifikovány vnitřního vybavení. Horní i spodní část je opatřená krycím panelem š. 50 mm. | D14: Korpus z lamina, pracovní deska z laminátové desky | E14: viz. obrazová příloha | F14: ; SPOTŘEBIČE OCENIT V KAPITOLE_Prvky vnitřního vybevení - Elektro a příslušenství ; Další specifikace viz Kniha truhlářských prvků | G14: =CONCATENATE(B14,$C$1,C14,$D$1,D14,$E$1,E14,F14) -> Kuchyňská linka tvaru U; Popis:Kuchyňská linka tvaru U, sokl 80 mm, korpus z lamino desky tl. 18 mm, hrana z ABS tl. 2 mm. Horní i spodní skříňky plné, pracovní deska z laminátové desky tl. 38 mm, nerezový dřez s odkapávačem. Kování linky je kovové. Součástí kuchyňské linky je dřez s odkapávačem, varná deska se čtyřmi plotýnkami, trouba, lednička, mrazák a myčka. Spotřebiče energetiské třídy min. A přesně specifikovány vnitřního vybavení. Horní i spodní část je opatřená krycím panelem š. 50 mm.; Materiál:Korpus z lamina, pracovní deska z laminátové desky; Rozměry:viz. obrazová příloha ; SPOTŘEBIČE OCENIT V KAPITOLE_Prvky vnitřního vybevení - Elektro a příslušenství ; Další specifikace viz Kniha truhlářských prvků | H14: ks | I14: 1 | J14: 231600
A15: OP | B15: Ostatní prvky
A16: X1-1.01 | B16: Venkovní rolety | C16: Venkovní hliníková roleta pro regulaci přirozeného osvětlení a zachycení slunečních paprsků s bočními vodícími lištami. Horní ocelový válcovaný profil upravený pozinkování o rozměru 58 x 56 mm zakrytý krycím plechem. Lamely hliníkové o šířce 80 mm s navíjecími mechanismy, textilními žebříčky a vytahovacími páskami. Boční vodící lišty o rozměru 20 x 20 mm v barvě stříbrná elox. Ovládání elektrické. | D16: hliník, barva stříbrný elox | E16: 1250x1750 mm (šxv) | F16: ; Další specifikace viz Kniha ostatních prvků | G16: =CONCATENATE(B16,$C$1,C16,$D$1,D16,$E$1,E16,F16) -> Venkovní rolety; Popis:Venkovní hliníková roleta pro regulaci přirozeného osvětlení a zachycení slunečních paprsků s bočními vodícími lištami. Horní ocelový válcovaný profil upravený pozinkování o rozměru 58 x 56 mm zakrytý krycím plechem. Lamely hliníkové o šířce 80 mm s navíjecími mechanismy, textilními žebříčky a vytahovacími páskami. Boční vodící lišty o rozměru 20 x 20 mm v barvě stříbrná elox. Ovládání elektrické.; Materiál:hliník, barva stříbrný elox; Rozměry:1250x1750 mm (šxv) ; Další specifikace viz Kniha ostatních prvků | H16: ks | I16: 6 | J16: 6125
A17: X1-1.02 | B17: Stahovací schody zateplené s požární odolností | C17: Stahovací schody zateplené s protipožární vložkou (EW 15 DP3). Schody jsou opatřeny brzdícím mechanismem proti prudkému otevření. Víko je sendvočové složeno z dřevěného rámu vyplněný izolačním materiálem opláštěný pozinkovaným plechem. Pohledová čast je lakovaná v bílé barvě a kryta ochrannou fólií. | D17: víko: dřevěný rám vyplněný izolantem opláštěný pozinkovaným plechem, pohledová část lakovaná, barva bílá, schody: kovové | E17: 600 x 800 mm (š x d) | F17: ; Další specifikace viz Kniha ostatních prvků | G17: =CONCATENATE(B17,$C$1,C17,$D$1,D17,$E$1,E17,F17) -> Stahovací schody zateplené s požární odolností; Popis:Stahovací schody zateplené s protipožární vložkou (EW 15 DP3). Schody jsou opatřeny brzdícím mechanismem proti prudkému otevření. Víko je sendvočové složeno z dřevěného rámu vyplněný izolačním materiálem opláštěný pozinkovaným plechem. Pohledová čast je lakovaná v bílé barvě a kryta ochrannou fólií.; Materiál:víko: dřevěný rám vyplněný izolantem opláštěný pozinkovaným plechem, pohledová část lakovaná, barva bílá, schody: kovové; Rozměry:600 x 800 mm (š x d) ; Další specifikace viz Kniha ostatních prvků | H17: ks | I17: 1 | J17: =14720*1.2 -> 17664
A18: VV_N | B18: Prvky vnitřního vybevení - Nábytek a příslušenství
A19: 2A.VV_N_001 | B19: Čalouněné křeslo ušák | C19: Čalouněné křeslo ušák je tvořen z vlnonce, 2 cm kokosové vrstvy a 5 cm široké PUR pěny a čalouněná potahovou látkou v barvě šedé. Hmotnost křesla 23 kg. Doplňové rozměry křesla: hloubka 720 mm, výška sedu 470 mm, hloubka sedu 520 mm, šířka sedu 520 mm a výška opěrka 670 mm. | E19: 560 x 720 x 1080 mm (d x š x v) | F19: ; Další specifikace viz Kniha vnitřního vybavení - Kniha - prvků - Nábytek a příslušenství | G19: =CONCATENATE(B19,$C$1,C19,$E$1,E19,F19) -> Čalouněné křeslo ušák; Popis:Čalouněné křeslo ušák je tvořen z vlnonce, 2 cm kokosové vrstvy a 5 cm široké PUR pěny a čalouněná potahovou látkou v barvě šedé. Hmotnost křesla 23 kg. Doplňové rozměry křesla: hloubka 720 mm, výška sedu 470 mm, hloubka sedu 520 mm, šířka sedu 520 mm a výška opěrka 670 mm.; Rozměry:560 x 720 x 1080 mm (d x š x v) ; Další specifikace viz Kniha vnitřního vybavení - Kniha - prvků - Nábytek a příslušenství | H19: ks | I19: 6 | J19: 8736
A20: 2A.VV_N_002 | B20: Předsíňová stěna s věšáky | C20: Předsíňová stěna s kovovými háčky se dvěmi úchytkami a policí, kotvená do stěny včetně montážního materiálu. Korpus a police z MDF desky, barva světle hnědá, tl. 20 mm. Hrany optařeny ABS hranou tl. 1,5 mm. Háček (5 ks) se dvěmi úchytkami kotvená na desku věšáku včetně kotvení. Materiál nerezová ocel. | E20: věšák: 660 x 240 x 1520 mm (d x š x v), háček: 70 x 30 x 47 mm (d x š x v) | F20: ; Další specifikace viz Kniha vnitřního vybavení - Kniha - prvků - Nábytek a příslušenství | G20: Předsíňová stěna s věšáky; Popis:Předsíňová stěna s kovovými háčky se dvěmi úchytkami a policí, kotvená do stěny včetně montážního materiálu. Korpus a police z MDF desky, barva světle hnědá, tl. 20 mm. Hrany optařeny ABS hranou tl. 1,5 mm. Háček (5 ks) se dvěmi úchytkami kotvená na desku věšáku včetně kotvení. Materiál nerezová ocel.; Rozměry:věšák: 660 x 240 x 1520 mm (d x š x v), háček: 70 x 30 x 47 mm (d x š x v) ; Další specifikace viz Kniha vnitřního vybavení - Kniha - prvků - Nábytek a příslušenství | H20: ks | I20: 1 | J20: =1427*1.2 -> 1712.4
A21: 2A.VV_N_003 | B21: Nástěné zrcadlo do předsíně (rozměr 1000 x 900 mm) | C21: Nástěné pravoúhlé zrcadlo k montáži na stěnu včetně kotvení. Materiál sklo s bezpečnostní fólií se zabroušenými hranami. | E21: 1000 x 900 mm (š x v) | F21: ; Další specifikace viz Kniha vnitřního vybavení - Kniha - prvků - Nábytek a příslušenství | G21: Nástěné zrcadlo do předsíně (rozměr 1000 x 900 mm); Popis:Nástěné pravoúhlé zrcadlo k montáži na stěnu včetně kotvení. Materiál sklo s bezpečnostní fólií se zabroušenými hranami.; Rozměry:1000 x 900 mm (š x v) ; Další specifikace viz Kniha vnitřního vybavení - Kniha - prvků - Nábytek a příslušenství | H21: ks | I21: 1 | J21: =1000*0.9*1.2 -> 1080
A22: 2A.VV_N_004 | B22: Vestavěná skříň policová plná s dveřmi rozdělenými na dvě části (výška 2000 mm) | C22: Skříň dvoudvéřová. Vybavená 5 ks variabilních polic. Materiál laminovaná MDF deska, barva světle hnědá. Dno i půda z desky tl. 25 mm, z přední strany ABS hrana tl. 2 mm. Ostatní pohlednové prvky opatřeny ABS hranou tl. 1 mm. Boky korpusu z desky tl. 18 mm. Záda z desky tl. 8 mm. Police z desky tl. 25 mm, nosnost 80 kg s variabilním polohovatelností. Police a desky opatřeny hranou ABS tl. 2 mm. Dodávka včetvě rektifikačních nožiček. | E22: 1400 x 400 x 2000 mm (d x š x v) | F22: ; Další specifikace viz Kniha vnitřního vybavení - Kniha - prvků - Nábytek a příslušenství | G22: Vestavěná skříň policová plná s dveřmi rozdělenými na dvě části (výška 2000 mm); Popis:Skříň dvoudvéřová. Vybavená 5 ks variabilních polic. Materiál laminovaná MDF deska, barva světle hnědá. Dno i půda z desky tl. 25 mm, z přední strany ABS hrana tl. 2 mm. Ostatní pohlednové prvky opatřeny ABS hranou tl. 1 mm. Boky korpusu z desky tl. 18 mm. Záda z desky tl. 8 mm. Police z desky tl. 25 mm, nosnost 80 kg s variabilním polohovatelností. Police a desky opatřeny hranou ABS tl. 2 mm. Dodávka včetvě rektifikačních nožiček.; Rozměry:1400 x 400 x 2000 mm (d x š x v) ; Další specifikace viz Kniha vnitřního vybavení - Kniha - prvků - Nábytek a příslušenství | H22: ks | I22: 1 | J22: 21000
A23: 2A.VV_N_005 | B23: TV stolek s policemi | C23: Televizní stolek s šesti policemi pod deskou. Materiál laminátová MDF deska, barva světle hnědá. Horní deska a nohy a police z desky tl. 20 mm. Horní deska opatřená ABS hranou tl. 2 mm, ostatní pohledové prvky opatřené ABS hranou tl. 1,5 mm. Záda z desky tl. 8 mm | E23: 3700 x 400 x 400 mm (d x š x v) | F23: ; Další specifikace viz Kniha vnitřního vybavení - Kniha - prvků - Nábytek a příslušenství | G23: TV stolek s policemi; Popis:Televizní stolek s šesti policemi pod deskou. Materiál laminátová MDF deska, barva světle hnědá. Horní deska a nohy a police z desky tl. 20 mm. Horní deska opatřená ABS hranou tl. 2 mm, ostatní pohledové prvky opatřené ABS hranou tl. 1,5 mm. Záda z desky tl. 8 mm; Rozměry:3700 x 400 x 400 mm (d x š x v) ; Další specifikace viz Kniha vnitřního vybavení - Kniha - prvků - Nábytek a příslušenství | H23: ks | I23: 1 | J23: 4300
A24: 2A.VV_N_006 | B24: Konferenční stolek | C24: Obdelníkový konferenční stolek se čtyřmi nohami jednou otevřenou zásuvkou. Materiál laminátová MDF deska. Deska tl. 20 mm, opatřená ABS hranou tl. 2 mm, barva světle hnědá. Nohy stolku čtvercové ze dřeva, barva světle hnědá. | E24: 1000 x 800 x 430 mm (d x š x v) | F24: ; Další specifikace viz Kniha vnitřního vybavení - Kniha - prvků - Nábytek a příslušenství | G24: Konferenční stolek; Popis:Obdelníkový konferenční stolek se čtyřmi nohami jednou otevřenou zásuvkou. Materiál laminátová MDF deska. Deska tl. 20 mm, opatřená ABS hranou tl. 2 mm, barva světle hnědá. Nohy stolku čtvercové ze dřeva, barva světle hnědá.; Rozměry:1000 x 800 x 430 mm (d x š x v) ; Další specifikace viz Kniha vnitřního vybavení - Kniha - prvků - Nábytek a příslušenství | H24: ks | I24: 1 | J24: 3500
A25: 2A.VV_N_007 | B25: Skříňka do koupelny (výška 700 mm) | C25: Skřínka se čtyřmi zásuvkami do koupleny a nožičkami. Materiál laminátová MDF deska, barva bílá. Dno i půda z desky tl. 25 mm, z přední strany ABS hrana tl. 2 mm. Ostatní pohlednové prvky opatřeny ABS hranou tl. 1 mm. Boky korpusu z desky tl. 18 mm. Záda z desky tl. 8 mm. Police z desky tl. 25 mm, nosnost 50 kg. Police a desky opatřeny hranou ABS tl. 2 mm. Dodávka včetvě kovových nožiček a úchytek k zásuvkám. | E25: 400 x 400 x 700 mm (d x š x v) | F25: ; Další specifikace viz Kniha vnitřního vybavení - Kniha - prvků - Nábytek a příslušenství | G25: Skříňka do koupelny (výška 700 mm); Popis:Skřínka se čtyřmi zásuvkami do koupleny a nožičkami. Materiál laminátová MDF deska, barva bílá. Dno i půda z desky tl. 25 mm, z přední strany ABS hrana tl. 2 mm. Ostatní pohlednové prvky opatřeny ABS hranou tl. 1 mm. Boky korpusu z desky tl. 18 mm. Záda z desky tl. 8 mm. Police z desky tl. 25 mm, nosnost 50 kg. Police a desky opatřeny hranou ABS tl. 2 mm. Dodávka včetvě kovových nožiček a úchytek k zásuvkám.; Rozměry:400 x 400 x 700 mm (d x š x v) ; Další specifikace viz Kniha vnitřního vybavení - Kniha - prvků - Nábytek a příslušenství | H25: ks | I25: 1 | J25: =3990*1.2 -> 4788
A26: 2A.VV_N_008 | B26: Sklopné zrcadlo pro bezbariérové WC | C26: Sklopné nerezové zrcadlo na toalety pro tělesně postižené včetně kotvení. Kotveno pomocí montážní lišty. Naklánění zrcadla je ovládané pomocí páky na stěně pod umyvadlem. Materiál sklo s bezpečnostní fólií se zabroušenými hranami a rám a páka z nerezy. | E26: 600 x 400 mm (š x v) | F26: ; Další specifikace viz Kniha vnitřního vybavení - Kniha - prvků - Nábytek a příslušenství | G26: Sklopné zrcadlo pro bezbariérové WC; Popis:Sklopné nerezové zrcadlo na toalety pro tělesně postižené včetně kotvení. Kotveno pomocí montážní lišty. Naklánění zrcadla je ovládané pomocí páky na stěně pod umyvadlem. Materiál sklo s bezpečnostní fólií se zabroušenými hranami a rám a páka z nerezy.; Rozměry:600 x 400 mm (š x v) ; Další specifikace viz Kniha vnitřního vybavení - Kniha - prvků - Nábytek a příslušenství | H26: ks | I26: 1 | J26: 3630
A27: 2A.VV_N_009 | B27: Sklopné sedátko do sprchy | C27: Sklopné sedátko do sprchy včetně montážního materiálu. Nosná konstrukce z nerezové oceli, sedátkou z odolného plastu jedohuše udržovatlené. Maximální nosnost 200 kg. | E27: 440 x 470 mm (d x š) | F27: ; Další specifikace viz Kniha vnitřního vybavení - Kniha - prvků - Nábytek a příslušenství | G27: Sklopné sedátko do sprchy; Popis:Sklopné sedátko do sprchy včetně montážního materiálu. Nosná konstrukce z nerezové oceli, sedátkou z odolného plastu jedohuše udržovatlené. Maximální nosnost 200 kg.; Rozměry:440 x 470 mm (d x š) ; Další specifikace viz Kniha vnitřního vybavení - Kniha - prvků - Nábytek a příslušenství | H27: ks | I27: 1 | J27: =3567*1.2 -> 4280.4
A28: 2A.VV_N_010 | B28: Police do skladu (výška 2000 mm) | C28: Police do skladu s pěti policemi včetně montážního materiálu. Police jsou výškově přestavitelné v rastru 138 mm. Šedý policový regál je rychle smontovatelný bez spojovacího materiálu. Police se jednoduchým způsobem nasadí na sloupky. Možnost spojování do polí a řad vedle sebe i za sebou pro zvýšení celkové tuhosti. Konstrukce je povrchově upravena práškovým lakem šedé barvy. Nohy jsou vybaveny plastovými patkami pro ochranu podlahové krytiny. | E28: 2000 x 600 x 2000 mm (d x š x v) | F28: ; Další specifikace viz Kniha vnitřního vybavení - Kniha - prvků - Nábytek a příslušenství | G28: Police do skladu (výška 2000 mm); Popis:Police do skladu s pěti policemi včetně montážního materiálu. Police jsou výškově přestavitelné v rastru 138 mm. Šedý policový regál je rychle smontovatelný bez spojovacího materiálu. Police se jednoduchým způsobem nasadí na sloupky. Možnost spojování do polí a řad vedle sebe i za sebou pro zvýšení celkové tuhosti. Konstrukce je povrchově upravena práškovým lakem šedé barvy. Nohy jsou vybaveny plastovými patkami pro ochranu podlahové krytiny.; Rozměry:2000 x 600 x 2000 mm (d x š x v) ; Další specifikace viz Kniha vnitřního vybavení - Kniha - prvků - Nábytek a příslušenství | H28: ks | I28: 2 | J28: 20000
A29: 2A.VV_N_011 | B29: Police do skladu tvaru "L" (výška 2000 mm) | C29: Police do skladu tvaru "L" s pěti police včetně montážního materiálu. Police jsou výškově přestavitelné v rastru 138 mm. Šedý policový regál je rychle smontovatelný bez spojovacího materiálu. Police se jednoduchým způsobem nasadí na sloupky. Možnost spojování do polí a řad vedle sebe i za sebou pro zvýšení celkové tuhosti. Konstrukce je povrchově upravena práškovým lakem šedé barvy. Nohy jsou vybaveny plastovými patkami pro ochranu podlahové krytiny. | E29: 1810/1610 x 600 x 2000 mm (d x š x v) | F29: ; Další specifikace viz Kniha vnitřního vybavení - Kniha - prvků - Nábytek a příslušenství | G29: Police do skladu tvaru "L" (výška 2000 mm); Popis:Police do skladu tvaru "L" s pěti police včetně montážního materiálu. Police jsou výškově přestavitelné v rastru 138 mm. Šedý policový regál je rychle smontovatelný bez spojovacího materiálu. Police se jednoduchým způsobem nasadí na sloupky. Možnost spojování do polí a řad vedle sebe i za sebou pro zvýšení celkové tuhosti. Konstrukce je povrchově upravena práškovým lakem šedé barvy. Nohy jsou vybaveny plastovými patkami pro ochranu podlahové krytiny.; Rozměry:1810/1610 x 600 x 2000 mm (d x š x v) ; Další specifikace viz Kniha vnitřního vybavení - Kniha - prvků - Nábytek a příslušenství | H29: ks | I29: 1 | J29: 18100
A30: 2A.VV_N_012 | B30: Kovová garnyž na záclony (délka 1450 mm) | C30: Kovová garnyž na záclony včetně montážního materiálu. Tyč garnyže o púrůměru 16 mm. Skládá se z galvanicky pokovený tyče, dvou koncovek, dvou konzol na zeď a žabky s kroužky. | E30: délka 1450 mm | F30: ; Další specifikace viz Kniha vnitřního vybavení - Kniha - prvků - Nábytek a příslušenství | G30: Kovová garnyž na záclony (délka 1450 mm); Popis:Kovová garnyž na záclony včetně montážního materiálu. Tyč garnyže o púrůměru 16 mm. Skládá se z galvanicky pokovený tyče, dvou koncovek, dvou konzol na zeď a žabky s kroužky.; Rozměry:délka 1450 mm ; Další specifikace viz Kniha vnitřního vybavení - Kniha - prvků - Nábytek a příslušenství | H30: ks | I30: 10 | J30: =946*1.2 -> 1135.2
A31: 2A.VV_N_013 | B31: Kovová garnyž na záclony (délka 1950 mm) | C31: Kovová garnyž na záclony včetně montážního materiálu. Tyč garnyže o púrůměru 16 mm. Skládá se z galvanicky pokovený tyče, dvou koncovek, dvou konzol na zeď a žabky s kroužky. | E31: délka 1950 mm | F31: ; Další specifikace viz Kniha vnitřního vybavení - Kniha - prvků - Nábytek a příslušenství | G31: Kovová garnyž na záclony (délka 1950 mm); Popis:Kovová garnyž na záclony včetně montážního materiálu. Tyč garnyže o púrůměru 16 mm. Skládá se z galvanicky pokovený tyče, dvou koncovek, dvou konzol na zeď a žabky s kroužky.; Rozměry:délka 1950 mm ; Další specifikace viz Kniha vnitřního vybavení - Kniha - prvků - Nábytek a příslušenství | H31: ks | I31: 2 | J31: =1272*1.2 -> 1526.4
A32: 2A.VV_N_014 | B32: Termoport | C32: Termoport pro uskladnění pokrmů určených pro přepravu. Termoport je nevyhřívaný, čelní plnění s nasazovacími dvířky. Uzavírání pomocí záklopných uzávěrů zapuštěných do čelních stěnkorpusu, vnitřní prostor umožňuje uložení 12 párů vylisovaných drážek se svislou roztečí 39 mm k zasouvání gastro nádob, praktických držák popisovacích karet a ergonomická madla s neklouzavými plastovými úchyty. Materiál polypropylen, polyamid a chromniklová ocel. Hmotnost 14 kg. | E32: 630 x 425 x 660 mm | F32: ; Další specifikace viz Kniha vnitřního vybavení - Kniha - prvků - Nábytek a příslušenství | G32: Termoport; Popis:Termoport pro uskladnění pokrmů určených pro přepravu. Termoport je nevyhřívaný, čelní plnění s nasazovacími dvířky. Uzavírání pomocí záklopných uzávěrů zapuštěných do čelních stěnkorpusu, vnitřní prostor umožňuje uložení 12 párů vylisovaných drážek se svislou roztečí 39 mm k zasouvání gastro nádob, praktických držák popisovacích karet a ergonomická madla s neklouzavými plastovými úchyty. Materiál polypropylen, polyamid a chromniklová ocel. Hmotnost 14 kg.; Rozměry:630 x 425 x 660 mm ; Další specifikace viz Kniha vnitřního vybavení - Kniha - prvků - Nábytek a příslušenství | H32: ks | I32: 1 | J32: =16081 -> 16081
A33: 2A.VV_N_015 | B33: Nástěnná police s konzolemi | C33: Nástěnná police s konzolemi kotvené do zdi včetně kotvení. Materiál laminátová MDF deska, barva světle hnědá. Police z desky tl. 25 mm, opatřena ABS hranou tl. 2 mm. Nosnost 80 kg. Konzole dřevěné v barvě světle hnědé. | E33: 1000 x 300 x 20 mm (d x š x v) | F33: ; Další specifikace viz Kniha vnitřního vybavení - Kniha - prvků - Nábytek a příslušenství | G33: Nástěnná police s konzolemi; Popis:Nástěnná police s konzolemi kotvené do zdi včetně kotvení. Materiál laminátová MDF deska, barva světle hnědá. Police z desky tl. 25 mm, opatřena ABS hranou tl. 2 mm. Nosnost 80 kg. Konzole dřevěné v barvě světle hnědé.; Rozměry:1000 x 300 x 20 mm (d x š x v) ; Další specifikace viz Kniha vnitřního vybavení - Kniha - prvků - Nábytek a příslušenství | H33: ks | I33: 1 | J33: =530*1.2 -> 636
A34: 2A.VV_N_016 | B34: Sklopná madla k WC | C34: Sklopná madla k WC včetně montážníh materiálu. Madla jsou z nerezi. Nosnost 120 kg. | E34: délka madla 813 mm | F34: ; Další specifikace viz Kniha vnitřního vybavení - Kniha - prvků - Nábytek a příslušenství | G34: Sklopná madla k WC; Popis:Sklopná madla k WC včetně montážníh materiálu. Madla jsou z nerezi. Nosnost 120 kg.; Rozměry:délka madla 813 mm ; Další specifikace viz Kniha vnitřního vybavení - Kniha - prvků - Nábytek a příslušenství | H34: ks | I34: 2 | J34: =2488 -> 2488
A35: 2A.VV_N_017 | B35: Trezor pro personál | C35: Trezor s elektronickým zámkem. Materiál ocel, korpus 1,5 mm, dveře 4 mm, povrchová úprava práškovaným lakem v barvě šedé. Možné upevnit na zeď. Provoz trezeru je za pomoci 4 běžných baterií (1,5 V). | E35: 350 x 250 x 250 mm (d x š x v) | F35: ; Další specifikace viz Kniha vnitřního vybavení - Kniha - prvků - Nábytek a příslušenství | G35: Trezor pro personál; Popis:Trezor s elektronickým zámkem. Materiál ocel, korpus 1,5 mm, dveře 4 mm, povrchová úprava práškovaným lakem v barvě šedé. Možné upevnit na zeď. Provoz trezeru je za pomoci 4 běžných baterií (1,5 V).; Rozměry:350 x 250 x 250 mm (d x š x v) ; Další specifikace viz Kniha vnitřního vybavení - Kniha - prvků - Nábytek a příslušenství | H35: ks | I35: 1 | J35: =1259 -> 1259
A36: VV_E | B36: Prvky vnitřního vybevení - Elektro a příslušenství
A37: 2A.VV_E_001 | B37: Myčka vestavěná | C37: Kapacita myčky 13 sad nádobí, 2 úložné koše, spotřeba vody 11 l, AQUA STOP proti přetečení, 2 ostřikovací ramena, 4 programy: Eco, Intenzivní, Normální, Oplachování, mycí teploty: 40-70°C, energetická třída A+, účinnost mytí A, účinnost sušení A, hlučnost 49 dB(A), spotřeba energie: 1,04 kWh. | E37: 595 x 570 x 820 mm | F37: ; Další specifikace viz Kniha vnitřního vybavení - Kniha - prvků - Elektro a příslušenství | G37: =CONCATENATE(B37,$C$1,C37,$E$1,E37,F37) -> Myčka vestavěná; Popis:Kapacita myčky 13 sad nádobí, 2 úložné koše, spotřeba vody 11 l, AQUA STOP proti přetečení, 2 ostřikovací ramena, 4 programy: Eco, Intenzivní, Normální, Oplachování, mycí teploty: 40-70°C, energetická třída A+, účinnost mytí A, účinnost sušení A, hlučnost 49 dB(A), spotřeba energie: 1,04 kWh.; Rozměry:595 x 570 x 820 mm ; Další specifikace viz Kniha vnitřního vybavení - Kniha - prvků - Elektro a příslušenství | H37: ks | I37: 1 | J37: 15000
A38: 2A.VV_E_002 | B38: Varná deska vestavěná | C38: Sklokeramická varná deska, 4 highlight varné zóny, dotykové ovládání, 9 stupňů výkonu, kontrolky provozu a zbytkového tepla, dětská pojistka, bez rámečku - rovné hrany. | E38: 590 x 520 x 46 mm | F38: ; Další specifikace viz Kniha vnitřního vybavení - Kniha - prvků - Elektro a příslušenství | G38: Varná deska vestavěná; Popis:Sklokeramická varná deska, 4 highlight varné zóny, dotykové ovládání, 9 stupňů výkonu, kontrolky provozu a zbytkového tepla, dětská pojistka, bez rámečku - rovné hrany.; Rozměry:590 x 520 x 46 mm ; Další specifikace viz Kniha vnitřního vybavení - Kniha - prvků - Elektro a příslušenství | H38: ks | I38: 1 | J38: 12000
A39: 2A.VV_E_003 | B39: TV | C39: Chytrá televize s operačním systémem, pevné síťové připojení (min 1x RJ45), DLNA klient pro přehrávání streamů ze serveru, obrazovka LCD s LED podsvícením, velikost min 42, rozlišení FullHD (1920 x 1080 bodů), Hotelový režim, televizní tuner pro příjem pozemního vysílání DVBT a DVBT2 certifikovaný pro ČR. Kompatabilní s držákem VESA. | E39: - - - | F39: ; Další specifikace viz Kniha vnitřního vybavení - Kniha - prvků - Elektro a příslušenství | G39: TV; Popis:Chytrá televize s operačním systémem, pevné síťové připojení (min 1x RJ45), DLNA klient pro přehrávání streamů ze serveru, obrazovka LCD s LED podsvícením, velikost min 42, rozlišení FullHD (1920 x 1080 bodů), Hotelový režim, televizní tuner pro příjem pozemního vysílání DVBT a DVBT2 certifikovaný pro ČR. Kompatabilní s držákem VESA.; Rozměry: - - - ; Další specifikace viz Kniha vnitřního vybavení - Kniha - prvků - Elektro a příslušenství | H39: ks | I39: 1 | J39: 15000
A40: 2A.VV_E_004 | B40: Varná konvice | C40: Standardní varná konvice, objem 1,7 l, vyjímatelný a omyvatelný filtr pro zachycení nečistot a usazenin, uskladnění síťového kabelu v podstavci, topné dno z nerezové oceli se zakrytou topnou spirálou,snadné otevírání víka stisknutím tlačítka v horní části rukojeti, bezpečnostní zajištění víčka v uzavřené poloze, trojnásobné bezpečnostní jištění: - Ochrana proti přehřátí při zapnutí bez vody , a Automatické vypnutí při sejmutí z podstavce - Automatické vypnutí po dosažení bodu varu Středový 360° konektor, přepínač zapnuto/vypnuto s podsvětlením. | E40: - - - | F40: ; Další specifikace viz Kniha vnitřního vybavení - Kniha - prvků - Elektro a příslušenství | G40: Varná konvice; Popis:Standardní varná konvice, objem 1,7 l, vyjímatelný a omyvatelný filtr pro zachycení nečistot a usazenin, uskladnění síťového kabelu v podstavci, topné dno z nerezové oceli se zakrytou topnou spirálou,snadné otevírání víka stisknutím tlačítka v horní části rukojeti, bezpečnostní zajištění víčka v uzavřené poloze, trojnásobné bezpečnostní jištění: - Ochrana proti přehřátí při zapnutí bez vody , a Automatické vypnutí při sejmutí z podstavce - Automatické vypnutí po dosažení bodu varu Středový 360° konektor, přepínač zapnuto/vypnuto s podsvětlením.; Rozměry: - - - ; Další specifikace viz Kniha vnitřního vybavení - Kniha - prvků - Elektro a příslušenství | H40: ks | I40: 1 | J40: 640
A41: 2A.VV_E_005 | B41: Vestavěná trouba | C41: Multifunkční horkovzdušná elektrická trouba objem 60l. Samostatná trouba s pravým horkým vzduchem v energetické třídě A, funkce rozmrazování, displej s digitálním časovačem - nastavení minutky, denního času, konce pečení a doby pečení, možnost péci na 2 úrovních najednou, uvnitř trouby vysoce lesklý smalt pro snadné čištění, nerezové provedení. | E41: 594 x 540 x 589 mm | F41: ; Další specifikace viz Kniha vnitřního vybavení - Kniha - prvků - Elektro a příslušenství | G41: Vestavěná trouba; Popis:Multifunkční horkovzdušná elektrická trouba objem 60l. Samostatná trouba s pravým horkým vzduchem v energetické třídě A, funkce rozmrazování, displej s digitálním časovačem - nastavení minutky, denního času, konce pečení a doby pečení, možnost péci na 2 úrovních najednou, uvnitř trouby vysoce lesklý smalt pro snadné čištění, nerezové provedení.; Rozměry:594 x 540 x 589 mm ; Další specifikace viz Kniha vnitřního vybavení - Kniha - prvků - Elektro a příslušenství | H41: ks | I41: 1 | J41: 13000
A42: 2A.VV_E_006 | B42: Tyčový mixér | C42: Tyčový mixér k mixování, drcení, míchání. Tyčový mixér z nerezové oceli, 5 rychlostních stupňů. Příkon: 700 W/230 V. Celková délka mixéru: 410 mm. Hmotnost: 1,05 kg. Součástí: 1 metla, 1 nádoba (800 ml), 2 speciální nádoby s mixovacími noži (500 ml + 1250 ml), 1 víko pro obě nádoby, 2 protiskluzové podložky, 1 nástěnný držák. | E42: - - - | F42: ; Další specifikace viz Kniha vnitřního vybavení - Kniha - prvků - Elektro a příslušenství | G42: Tyčový mixér; Popis:Tyčový mixér k mixování, drcení, míchání. Tyčový mixér z nerezové oceli, 5 rychlostních stupňů. Příkon: 700 W/230 V. Celková délka mixéru: 410 mm. Hmotnost: 1,05 kg. Součástí: 1 metla, 1 nádoba (800 ml), 2 speciální nádoby s mixovacími noži (500 ml + 1250 ml), 1 víko pro obě nádoby, 2 protiskluzové podložky, 1 nástěnný držák.; Rozměry: - - - ; Další specifikace viz Kniha vnitřního vybavení - Kniha - prvků - Elektro a příslušenství | H42: ks | I42: 1 | J42: 1700
A43: 2A.VV_E_007 | B43: Notebook | C43: Notebook, 15,4 “ LCD, 8 GB RAM, 500 GB HDD, procesor i3 a vyšší, Windows 10 Pro, MS Office 2016 Home and Bussines CZ. | E43: - - - | F43: ; Další specifikace viz Kniha vnitřního vybavení - Kniha - prvků - Elektro a příslušenství | G43: Notebook; Popis:Notebook, 15,4 “ LCD, 8 GB RAM, 500 GB HDD, procesor i3 a vyšší, Windows 10 Pro, MS Office 2016 Home and Bussines CZ.; Rozměry: - - - ; Další specifikace viz Kniha vnitřního vybavení - Kniha - prvků - Elektro a příslušenství | H43: ks | I43: 1 | J43: 33590
A44: 2A.VV_E_008 | B44: Tiskárna na A4 | C44: Malá tiskárna - Funkce: černobílý laserový tisk, kopírování, skenování, fax, Formát: A4, rozlišení tisku: 1200dpi, ovládání: dotykový barevný grafický displej, velikost paměti: 256 MB, rychlost tisku: 38 Str./min., doba tisku první strany: 5,7s, oboustranný tisk: automatický , vstupní zásobník: 250 listů, víceúčelový zásobník: 100 listů, výstupní zásobník: 150 listů, gramáž média: 60 – 175 g/m2, rozlišení kopírování: 600x600dpi, zoom kopírování: 25 – 400%, rozlišení skenování: 1200dpi, podavač skeneru: oboustranný 50 listů, oboustranné jednoprůchodové skenování fumkce skeneru: skenování do e-mailu, do síťové složky, do USB, připojení: USB 2.0, Ethernet 10/100/1000T, hostitelský USB port, jazyky tiskárny: PCL 5, HP PCL 6, emulace Postscript úrovně 3, přímý tisk PDF (v1.7), URF, PCLM, PWG. | E44: - - - | F44: ; Další specifikace viz Kniha vnitřního vybavení - Kniha - prvků - Elektro a příslušenství | G44: Tiskárna na A4; Popis:Malá tiskárna - Funkce: černobílý laserový tisk, kopírování, skenování, fax, Formát: A4, rozlišení tisku: 1200dpi, ovládání: dotykový barevný grafický displej, velikost paměti: 256 MB, rychlost tisku: 38 Str./min., doba tisku první strany: 5,7s, oboustranný tisk: automatický , vstupní zásobník: 250 listů, víceúčelový zásobník: 100 listů, výstupní zásobník: 150 listů, gramáž média: 60 – 175 g/m2, rozlišení kopírování: 600x600dpi, zoom kopírování: 25 – 400%, rozlišení skenování: 1200dpi, podavač skeneru: oboustranný 50 listů, oboustranné jednoprůchodové skenování fumkce skeneru: skenování do e-mailu, do síťové složky, do USB, připojení: USB 2.0, Ethernet 10/100/1000T, hostitelský USB port, jazyky tiskárny: PCL 5, HP PCL 6, emulace Postscript úrovně 3, přímý tisk PDF (v1.7), URF, PCLM, PWG.; Rozměry: - - - ; Další specifikace viz Kniha vnitřního vybavení - Kniha - prvků - Elektro a příslušenství | H44: ks | I44: 1 | J44: 5000
A45: VV_VEN | B45: Prvky vnitřního vybevení - Venkovní vybavení
A46: 2A.VV_VEN_001 | B46: Venkovní pergola k sezení vybavená židlemi a stlem | C46: Venkovní dřevěná pergola k sezení vybavená šesti židlemi a stolem. Kovový stůl a židle s opěrkou a područkami. Sloupky pergoly jsou průřezu 120 x 120 mm, vzdálenost sloupků je 2,0 m, pod každým sloupkem je proveden betonový základ s patkou sloupku z galvanického zinku, základy jsou provedeny v nezámrzné hloubce. Trvar střechy je sedlový, krokve průžezu 60 x 140 mm, podélné prvky průřezu 100 x 140 mm. Na střeše je provedeno bednění a laťování se skládanou betonovou střešní krytinou. V přístřešku je podlaha z betonové dlažby. Betonová dlažba je uložena na kladecí vrstu tl. 40 mm - kamenná drť 4-8mm, podkladní nosnou vrstvu tl. 150 mm - kamená drť 8-16 mm a zemní pláň. Klempířské prvky jsou provedeny z pozinkovaného plechu. | E46: 5000 x 5000 x 3300 mm (d x š x v) | F46: ; Další specifikace viz Kniha vnitřního vybavení - Kniha - prvků - Venkovní vybavení | G46: =CONCATENATE(B46,$C$1,C46,$E$1,E46,F46) -> Venkovní pergola k sezení vybavená židlemi a stlem; Popis:Venkovní dřevěná pergola k sezení vybavená šesti židlemi a stolem. Kovový stůl a židle s opěrkou a područkami. Sloupky pergoly jsou průřezu 120 x 120 mm, vzdálenost sloupků je 2,0 m, pod každým sloupkem je proveden betonový základ s patkou sloupku z galvanického zinku, základy jsou provedeny v nezámrzné hloubce. Trvar střechy je sedlový, krokve průžezu 60 x 140 mm, podélné prvky průřezu 100 x 140 mm. Na střeše je provedeno bednění a laťování se skládanou betonovou střešní krytinou. V přístřešku je podlaha z betonové dlažby. Betonová dlažba je uložena na kladecí vrstu tl. 40 mm - kamenná drť 4-8mm, podkladní nosnou vrstvu tl. 150 mm - kamená drť 8-16 mm a zemní pláň. Klempířské prvky jsou provedeny z pozinkovaného plechu.; Rozměry:5000 x 5000 x 3300 mm (d x š x v) ; Další specifikace viz Kniha vnitřního vybavení - Kniha - prvků - Venkovní vybavení | H46: ks | I46: 1 | J46: 55000
A47: 2A.VV_VEN_002 | B47: Zahradní domek | C47: Zhradní domek je určený k uskladnění zhradního nábytku a nářadí. Zahradní domek je proveden na základvou desku (štěrk tl. 150 mm a beton tl. 15 mm). Zahradní domek je proveden ze sloupků o průřezu 120 x 120 mm (sloupky jsou kotveny k základvé desce za pomocí pataky sloupku z galvanického zinku) a opláštěné smrkovými palubkami tl. 28 mm. Trvar střechy je sedlový, krokve průžezu 60 x 140 mm, podélné prvky průřezu 100 x 140 mm. Na střeše je provedeno bednění a laťování se skládanou betonovou střešní krytinou. Podlaha betonová. Klempířské prvky jsou provedeny z pozinkovaného plechu. | E47: 4000 x 3000 x 2400 mm (d x š x v) | F47: ; Další specifikace viz Kniha vnitřního vybavení - Kniha - prvků - Venkovní vybavení | G47: =CONCATENATE(B47,$C$1,C47,$E$1,E47,F47) -> Zahradní domek; Popis:Zhradní domek je určený k uskladnění zhradního nábytku a nářadí. Zahradní domek je proveden na základvou desku (štěrk tl. 150 mm a beton tl. 15 mm). Zahradní domek je proveden ze sloupků o průřezu 120 x 120 mm (sloupky jsou kotveny k základvé desce za pomocí pataky sloupku z galvanického zinku) a opláštěné smrkovými palubkami tl. 28 mm. Trvar střechy je sedlový, krokve průžezu 60 x 140 mm, podélné prvky průřezu 100 x 140 mm. Na střeše je provedeno bednění a laťování se skládanou betonovou střešní krytinou. Podlaha betonová. Klempířské prvky jsou provedeny z pozinkovaného plechu.; Rozměry:4000 x 3000 x 2400 mm (d x š x v) ; Další specifikace viz Kniha vnitřního vybavení - Kniha - prvků - Venkovní vybavení | H47: ks | I47: 1 | J47: 27800
A48: 2A.VV_VEN_003 | B48: Benzínová travní sekačka | C48: Benzínová travní sekačka se skládá z 4-traktního benzínového motoru, ocelového nože a koše o objemu 45l. Technické parametry: výška zdvihu 25-65 mm, průměr kol 7/10", rychlost 0,9 m/s, materiál kov. | E48: - - - | F48: ; Další specifikace viz Kniha vnitřního vybavení - Kniha - prvků - Venkovní vybavení | G48: =CONCATENATE(B48,$C$1,C48,$E$1,E48,F48) -> Benzínová travní sekačka; Popis:Benzínová travní sekačka se skládá z 4-traktního benzínového motoru, ocelového nože a koše o objemu 45l. Technické parametry: výška zdvihu 25-65 mm, průměr kol 7/10", rychlost 0,9 m/s, materiál kov.; Rozměry: - - - ; Další specifikace viz Kniha vnitřního vybavení - Kniha - prvků - Venkovní vybavení | H48: ks | I48: 1 | J48: 5290

Sheet KVI_B (hidden)
A1: 2BD.1.1 | B1: Architektonicko-stavební řešení | C1: ; Popis: | D1: ; Materiál: | E1: ; Rozměry:
A2: 10_VB | B2: Výrobky
A3: KP | B3: Klempířské prvky | C3: Sloupec1 | D3: Sloupec2 | E3: Sloupec3 | F3: Sloupec4 | G3: Sloupec5 | H3: Sloupec6 | I3: Sloupec7 | J3: Sloupec8
A4: P1-1.01 | B4: Okenní parapet | C4: Oplechování parapetu oken včetně doplňkového a montážního materiálu. | D4: Ocelový pozinkovaný plech, tl. 0,6 mm, exteriérový nátěr v odstínu RAL 7016 | E4: r.š. 330 mm | F4: ; Další specifikace viz Kniha klempířských prvků | G4: =CONCATENATE(B4,$C$1,C4,$D$1,D4,$E$1,E4,F4) -> Okenní parapet; Popis:Oplechování parapetu oken včetně doplňkového a montážního materiálu.; Materiál:Ocelový pozinkovaný plech, tl. 0,6 mm, exteriérový nátěr v odstínu RAL 7016; Rozměry:r.š. 330 mm ; Další specifikace viz Kniha klempířských prvků | H4: m | I4: 14.7 | J4: 474
A5: P1-1.02 | B5: Oplechování atiky | C5: Oplechování atiky, včetně doplňkového a montážního materiálu. | D5: Ocelový pozinkovaný plech, tl. 0,6 mm, exteriérový nátěr v odstínu RAL 7016 | E5: r.š. 860 mm | F5: ; Další specifikace viz Kniha klempířských prvků | G5: Oplechování atiky; Popis:Oplechování atiky, včetně doplňkového a montážního materiálu.; Materiál:Ocelový pozinkovaný plech, tl. 0,6 mm, exteriérový nátěr v odstínu RAL 7016; Rozměry:r.š. 860 mm ; Další specifikace viz Kniha klempířských prvků | H5: m | I5: 13.7 | J5: 1480
A6: P1-1.03 | B6: Oplechování atiky | C6: Oplechování atiky, včetně doplňkového a montážního materiálu. | D6: Ocelový pozinkovaný plech, tl. 0,6 mm, exteriérový nátěr v odstínu RAL 7016 | E6: r.š. 720 mm | F6: ; Další specifikace viz Kniha klempířských prvků | G6: Oplechování atiky; Popis:Oplechování atiky, včetně doplňkového a montážního materiálu.; Materiál:Ocelový pozinkovaný plech, tl. 0,6 mm, exteriérový nátěr v odstínu RAL 7016; Rozměry:r.š. 720 mm ; Další specifikace viz Kniha klempířských prvků | H6: m | I6: 14.1 | J6: 1100
A7: P1-1.04 | B7: Boční oplechování | C7: Boční oplechování, včetně doplňkového a montážního materiálu. | D7: Ocelový pozinkovaný plech, tl. 0,6 mm, exteriérový nátěr v odstínu RAL 7016 | E7: r.š. 435 mm | F7: ; Další specifikace viz Kniha klempířských prvků | G7: Boční oplechování; Popis:Boční oplechování, včetně doplňkového a montážního materiálu.; Materiál:Ocelový pozinkovaný plech, tl. 0,6 mm, exteriérový nátěr v odstínu RAL 7016; Rozměry:r.š. 435 mm ; Další specifikace viz Kniha klempířských prvků | H7: m | I7: 5.5 | J7: 860
A8: P1-1.05 | B8: Dešťový žlab | C8: Dešťový žlab, včetně doplňkového a montážního materiálu. | D8: Ocelový pozinkovaný plech, tl. 0,6 mm, exteriérový nátěr v odstínu RAL 7016 | E8: průměr 300 mm | F8: ; Další specifikace viz Kniha klempířských prvků | G8: Dešťový žlab; Popis:Dešťový žlab, včetně doplňkového a montážního materiálu.; Materiál:Ocelový pozinkovaný plech, tl. 0,6 mm, exteriérový nátěr v odstínu RAL 7016; Rozměry:průměr 300 mm ; Další specifikace viz Kniha klempířských prvků | H8: m | I8: 32.1 | J8: 725
A9: P1-1.06 | B9: Dešťový svod | C9: Dešťový svod, včetně doplňkového a montážního materiálu. | D9: Ocelový pozinkovaný plech, tl. 0,6 mm, exteriérový nátěr v odstínu RAL 7016 | E9: průměr 120 mm | F9: ; Další specifikace viz Kniha klempířských prvků | G9: Dešťový svod; Popis:Dešťový svod, včetně doplňkového a montážního materiálu.; Materiál:Ocelový pozinkovaný plech, tl. 0,6 mm, exteriérový nátěr v odstínu RAL 7016; Rozměry:průměr 120 mm ; Další specifikace viz Kniha klempířských prvků | H9: m | I9: 14.1 | J9: 919
A10: TP | B10: Truhlářské prvky
A11: T1-1.01 | B11: Oddělující lehká dřevěná příčka | C11: Oddělující lehká dřevěná příčka, rošt ze smrkových doblovaných hranolů 40 x 40 mm spojené konstrukčními vruty se zápustnou hlavou, opláštěné laminátovou MDF deskou, vzor světlého dřeva s méně výraznou kresbou. Hranoly kotveny do stěny a stropu. Součástí příčky jsou uzamykatelné dveře o rozměru 1600 x 1970 mm, obložková polodrážková zárubeň materiál MDF, vložkový zámek + klika. | D11: rošt: smrkové hranoly, opláštění a dveře: MDF deska, zámek a klika: broušený nerez | E11: 2500 x 60 x 2300 mm (d x hl x v) | F11: ; Další specifikace viz Kniha truhlářských prvků | G11: =CONCATENATE(B11,$C$1,C11,$D$1,D11,$E$1,E11,F11) -> Oddělující lehká dřevěná příčka; Popis:Oddělující lehká dřevěná příčka, rošt ze smrkových doblovaných hranolů 40 x 40 mm spojené konstrukčními vruty se zápustnou hlavou, opláštěné laminátovou MDF deskou, vzor světlého dřeva s méně výraznou kresbou. Hranoly kotveny do stěny a stropu. Součástí příčky jsou uzamykatelné dveře o rozměru 1600 x 1970 mm, obložková polodrážková zárubeň materiál MDF, vložkový zámek + klika.; Materiál:rošt: smrkové hranoly, opláštění a dveře: MDF deska, zámek a klika: broušený nerez; Rozměry:2500 x 60 x 2300 mm (d x hl x v) ; Další specifikace viz Kniha truhlářských prvků | H11: ks | I11: 1 | J11: 23000
A12: T1-1.02 | B12: Kuchyňská linka tvaru U | C12: Kuchyňská linka tvaru U, sokl 80 mm, korpus z lamino desky tl. 18 mm, hrana z ABS tl. 2 mm. Horní i spodní skříňky plné, pracovní deska z laminátové desky tl. 38 mm, nerezový dřez s odkapávačem. Kování linky je kovové. Součástí kuchyňské linky je dřez s odkapávačem, varná deska se čtyřmi plotýnkami, trouba, lednička, mrazák a myčka. Spotřebiče energetiské třídy min. A přesně specifikovány vnitřního vybavení. Horní i spodní část je opatřená krycím panelem š. 50 mm. | D12: Korpus z lamina, pracovní deska z laminátové desky | E12: viz. obrazová příloha | F12: ; SPOTŘEBIČE OCENIT V KAPITOLE_Prvky vnitřního vybevení - Elektro a příslušenství ; Další specifikace viz Kniha truhlářských prvků | G12: =CONCATENATE(B12,$C$1,C12,$D$1,D12,$E$1,E12,F12) -> Kuchyňská linka tvaru U; Popis:Kuchyňská linka tvaru U, sokl 80 mm, korpus z lamino desky tl. 18 mm, hrana z ABS tl. 2 mm. Horní i spodní skříňky plné, pracovní deska z laminátové desky tl. 38 mm, nerezový dřez s odkapávačem. Kování linky je kovové. Součástí kuchyňské linky je dřez s odkapávačem, varná deska se čtyřmi plotýnkami, trouba, lednička, mrazák a myčka. Spotřebiče energetiské třídy min. A přesně specifikovány vnitřního vybavení. Horní i spodní část je opatřená krycím panelem š. 50 mm.; Materiál:Korpus z lamina, pracovní deska z laminátové desky; Rozměry:viz. obrazová příloha ; SPOTŘEBIČE OCENIT V KAPITOLE_Prvky vnitřního vybevení - Elektro a příslušenství ; Další specifikace viz Kniha truhlářských prvků | H12: ks | I12: 1 | J12: 231600
A13: OP | B13: Ostatní prvky
A14: X1-1.01 | B14: Venkovní rolety | C14: Venkovní hliníková roleta pro regulaci přirozeného osvětlení a zachycení slunečních paprsků s bočními vodícími lištami. Horní ocelový válcovaný profil upravený pozinkování o rozměru 58 x 56 mm zakrytý krycím plechem. Lamely hliníkové o šířce 80 mm s navíjecími mechanismy, textilními žebříčky a vytahovacími páskami. Boční vodící lišty o rozměru 20 x 20 mm v barvě stříbrná elox. Ovládání elektrické. | D14: hliník, barva stříbrný elox | E14: 1250x1750 mm (šxv) | F14: ; Další specifikace viz Kniha ostatních prvků | G14: =CONCATENATE(B14,$C$1,C14,$D$1,D14,$E$1,E14,F14) -> Venkovní rolety; Popis:Venkovní hliníková roleta pro regulaci přirozeného osvětlení a zachycení slunečních paprsků s bočními vodícími lištami. Horní ocelový válcovaný profil upravený pozinkování o rozměru 58 x 56 mm zakrytý krycím plechem. Lamely hliníkové o šířce 80 mm s navíjecími mechanismy, textilními žebříčky a vytahovacími páskami. Boční vodící lišty o rozměru 20 x 20 mm v barvě stříbrná elox. Ovládání elektrické.; Materiál:hliník, barva stříbrný elox; Rozměry:1250x1750 mm (šxv) ; Další specifikace viz Kniha ostatních prvků | H14: ks | I14: 6 | J14: 6125
A15: X1-1.02 | B15: Stahovací schody zateplené s požární odolností | C15: Stahovací schody zateplené s protipožární vložkou (EW 15 DP3). Schody jsou opatřeny brzdícím mechanismem proti prudkému otevření. Víko je sendvočové složeno z dřevěného rámu vyplněný izolačním materiálem opláštěný pozinkovaným plechem. Pohledová čast je lakovaná v bílé barvě a kryta ochrannou fólií. | D15: víko: dřevěný rám vyplněný izolantem opláštěný pozinkovaným plechem, pohledová část lakovaná, barva bílá, schody: kovové | E15: 600 x 800 mm (š x d) | F15: ; Další specifikace viz Kniha ostatních prvků | G15: =CONCATENATE(B15,$C$1,C15,$D$1,D15,$E$1,E15,F15) -> Stahovací schody zateplené s požární odolností; Popis:Stahovací schody zateplené s protipožární vložkou (EW 15 DP3). Schody jsou opatřeny brzdícím mechanismem proti prudkému otevření. Víko je sendvočové složeno z dřevěného rámu vyplněný izolačním materiálem opláštěný pozinkovaným plechem. Pohledová čast je lakovaná v bílé barvě a kryta ochrannou fólií.; Materiál:víko: dřevěný rám vyplněný izolantem opláštěný pozinkovaným plechem, pohledová část lakovaná, barva bílá, schody: kovové; Rozměry:600 x 800 mm (š x d) ; Další specifikace viz Kniha ostatních prvků | H15: ks | I15: 1 | J15: =14720*1.2 -> 17664
A16: VV_N | B16: Prvky vnitřního vybevení - Nábytek a příslušenství
A17: 2B.VV_N_001 | B17: Čalouněné křeslo ušák | C17: Čalouněné křeslo ušák je tvořen z vlnonce, 2 cm kokosové vrstvy a 5 cm široké PUR pěny a čalouněná potahovou látkou v barvě šedé. Hmotnost křesla 23 kg. Doplňové rozměry křesla: hloubka 720 mm, výška sedu 470 mm, hloubka sedu 520 mm, šířka sedu 520 mm a výška opěrka 670 mm. | E17: 560 x 720 x 1080 mm (d x š x v) | F17: ; Další specifikace viz Kniha vnitřního vybavení - Kniha - prvků - Nábytek a příslušenství | G17: =CONCATENATE(B17,$C$1,C17,$D$1,D17,$E$1,E17,F17) -> Čalouněné křeslo ušák; Popis:Čalouněné křeslo ušák je tvořen z vlnonce, 2 cm kokosové vrstvy a 5 cm široké PUR pěny a čalouněná potahovou látkou v barvě šedé. Hmotnost křesla 23 kg. Doplňové rozměry křesla: hloubka 720 mm, výška sedu 470 mm, hloubka sedu 520 mm, šířka sedu 520 mm a výška opěrka 670 mm.; Materiál:; Rozměry:560 x 720 x 1080 mm (d x š x v) ; Další specifikace viz Kniha vnitřního vybavení - Kniha - prvků - Nábytek a příslušenství | H17: ks | I17: 6 | J17: 8736
A18: 2B.VV_N_002 | B18: Předsíňová stěna s věšáky | C18: Předsíňová stěna s kovovými háčky se dvěmi úchytkami a policí, kotvená do stěny včetně montážního materiálu. Korpus a police z MDF desky, barva světle hnědá, tl. 20 mm. Hrany optařeny ABS hranou tl. 1,5 mm. Háček (5 ks) se dvěmi úchytkami kotvená na desku věšáku včetně kotvení. Materiál nerezová ocel. | E18: věšák: 660 x 240 x 1520 mm (d x š x v), háček: 70 x 30 x 47 mm (d x š x v) | F18: ; Další specifikace viz Kniha vnitřního vybavení - Kniha - prvků - Nábytek a příslušenství | G18: Předsíňová stěna s věšáky; Popis:Předsíňová stěna s kovovými háčky se dvěmi úchytkami a policí, kotvená do stěny včetně montážního materiálu. Korpus a police z MDF desky, barva světle hnědá, tl. 20 mm. Hrany optařeny ABS hranou tl. 1,5 mm. Háček (5 ks) se dvěmi úchytkami kotvená na desku věšáku včetně kotvení. Materiál nerezová ocel.; Materiál:; Rozměry:věšák: 660 x 240 x 1520 mm (d x š x v), háček: 70 x 30 x 47 mm (d x š x v) ; Další specifikace viz Kniha vnitřního vybavení - Kniha - prvků - Nábytek a příslušenství | H18: ks | I18: 1 | J18: =1427*1.2 -> 1712.4
A19: 2B.VV_N_003 | B19: Nástěné zrcadlo do předsíně (rozměr 1000 x 900 mm) | C19: Nástěné pravoúhlé zrcadlo k montáži na stěnu včetně kotvení. Materiál sklo s bezpečnostní fólií se zabroušenými hranami. | E19: 1000 x 900 mm (š x v) | F19: ; Další specifikace viz Kniha vnitřního vybavení - Kniha - prvků - Nábytek a příslušenství | G19: Nástěné zrcadlo do předsíně (rozměr 1000 x 900 mm); Popis:Nástěné pravoúhlé zrcadlo k montáži na stěnu včetně kotvení. Materiál sklo s bezpečnostní fólií se zabroušenými hranami.; Materiál:; Rozměry:1000 x 900 mm (š x v) ; Další specifikace viz Kniha vnitřního vybavení - Kniha - prvků - Nábytek a příslušenství | H19: ks | I19: 1 | J19: =1000*0.9*1.2 -> 1080
A20: 2B.VV_N_004 | B20: Vestavěná skříň policová plná s dveřmi rozdělenými na dvě části (výška 2000 mm) | C20: Skříň dvoudvéřová. Vybavená 5 ks variabilních polic. Materiál laminovaná MDF deska, barva světle hnědá. Dno i půda z desky tl. 25 mm, z přední strany ABS hrana tl. 2 mm. Ostatní pohlednové prvky opatřeny ABS hranou tl. 1 mm. Boky korpusu z desky tl. 18 mm. Záda z desky tl. 8 mm. Police z desky tl. 25 mm, nosnost 80 kg s variabilním polohovatelností. Police a desky opatřeny hranou ABS tl. 2 mm. Dodávka včetvě rektifikačních nožiček. | E20: 1400 x 400 x 2000 mm (d x š x v) | F20: ; Další specifikace viz Kniha vnitřního vybavení - Kniha - prvků - Nábytek a příslušenství | G20: Vestavěná skříň policová plná s dveřmi rozdělenými na dvě části (výška 2000 mm); Popis:Skříň dvoudvéřová. Vybavená 5 ks variabilních polic. Materiál laminovaná MDF deska, barva světle hnědá. Dno i půda z desky tl. 25 mm, z přední strany ABS hrana tl. 2 mm. Ostatní pohlednové prvky opatřeny ABS hranou tl. 1 mm. Boky korpusu z desky tl. 18 mm. Záda z desky tl. 8 mm. Police z desky tl. 25 mm, nosnost 80 kg s variabilním polohovatelností. Police a desky opatřeny hranou ABS tl. 2 mm. Dodávka včetvě rektifikačních nožiček.; Materiál:; Rozměry:1400 x 400 x 2000 mm (d x š x v) ; Další specifikace viz Kniha vnitřního vybavení - Kniha - prvků - Nábytek a příslušenství | H20: ks | I20: 1 | J20: 21000
A21: 2B.VV_N_005 | B21: TV stolek s policemi | C21: Televizní stolek s šesti policemi pod deskou. Materiál laminátová MDF deska, barva světle hnědá. Horní deska a nohy a police z desky tl. 20 mm. Horní deska opatřená ABS hranou tl. 2 mm, ostatní pohledové prvky opatřené ABS hranou tl. 1,5 mm. Záda z desky tl. 8 mm | E21: 3700 x 400 x 400 mm (d x š x v) | F21: ; Další specifikace viz Kniha vnitřního vybavení - Kniha - prvků - Nábytek a příslušenství | G21: TV stolek s policemi; Popis:Televizní stolek s šesti policemi pod deskou. Materiál laminátová MDF deska, barva světle hnědá. Horní deska a nohy a police z desky tl. 20 mm. Horní deska opatřená ABS hranou tl. 2 mm, ostatní pohledové prvky opatřené ABS hranou tl. 1,5 mm. Záda z desky tl. 8 mm; Materiál:; Rozměry:3700 x 400 x 400 mm (d x š x v) ; Další specifikace viz Kniha vnitřního vybavení - Kniha - prvků - Nábytek a příslušenství | H21: ks | I21: 1 | J21: 4300
A22: 2B.VV_N_006 | B22: Konferenční stolek | C22: Obdelníkový konferenční stolek se čtyřmi nohami jednou otevřenou zásuvkou. Materiál laminátová MDF deska. Deska tl. 20 mm, opatřená ABS hranou tl. 2 mm, barva světle hnědá. Nohy stolku čtvercové ze dřeva, barva světle hnědá. | E22: 1000 x 800 x 430 mm (d x š x v) | F22: ; Další specifikace viz Kniha vnitřního vybavení - Kniha - prvků - Nábytek a příslušenství | G22: Konferenční stolek; Popis:Obdelníkový konferenční stolek se čtyřmi nohami jednou otevřenou zásuvkou. Materiál laminátová MDF deska. Deska tl. 20 mm, opatřená ABS hranou tl. 2 mm, barva světle hnědá. Nohy stolku čtvercové ze dřeva, barva světle hnědá.; Materiál:; Rozměry:1000 x 800 x 430 mm (d x š x v) ; Další specifikace viz Kniha vnitřního vybavení - Kniha - prvků - Nábytek a příslušenství | H22: ks | I22: 1 | J22: 3500
A23: 2B.VV_N_007 | B23: Skříňka do koupelny (výška 700 mm) | C23: Skřínka se čtyřmi zásuvkami do koupleny a nožičkami. Materiál laminátová MDF deska, barva bílá. Dno i půda z desky tl. 25 mm, z přední strany ABS hrana tl. 2 mm. Ostatní pohlednové prvky opatřeny ABS hranou tl. 1 mm. Boky korpusu z desky tl. 18 mm. Záda z desky tl. 8 mm. Police z desky tl. 25 mm, nosnost 50 kg. Police a desky opatřeny hranou ABS tl. 2 mm. Dodávka včetvě kovových nožiček a úchytek k zásuvkám. | E23: 400 x 400 x 700 mm (d x š x v) | F23: ; Další specifikace viz Kniha vnitřního vybavení - Kniha - prvků - Nábytek a příslušenství | G23: Skříňka do koupelny (výška 700 mm); Popis:Skřínka se čtyřmi zásuvkami do koupleny a nožičkami. Materiál laminátová MDF deska, barva bílá. Dno i půda z desky tl. 25 mm, z přední strany ABS hrana tl. 2 mm. Ostatní pohlednové prvky opatřeny ABS hranou tl. 1 mm. Boky korpusu z desky tl. 18 mm. Záda z desky tl. 8 mm. Police z desky tl. 25 mm, nosnost 50 kg. Police a desky opatřeny hranou ABS tl. 2 mm. Dodávka včetvě kovových nožiček a úchytek k zásuvkám.; Materiál:; Rozměry:400 x 400 x 700 mm (d x š x v) ; Další specifikace viz Kniha vnitřního vybavení - Kniha - prvků - Nábytek a příslušenství | H23: ks | I23: 1 | J23: =3990*1.2 -> 4788
A24: 2B.VV_N_008 | B24: Sklopné zrcadlo pro bezbariérové WC | C24: Sklopné nerezové zrcadlo na toalety pro tělesně postižené včetně kotvení. Kotveno pomocí montážní lišty. Naklánění zrcadla je ovládané pomocí páky na stěně pod umyvadlem. Materiál sklo s bezpečnostní fólií se zabroušenými hranami a rám a páka z nerezy. | E24: 600 x 400 mm (š x v) | F24: ; Další specifikace viz Kniha vnitřního vybavení - Kniha - prvků - Nábytek a příslušenství | G24: Sklopné zrcadlo pro bezbariérové WC; Popis:Sklopné nerezové zrcadlo na toalety pro tělesně postižené včetně kotvení. Kotveno pomocí montážní lišty. Naklánění zrcadla je ovládané pomocí páky na stěně pod umyvadlem. Materiál sklo s bezpečnostní fólií se zabroušenými hranami a rám a páka z nerezy.; Materiál:; Rozměry:600 x 400 mm (š x v) ; Další specifikace viz Kniha vnitřního vybavení - Kniha - prvků - Nábytek a příslušenství | H24: ks | I24: 1 | J24: 3630
A25: 2B.VV_N_009 | B25: Sklopné sedátko do sprchy | C25: Sklopné sedátko do sprchy včetně montážního materiálu. Nosná konstrukce z nerezové oceli, sedátkou z odolného plastu jedohuše udržovatlené. Maximální nosnost 200 kg. | E25: 440 x 470 mm (d x š) | F25: ; Další specifikace viz Kniha vnitřního vybavení - Kniha - prvků - Nábytek a příslušenství | G25: Sklopné sedátko do sprchy; Popis:Sklopné sedátko do sprchy včetně montážního materiálu. Nosná konstrukce z nerezové oceli, sedátkou z odolného plastu jedohuše udržovatlené. Maximální nosnost 200 kg.; Materiál:; Rozměry:440 x 470 mm (d x š) ; Další specifikace viz Kniha vnitřního vybavení - Kniha - prvků - Nábytek a příslušenství | H25: ks | I25: 1 | J25: =3567*1.2 -> 4280.4
A26: 2B.VV_N_010 | B26: Police do skladu (výška 2000 mm) | C26: Police do skladu s pěti policemi včetně montážního materiálu. Police jsou výškově přestavitelné v rastru 138 mm. Šedý policový regál je rychle smontovatelný bez spojovacího materiálu. Police se jednoduchým způsobem nasadí na sloupky. Možnost spojování do polí a řad vedle sebe i za sebou pro zvýšení celkové tuhosti. Konstrukce je povrchově upravena práškovým lakem šedé barvy. Nohy jsou vybaveny plastovými patkami pro ochranu podlahové krytiny. | E26: 2000 x 600 x 2000 mm (d x š x v) | F26: ; Další specifikace viz Kniha vnitřního vybavení - Kniha - prvků - Nábytek a příslušenství | G26: Police do skladu (výška 2000 mm); Popis:Police do skladu s pěti policemi včetně montážního materiálu. Police jsou výškově přestavitelné v rastru 138 mm. Šedý policový regál je rychle smontovatelný bez spojovacího materiálu. Police se jednoduchým způsobem nasadí na sloupky. Možnost spojování do polí a řad vedle sebe i za sebou pro zvýšení celkové tuhosti. Konstrukce je povrchově upravena práškovým lakem šedé barvy. Nohy jsou vybaveny plastovými patkami pro ochranu podlahové krytiny.; Materiál:; Rozměry:2000 x 600 x 2000 mm (d x š x v) ; Další specifikace viz Kniha vnitřního vybavení - Kniha - prvků - Nábytek a příslušenství | H26: ks | I26: 2 | J26: 20000
A27: 2B.VV_N_011 | B27: Police do skladu tvaru "L" (výška 2000 mm) | C27: Police do skladu tvaru "L" s pěti police včetně montážního materiálu. Police jsou výškově přestavitelné v rastru 138 mm. Šedý policový regál je rychle smontovatelný bez spojovacího materiálu. Police se jednoduchým způsobem nasadí na sloupky. Možnost spojování do polí a řad vedle sebe i za sebou pro zvýšení celkové tuhosti. Konstrukce je povrchově upravena práškovým lakem šedé barvy. Nohy jsou vybaveny plastovými patkami pro ochranu podlahové krytiny. | E27: 1810/1610 x 600 x 2000 mm (d x š x v) | F27: ; Další specifikace viz Kniha vnitřního vybavení - Kniha - prvků - Nábytek a příslušenství | G27: Police do skladu tvaru "L" (výška 2000 mm); Popis:Police do skladu tvaru "L" s pěti police včetně montážního materiálu. Police jsou výškově přestavitelné v rastru 138 mm. Šedý policový regál je rychle smontovatelný bez spojovacího materiálu. Police se jednoduchým způsobem nasadí na sloupky. Možnost spojování do polí a řad vedle sebe i za sebou pro zvýšení celkové tuhosti. Konstrukce je povrchově upravena práškovým lakem šedé barvy. Nohy jsou vybaveny plastovými patkami pro ochranu podlahové krytiny.; Materiál:; Rozměry:1810/1610 x 600 x 2000 mm (d x š x v) ; Další specifikace viz Kniha vnitřního vybavení - Kniha - prvků - Nábytek a příslušenství | H27: ks | I27: 1 | J27: 18100
A28: 2B.VV_N_012 | B28: Kovová garnyž na záclony (délka 1450 mm) | C28: Kovová garnyž na záclony včetně montážního materiálu. Tyč garnyže o púrůměru 16 mm. Skládá se z galvanicky pokovený tyče, dvou koncovek, dvou konzol na zeď a žabky s kroužky. | E28: délka 1450 mm | F28: ; Další specifikace viz Kniha vnitřního vybavení - Kniha - prvků - Nábytek a příslušenství | G28: Kovová garnyž na záclony (délka 1450 mm); Popis:Kovová garnyž na záclony včetně montážního materiálu. Tyč garnyže o púrůměru 16 mm. Skládá se z galvanicky pokovený tyče, dvou koncovek, dvou konzol na zeď a žabky s kroužky.; Materiál:; Rozměry:délka 1450 mm ; Další specifikace viz Kniha vnitřního vybavení - Kniha - prvků - Nábytek a příslušenství | H28: ks | I28: 10 | J28: =946*1.2 -> 1135.2
A29: 2B.VV_N_013 | B29: Kovová garnyž na záclony (délka 1950 mm) | C29: Kovová garnyž na záclony včetně montážního materiálu. Tyč garnyže o púrůměru 16 mm. Skládá se z galvanicky pokovený tyče, dvou koncovek, dvou konzol na zeď a žabky s kroužky. | E29: délka 1950 mm | F29: ; Další specifikace viz Kniha vnitřního vybavení - Kniha - prvků - Nábytek a příslušenství | G29: Kovová garnyž na záclony (délka 1950 mm); Popis:Kovová garnyž na záclony včetně montážního materiálu. Tyč garnyže o púrůměru 16 mm. Skládá se z galvanicky pokovený tyče, dvou koncovek, dvou konzol na zeď a žabky s kroužky.; Materiál:; Rozměry:délka 1950 mm ; Další specifikace viz Kniha vnitřního vybavení - Kniha - prvků - Nábytek a příslušenství | H29: ks | I29: 2 | J29: =1272*1.2 -> 1526.4
A30: 2B.VV_N_014 | B30: Termoport | C30: Termoport pro uskladnění pokrmů určených pro přepravu. Termoport je nevyhřívaný, čelní plnění s nasazovacími dvířky. Uzavírání pomocí záklopných uzávěrů zapuštěných do čelních stěnkorpusu, vnitřní prostor umožňuje uložení 12 párů vylisovaných drážek se svislou roztečí 39 mm k zasouvání gastro nádob, praktických držák popisovacích karet a ergonomická madla s neklouzavými plastovými úchyty. Materiál polypropylen, polyamid a chromniklová ocel. Hmotnost 14 kg. | E30: 630 x 425 x 660 mm | F30: ; Další specifikace viz Kniha vnitřního vybavení - Kniha - prvků - Nábytek a příslušenství | G30: Termoport; Popis:Termoport pro uskladnění pokrmů určených pro přepravu. Termoport je nevyhřívaný, čelní plnění s nasazovacími dvířky. Uzavírání pomocí záklopných uzávěrů zapuštěných do čelních stěnkorpusu, vnitřní prostor umožňuje uložení 12 párů vylisovaných drážek se svislou roztečí 39 mm k zasouvání gastro nádob, praktických držák popisovacích karet a ergonomická madla s neklouzavými plastovými úchyty. Materiál polypropylen, polyamid a chromniklová ocel. Hmotnost 14 kg.; Materiál:; Rozměry:630 x 425 x 660 mm ; Další specifikace viz Kniha vnitřního vybavení - Kniha - prvků - Nábytek a příslušenství | H30: ks | I30: 1 | J30: =16081 -> 16081
A31: 2B.VV_N_015 | B31: Nástěnná police s konzolemi | C31: Nástěnná police s konzolemi kotvené do zdi včetně kotvení. Materiál laminátová MDF deska, barva světle hnědá. Police z desky tl. 25 mm, opatřena ABS hranou tl. 2 mm. Nosnost 80 kg. Konzole dřevěné v barvě světle hnědé. | E31: 1000 x 300 x 20 mm (d x š x v) | F31: ; Další specifikace viz Kniha vnitřního vybavení - Kniha - prvků - Nábytek a příslušenství | G31: Nástěnná police s konzolemi; Popis:Nástěnná police s konzolemi kotvené do zdi včetně kotvení. Materiál laminátová MDF deska, barva světle hnědá. Police z desky tl. 25 mm, opatřena ABS hranou tl. 2 mm. Nosnost 80 kg. Konzole dřevěné v barvě světle hnědé.; Materiál:; Rozměry:1000 x 300 x 20 mm (d x š x v) ; Další specifikace viz Kniha vnitřního vybavení - Kniha - prvků - Nábytek a příslušenství | H31: ks | I31: 1 | J31: =530*1.2 -> 636
A32: 2B.VV_N_016 | B32: Sklopná madla k WC | C32: Sklopná madla k WC včetně montážníh materiálu. Madla jsou z nerezi. Nosnost 120 kg. | E32: délka madla 813 mm | F32: ; Další specifikace viz Kniha vnitřního vybavení - Kniha - prvků - Nábytek a příslušenství | G32: Sklopná madla k WC; Popis:Sklopná madla k WC včetně montážníh materiálu. Madla jsou z nerezi. Nosnost 120 kg.; Materiál:; Rozměry:délka madla 813 mm ; Další specifikace viz Kniha vnitřního vybavení - Kniha - prvků - Nábytek a příslušenství | H32: ks | I32: 2 | J32: =2488 -> 2488
A33: 2B.VV_N_017 | B33: Trezor pro personál | C33: Trezor s elektronickým zámkem. Materiál ocel, korpus 1,5 mm, dveře 4 mm, povrchová úprava práškovaným lakem v barvě šedé. Možné upevnit na zeď. Provoz trezeru je za pomoci 4 běžných baterií (1,5 V). | E33: 350 x 250 x 250 mm (d x š x v) | F33: ; Další specifikace viz Kniha vnitřního vybavení - Kniha - prvků - Nábytek a příslušenství | G33: Trezor pro personál; Popis:Trezor s elektronickým zámkem. Materiál ocel, korpus 1,5 mm, dveře 4 mm, povrchová úprava práškovaným lakem v barvě šedé. Možné upevnit na zeď. Provoz trezeru je za pomoci 4 běžných baterií (1,5 V).; Materiál:; Rozměry:350 x 250 x 250 mm (d x š x v) ; Další specifikace viz Kniha vnitřního vybavení - Kniha - prvků - Nábytek a příslušenství | H33: ks | I33: 1 | J33: =1259 -> 1259
A34: VV_E | B34: Prvky vnitřního vybevení - Elektro a příslušenství
A35: 2B.VV_E_001 | B35: Myčka vestavěná | C35: Kapacita myčky 13 sad nádobí, 2 úložné koše, spotřeba vody 11 l, AQUA STOP proti přetečení, 2 ostřikovací ramena, 4 programy: Eco, Intenzivní, Normální, Oplachování, mycí teploty: 40-70°C, energetická třída A+, účinnost mytí A, účinnost sušení A, hlučnost 49 dB(A), spotřeba energie: 1,04 kWh. | E35: 595 x 570 x 820 mm | F35: ; Další specifikace viz Kniha vnitřního vybavení - Kniha - prvků - Elektro a příslušenství | G35: =CONCATENATE(B35,$C$1,C35,$D$1,D35,$E$1,E35,F35) -> Myčka vestavěná; Popis:Kapacita myčky 13 sad nádobí, 2 úložné koše, spotřeba vody 11 l, AQUA STOP proti přetečení, 2 ostřikovací ramena, 4 programy: Eco, Intenzivní, Normální, Oplachování, mycí teploty: 40-70°C, energetická třída A+, účinnost mytí A, účinnost sušení A, hlučnost 49 dB(A), spotřeba energie: 1,04 kWh.; Materiál:; Rozměry:595 x 570 x 820 mm ; Další specifikace viz Kniha vnitřního vybavení - Kniha - prvků - Elektro a příslušenství | H35: ks | I35: 1 | J35: 15000
A36: 2B.VV_E_002 | B36: Varná deska vestavěná | C36: Sklokeramická varná deska, 4 highlight varné zóny, dotykové ovládání, 9 stupňů výkonu, kontrolky provozu a zbytkového tepla, dětská pojistka, bez rámečku - rovné hrany. | E36: 590 x 520 x 46 mm | F36: ; Další specifikace viz Kniha vnitřního vybavení - Kniha - prvků - Elektro a příslušenství | G36: Varná deska vestavěná; Popis:Sklokeramická varná deska, 4 highlight varné zóny, dotykové ovládání, 9 stupňů výkonu, kontrolky provozu a zbytkového tepla, dětská pojistka, bez rámečku - rovné hrany.; Materiál:; Rozměry:590 x 520 x 46 mm ; Další specifikace viz Kniha vnitřního vybavení - Kniha - prvků - Elektro a příslušenství | H36: ks | I36: 1 | J36: 12000
A37: 2B.VV_E_003 | B37: TV | C37: Chytrá televize s operačním systémem, pevné síťové připojení (min 1x RJ45), DLNA klient pro přehrávání streamů ze serveru, obrazovka LCD s LED podsvícením, velikost min 42, rozlišení FullHD (1920 x 1080 bodů), Hotelový režim, televizní tuner pro příjem pozemního vysílání DVBT a DVBT2 certifikovaný pro ČR. Kompatabilní s držákem VESA. | E37: - - - | G37: TV; Popis:Chytrá televize s operačním systémem, pevné síťové připojení (min 1x RJ45), DLNA klient pro přehrávání streamů ze serveru, obrazovka LCD s LED podsvícením, velikost min 42, rozlišení FullHD (1920 x 1080 bodů), Hotelový režim, televizní tuner pro příjem pozemního vysílání DVBT a DVBT2 certifikovaný pro ČR. Kompatabilní s držákem VESA.; Materiál:; Rozměry: - - - | H37: ks | I37: 1 | J37: 15000
